{"text_format":"3","workbook":"xlsx","n_sheets":15,"sheets":["Как использовать этот шаблон","Список студентов","Август","Сентябрь","Октябрь","Ноябрь","Декабрь","Январь","Февраль","Март","Апрель","Май","Июнь","Июль","Отчет о посещаемости"],"not_rendered":{"defined_names":16},"read":"whole","date_system":"1900"}

{"sheet":"Как использовать этот шаблон","index":0,"n_rows":25,"n_cols":5,"rows_kept":25,"merged":[[3,2,3,12],[4,4,4,12],[5,4,5,12],[6,4,6,12],[7,4,7,12],[8,4,8,7],[11,2,11,12],[12,4,12,12],[13,4,13,12],[14,4,14,12],[17,2,17,12],[18,4,18,12],[19,4,19,12],[20,4,20,12],[21,4,21,12],[24,2,24,12]]}
["ИСПОЛЬЗОВАНИЕ ШАБЛОНА"]
[]
[null,"С ЧЕГО НАЧАТЬ?"]
[null,null,"Прежде чем можно будет проконтролировать посещаемость занятий студентами, необходимо выполнить некоторые действия."]
[{"$nulls":3},"1.","Добавьте студентов. На листе Список студентов введите свеедения о каждом студенте, такие как фамилии опекунов и контактные данные. Идентификатор студента важен потому, что он уникально идентифицирует каждого студента и используется во всей книге в различных раскрывающихся списках для упрощения ввода данных. Сведения, введенные на листе списка студентов, используются и на других листах, таких как «Отчет о посещаемости» и месячные табели посещаемости."]
[{"$nulls":3},"2.","Измените год. На листе посещаемости за август щелкните элемент управления в виде вертушки у правого края верхнего колонтитула для обновления календарного года. В результате колонтитул будет обновлен во всех месячных табелях посещамости во всей книге (печать при нажатии кнопки вертушки не выполняется)."]
[{"$nulls":3},"3.","(Необязательно) Измените цвета во всей книге.  Для этого сначала перейдите на последний лист Отчет о посещаемости, а затем на вкладке Рецензирование в группе Изменения нажмите кнопку Снять защиту листа. Затем на вкладке Разметка страницы в группе Темы нажмите кнопку Цвета и выберите в коллекции цветов другой набор цветов темы. После изменения цветов и других параметров темы вернитесь на лист Отчет о посещаемости, на вкладке Рецензирование в группе Изменения нажмите кнопку Защитить лист, а затем нажмите кнопку ОК."]
[{"$nulls":4},"Совет. Создайте пользовательский набор цветов темы, соответствующий цветам учебного заведения. Для этого на вкладке Разметка страницы в группе Темы нажмите кнопку Цвета, а затем в нижней части коллекции цветов выберите пункт Создать новые цвета темы. Дополнительные сведения о создании пользовательского набора цветов см. в следующем разделе справки: "]
[{"$nulls":4},"Настройте тему документа."]
[]
[null,"ЧТО ДЕЛАТЬ ПОСЛЕ ДОБАВЛЕНИЯ СТУДЕНТОВ?"]
[null,null,"После ввода студентов на листе списка студентов можно проверить посещаемость занятий ими за весь учебный год, выполнив указанные ниже действия."]
[{"$nulls":3},"1.","Чтобы добавить студента в табель посещаемости, щелкните в ячейке под идентификатором студента и выберите идентификатор в списке. После этого автоматически отобразится фамилия студента. "]
[{"$nulls":4},"Совет. Сохраните действия по вводу данных. После добавленяи студентов для одного месяца выделите и скопируйте их идентификаторы, после чего вставьте их в столбец Идентификатор студента для остальных месяцев. "]
[{"$nulls":3},"2.","После этого введите сведения о посещаемости для каждого дня месяца, используя типы, указанные в разделе цветовой кодировки. Посещаемость автоматически рассчитывается по типам для каждого студента в столбце «Итого». В нижней части таблицы в строке «Итого» автоматически определяется общее количество пропусков для каждого дня."]
[]
[null,"КАК ДОБАВИТЬ ДРУГИХ СТУДЕНТОВ В МЕСЯЧНЫЙ ТАБЕЛЬ ПОСЕЩАЕМОСТИ?"]
[null,null,"Месячные табели посещаемости и список студентов представляют собой таблицы Excel. Чтобы добавить новые строки в таблицу Excel, выполните одно из указанных ниже действий."]
[{"$nulls":3},"● ","Если в таблице нет строки «Итого», начните ввод под таблицей и поле автоматически будет расширяться при нажатии клавиши ВВОД или TAB."]
[{"$nulls":3},"● ","Поместите указатель в последнюю ячейку над строкой «Итого», например в ячейку «Количество пропущенных дней» для последнего студента, и нажмите клавишу TAB."]
[{"$nulls":3},"● ","Щелкните в таблице правой кнопкой мыши и выберите в контекстном меню пункт Вставить, а затем — Строки таблицы выше или «Строки таблицы ниже». "]
[{"$nulls":3},"● ","В правом нижнем углу таблицы наведите указатель мыши на маракер изменения размеров таблицы и потащите его вниз, чтобы увеличить количество доступных строк таблицы."]
[]
[null,"МОЖНО ЛИ ПРОСМОТРЕТЬ ПОСЕЩАЕМОСТЬ ЗАНЯТИЙ СТУДЕНТАМИ ЗА ВЕСЬ УЧЕБНЫЙ ГОД?"]
[null,null,"Последний лист в этой книге, «Отчет о посещаемости», предназначен для контроля посещаемости занятий студентами. Чтобы просмотреть отчет для конкретного студента, щелкните в ячейке под идентификатором студента и выберите идентификатор в раскрывающемся списке. Автоматически отобразятся сведения, введенные вами ранее для выбранного студента на листе списка студентов. Имейте в виду, что при первом использовании отчета о посещаемости нужно указать учебное заведение, класс, преподавателя и аудиторию. При выборе другого студента эти данные не изменяются. "]

{"sheet":"Список студентов","index":1,"n_rows":8,"n_cols":19,"rows_kept":8}
["СПИСОК СТУДЕНТОВ"]
[]
[null,"Идентификатор студента","Имя студента","Фамилия студента","Пол","Дата рождения","Родитель/опекун 1","Отношение родителя/опекуна 1","Рабочий номер родителя/опекуна 1","Домашний номер родителя/опекуна 1","Родитель/опекун 2","Отношение родителя/опекуна 2","Рабочий номер родителя/опекуна 2","Домашний номер родителя/опекуна 2","Контакт на случай непредвиденной ситуации","Отношение контакта на случай непредвиденной ситуации","Рабочий номер контакта на случай непредвиденной ситуации","Домашний номер контакта на случай непредвиденной ситуации","Полное имя студента"]
[null,"S001","Андрей","Егоров","M","1997-03-28","Юрий","Егоров",1235550134,2345550134,"Михаил Егоров","Отец",1235550134,2345550134,"Валерий Ушаков","Дед",7895550189,7895550134,{"$f":"СписокСтудентов[[#This Row],[Имя студента]]&\" \" &СписокСтудентов[[#This Row],[Фамилия студента]]","v":"Андрей Егоров"}]
[null,"S002","Студент",2,{"$nulls":14},{"$f":"СписокСтудентов[[#This Row],[Имя студента]]&\" \" &СписокСтудентов[[#This Row],[Фамилия студента]]","v":"Студент 2"}]
[null,"S003","Студент",3,{"$nulls":14},{"$f":"СписокСтудентов[[#This Row],[Имя студента]]&\" \" &СписокСтудентов[[#This Row],[Фамилия студента]]","v":"Студент 3"}]
[null,"S004","Студент",4,{"$nulls":14},{"$f":"СписокСтудентов[[#This Row],[Имя студента]]&\" \" &СписокСтудентов[[#This Row],[Фамилия студента]]","v":"Студент 4"}]
[null,"S005","Студент",5,{"$nulls":14},{"$f":"СписокСтудентов[[#This Row],[Имя студента]]&\" \" &СписокСтудентов[[#This Row],[Фамилия студента]]","v":"Студент 5"}]

{"sheet":"Август","index":2,"n_rows":12,"n_cols":39,"rows_kept":12,"merged":[[4,34,4,38]]}
["ТАБЕЛЬ ПОСЕЩАЕМОСТИ ЗАНЯТИЙ СТУДЕНТОМ",{"$nulls":36},"Начало учебного года:",2012]
[]
[null,null,"ЦВЕТОВАЯ КОДИРОВКА ","О","Опоздал",null,null,"У","Отсутствовал по уважительной причине",null,null,"Н","Отсутствовал по неуважительной причине",null,null,"П","Присутствовал",null,null,"С","Свободный день"]
[]
[null,{"$f":"DATE(ГодКалендаря,8,1)","v":"2012-08-01"},null,{"$f":"TEXT(WEEKDAY(DATE(ГодКалендаря,8,1),1),\"aaa\")","v":"Ср"},{"$f":"TEXT(WEEKDAY(DATE(ГодКалендаря,8,2),1),\"aaa\")","v":"Чт"},{"$f":"TEXT(WEEKDAY(DATE(ГодКалендаря,8,3),1),\"aaa\")","v":"Пт"},{"$f":"TEXT(WEEKDAY(DATE(ГодКалендаря,8,4),1),\"aaa\")","v":"Сб"},{"$f":"TEXT(WEEKDAY(DATE(ГодКалендаря,8,5),1),\"aaa\")","v":"Вс"},{"$f":"TEXT(WEEKDAY(DATE(ГодКалендаря,8,6),1),\"aaa\")","v":"Пн"},{"$f":"TEXT(WEEKDAY(DATE(ГодКалендаря,8,7),1),\"aaa\")","v":"Вт"},{"$f":"TEXT(WEEKDAY(DATE(ГодКалендаря,8,8),1),\"aaa\")","v":"Ср"},{"$f":"TEXT(WEEKDAY(DATE(ГодКалендаря,8,9),1),\"aaa\")","v":"Чт"},{"$f":"TEXT(WEEKDAY(DATE(ГодКалендаря,8,10),1),\"aaa\")","v":"Пт"},{"$f":"TEXT(WEEKDAY(DATE(ГодКалендаря,8,11),1),\"aaa\")","v":"Сб"},{"$f":"TEXT(WEEKDAY(DATE(ГодКалендаря,8,12),1),\"aaa\")","v":"Вс"},{"$f":"TEXT(WEEKDAY(DATE(ГодКалендаря,8,13),1),\"aaa\")","v":"Пн"},{"$f":"TEXT(WEEKDAY(DATE(ГодКалендаря,8,14),1),\"aaa\")","v":"Вт"},{"$f":"TEXT(WEEKDAY(DATE(ГодКалендаря,8,15),1),\"aaa\")","v":"Ср"},{"$f":"TEXT(WEEKDAY(DATE(ГодКалендаря,8,16),1),\"aaa\")","v":"Чт"},{"$f":"TEXT(WEEKDAY(DATE(ГодКалендаря,8,17),1),\"aaa\")","v":"Пт"},{"$f":"TEXT(WEEKDAY(DATE(ГодКалендаря,8,18),1),\"aaa\")","v":"Сб"},{"$f":"TEXT(WEEKDAY(DATE(ГодКалендаря,8,19),1),\"aaa\")","v":"Вс"},{"$f":"TEXT(WEEKDAY(DATE(ГодКалендаря,8,20),1),\"aaa\")","v":"Пн"},{"$f":"TEXT(WEEKDAY(DATE(ГодКалендаря,8,21),1),\"aaa\")","v":"Вт"},{"$f":"TEXT(WEEKDAY(DATE(ГодКалендаря,8,22),1),\"aaa\")","v":"Ср"},{"$f":"TEXT(WEEKDAY(DATE(ГодКалендаря,8,23),1),\"aaa\")","v":"Чт"},{"$f":"TEXT(WEEKDAY(DATE(ГодКалендаря,8,24),1),\"aaa\")","v":"Пт"},{"$f":"TEXT(WEEKDAY(DATE(ГодКалендаря,8,25),1),\"aaa\")","v":"Сб"},{"$f":"TEXT(WEEKDAY(DATE(ГодКалендаря,8,26),1),\"aaa\")","v":"Вс"},{"$f":"TEXT(WEEKDAY(DATE(ГодКалендаря,8,27),1),\"aaa\")","v":"Пн"},{"$f":"TEXT(WEEKDAY(DATE(ГодКалендаря,8,28),1),\"aaa\")","v":"Вт"},{"$f":"TEXT(WEEKDAY(DATE(ГодКалендаря,8,29),1),\"aaa\")","v":"Ср"},{"$f":"TEXT(WEEKDAY(DATE(ГодКалендаря,8,30),1),\"aaa\")","v":"Чт"},{"$f":"TEXT(WEEKDAY(DATE(ГодКалендаря,8,31),1),\"aaa\")","v":"Пт"},"Итого"]
[null,"Идентификатор студента","Имя студента","1","2","3","4","5","6","7","8","9","10","11","12","13","14","15","16","17","18","19","20","21","22","23","24","25","26","27","28","29","30","31","О","У","Н","П","Количество пропущенных дней"]
[null,"S001",{"$f":"IFERROR(VLOOKUP(ПосещаемостьЗаАвгуст[[#This Row],[Идентификатор студента]],СписокСтудентов[],18,FALSE),\"\")","v":"Андрей Егоров"},"П","П","О","О","П","С","С","П","П","У","П","П","С","С","П","П","П","П","П","С","С","П","П","П","П","П","С","С","П","П","П",{"$f":"COUNTIF(ПосещаемостьЗаАвгуст[[#This Row],[1]:[31]],Код1)","v":2},{"$f":"COUNTIF(ПосещаемостьЗаАвгуст[[#This Row],[1]:[31]],Код2)","v":1},{"$f":"COUNTIF(ПосещаемостьЗаАвгуст[[#This Row],[1]:[31]],Код3)","v":0},{"$f":"COUNTIF(ПосещаемостьЗаАвгуст[[#This Row],[1]:[31]],Код4)","v":20},{"$f":"SUM(ПосещаемостьЗаАвгуст[[#This Row],[У]:[Н]])","v":1}]
[null,"S002",{"$f":"IFERROR(VLOOKUP(ПосещаемостьЗаАвгуст[[#This Row],[Идентификатор студента]],СписокСтудентов[],18,FALSE),\"\")","v":"Студент 2"},"П","Н","П","П","П","С","С","П","У","У","У","У","С","С","П","П","П","П","П","С","С","П","П","П","О","О","С","С","П","П","П",{"$f":"COUNTIF(ПосещаемостьЗаАвгуст[[#This Row],[1]:[31]],Код1)","v":2},{"$f":"COUNTIF(ПосещаемостьЗаАвгуст[[#This Row],[1]:[31]],Код2)","v":4},{"$f":"COUNTIF(ПосещаемостьЗаАвгуст[[#This Row],[1]:[31]],Код3)","v":1},{"$f":"COUNTIF(ПосещаемостьЗаАвгуст[[#This Row],[1]:[31]],Код4)","v":16},{"$f":"SUM(ПосещаемостьЗаАвгуст[[#This Row],[У]:[Н]])","v":5}]
[null,"S003",{"$f":"IFERROR(VLOOKUP(ПосещаемостьЗаАвгуст[[#This Row],[Идентификатор студента]],СписокСтудентов[],18,FALSE),\"\")","v":"Студент 3"},"П","У","П","П","П","С","С","П","П","Н","П","П","С","С","П","П","П","П","П","С","С","П","П","У","У","П","С","С","П","П","П",{"$f":"COUNTIF(ПосещаемостьЗаАвгуст[[#This Row],[1]:[31]],Код1)","v":0},{"$f":"COUNTIF(ПосещаемостьЗаАвгуст[[#This Row],[1]:[31]],Код2)","v":3},{"$f":"COUNTIF(ПосещаемостьЗаАвгуст[[#This Row],[1]:[31]],Код3)","v":1},{"$f":"COUNTIF(ПосещаемостьЗаАвгуст[[#This Row],[1]:[31]],Код4)","v":19},{"$f":"SUM(ПосещаемостьЗаАвгуст[[#This Row],[У]:[Н]])","v":4}]
[null,"S004",{"$f":"IFERROR(VLOOKUP(ПосещаемостьЗаАвгуст[[#This Row],[Идентификатор студента]],СписокСтудентов[],18,FALSE),\"\")","v":"Студент 4"},"П","П","П","П","П","С","С","П","П","П","П","П","С","С","П","П","П","П","П","С","С","П","Н","П","П","У","С","С","П","У","П",{"$f":"COUNTIF(ПосещаемостьЗаАвгуст[[#This Row],[1]:[31]],Код1)","v":0},{"$f":"COUNTIF(ПосещаемостьЗаАвгуст[[#This Row],[1]:[31]],Код2)","v":2},{"$f":"COUNTIF(ПосещаемостьЗаАвгуст[[#This Row],[1]:[31]],Код3)","v":1},{"$f":"COUNTIF(ПосещаемостьЗаАвгуст[[#This Row],[1]:[31]],Код4)","v":20},{"$f":"SUM(ПосещаемостьЗаАвгуст[[#This Row],[У]:[Н]])","v":3}]
[null,"S005",{"$f":"IFERROR(VLOOKUP(ПосещаемостьЗаАвгуст[[#This Row],[Идентификатор студента]],СписокСтудентов[],18,FALSE),\"\")","v":"Студент 5"},"П","П","П","П","П","С","С","П","П","П","П","П","С","С","П","П","П","П","П","С","С","П","П","П","П","П","С","С","П","П","П",{"$f":"COUNTIF(ПосещаемостьЗаАвгуст[[#This Row],[1]:[31]],Код1)","v":0},{"$f":"COUNTIF(ПосещаемостьЗаАвгуст[[#This Row],[1]:[31]],Код2)","v":0},{"$f":"COUNTIF(ПосещаемостьЗаАвгуст[[#This Row],[1]:[31]],Код3)","v":0},{"$f":"COUNTIF(ПосещаемостьЗаАвгуст[[#This Row],[1]:[31]],Код4)","v":23},{"$f":"SUM(ПосещаемостьЗаАвгуст[[#This Row],[У]:[Н]])","v":0}]
[null,null,"Общее количество пропущенных дней",{"$f":"COUNTIF(ПосещаемостьЗаАвгуст[1],\"Н\")+COUNTIF(ПосещаемостьЗаАвгуст[1],\"У\")","v":0},{"$f":"COUNTIF(ПосещаемостьЗаАвгуст[2],\"Н\")+COUNTIF(ПосещаемостьЗаАвгуст[2],\"У\")","v":2},{"$f":"COUNTIF(ПосещаемостьЗаАвгуст[3],\"Н\")+COUNTIF(ПосещаемостьЗаАвгуст[3],\"У\")","v":0},{"$f":"COUNTIF(ПосещаемостьЗаАвгуст[4],\"Н\")+COUNTIF(ПосещаемостьЗаАвгуст[4],\"У\")","v":0},{"$f":"COUNTIF(ПосещаемостьЗаАвгуст[5],\"Н\")+COUNTIF(ПосещаемостьЗаАвгуст[5],\"У\")","v":0},{"$f":"COUNTIF(ПосещаемостьЗаАвгуст[6],\"Н\")+COUNTIF(ПосещаемостьЗаАвгуст[6],\"У\")","v":0},{"$f":"COUNTIF(ПосещаемостьЗаАвгуст[7],\"Н\")+COUNTIF(ПосещаемостьЗаАвгуст[7],\"У\")","v":0},{"$f":"COUNTIF(ПосещаемостьЗаАвгуст[8],\"Н\")+COUNTIF(ПосещаемостьЗаАвгуст[8],\"У\")","v":0},{"$f":"COUNTIF(ПосещаемостьЗаАвгуст[9],\"Н\")+COUNTIF(ПосещаемостьЗаАвгуст[9],\"У\")","v":1},{"$f":"COUNTIF(ПосещаемостьЗаАвгуст[10],\"Н\")+COUNTIF(ПосещаемостьЗаАвгуст[10],\"У\")","v":3},{"$f":"COUNTIF(ПосещаемостьЗаАвгуст[11],\"Н\")+COUNTIF(ПосещаемостьЗаАвгуст[11],\"У\")","v":1},{"$f":"COUNTIF(ПосещаемостьЗаАвгуст[12],\"Н\")+COUNTIF(ПосещаемостьЗаАвгуст[12],\"У\")","v":1},{"$f":"COUNTIF(ПосещаемостьЗаАвгуст[13],\"Н\")+COUNTIF(ПосещаемостьЗаАвгуст[13],\"У\")","v":0},{"$f":"COUNTIF(ПосещаемостьЗаАвгуст[14],\"Н\")+COUNTIF(ПосещаемостьЗаАвгуст[14],\"У\")","v":0},{"$f":"COUNTIF(ПосещаемостьЗаАвгуст[15],\"Н\")+COUNTIF(ПосещаемостьЗаАвгуст[15],\"У\")","v":0},{"$f":"COUNTIF(ПосещаемостьЗаАвгуст[16],\"Н\")+COUNTIF(ПосещаемостьЗаАвгуст[16],\"У\")","v":0},{"$f":"COUNTIF(ПосещаемостьЗаАвгуст[17],\"Н\")+COUNTIF(ПосещаемостьЗаАвгуст[17],\"У\")","v":0},{"$f":"COUNTIF(ПосещаемостьЗаАвгуст[18],\"Н\")+COUNTIF(ПосещаемостьЗаАвгуст[18],\"У\")","v":0},{"$f":"COUNTIF(ПосещаемостьЗаАвгуст[19],\"Н\")+COUNTIF(ПосещаемостьЗаАвгуст[19],\"У\")","v":0},{"$f":"COUNTIF(ПосещаемостьЗаАвгуст[20],\"Н\")+COUNTIF(ПосещаемостьЗаАвгуст[20],\"У\")","v":0},{"$f":"COUNTIF(ПосещаемостьЗаАвгуст[21],\"Н\")+COUNTIF(ПосещаемостьЗаАвгуст[21],\"У\")","v":0},{"$f":"COUNTIF(ПосещаемостьЗаАвгуст[22],\"Н\")+COUNTIF(ПосещаемостьЗаАвгуст[22],\"У\")","v":0},{"$f":"COUNTIF(ПосещаемостьЗаАвгуст[23],\"Н\")+COUNTIF(ПосещаемостьЗаАвгуст[23],\"У\")","v":1},{"$f":"COUNTIF(ПосещаемостьЗаАвгуст[24],\"Н\")+COUNTIF(ПосещаемостьЗаАвгуст[24],\"У\")","v":1},{"$f":"COUNTIF(ПосещаемостьЗаАвгуст[25],\"Н\")+COUNTIF(ПосещаемостьЗаАвгуст[25],\"У\")","v":1},{"$f":"COUNTIF(ПосещаемостьЗаАвгуст[26],\"Н\")+COUNTIF(ПосещаемостьЗаАвгуст[26],\"У\")","v":1},{"$f":"COUNTIF(ПосещаемостьЗаАвгуст[27],\"Н\")+COUNTIF(ПосещаемостьЗаАвгуст[27],\"У\")","v":0},{"$f":"COUNTIF(ПосещаемостьЗаАвгуст[28],\"Н\")+COUNTIF(ПосещаемостьЗаАвгуст[28],\"У\")","v":0},{"$f":"COUNTIF(ПосещаемостьЗаАвгуст[29],\"Н\")+COUNTIF(ПосещаемостьЗаАвгуст[29],\"У\")","v":0},{"$f":"COUNTIF(ПосещаемостьЗаАвгуст[30],\"Н\")+COUNTIF(ПосещаемостьЗаАвгуст[30],\"У\")","v":1},{"$f":"COUNTIF(ПосещаемостьЗаАвгуст[31],\"Н\")+COUNTIF(ПосещаемостьЗаАвгуст[31],\"У\")","v":0},{"$f":"SUBTOTAL(109,ПосещаемостьЗаАвгуст[О])","v":4},{"$f":"SUBTOTAL(109,ПосещаемостьЗаАвгуст[У])","v":10},{"$f":"SUBTOTAL(109,ПосещаемостьЗаАвгуст[Н])","v":3},{"$f":"SUBTOTAL(109,ПосещаемостьЗаАвгуст[П])","v":98},{"$f":"SUBTOTAL(109,ПосещаемостьЗаАвгуст[Количество пропущенных дней])","v":13}]

{"sheet":"Сентябрь","index":3,"n_rows":12,"n_cols":39,"rows_kept":12,"merged":[[4,34,4,38]]}
["ТАБЕЛЬ ПОСЕЩАЕМОСТИ ЗАНЯТИЙ СТУДЕНТОМ",{"$nulls":36},"Начало учебного года:",{"$f":"ГодКалендаря","v":2012}]
[]
[null,null,{"$f":"ЦветоваяКодировкаТекст","v":"ЦВЕТОВАЯ КОДИРОВКА "},{"$f":"Код1","v":"О"},{"$f":"Код1Текст","v":"Опоздал"},null,null,{"$f":"Код2","v":"У"},{"$f":"Код2Текст","v":"Отсутствовал по уважительной причине"},null,null,{"$f":"Код3","v":"Н"},{"$f":"Код3Текст","v":"Отсутствовал по неуважительной причине"},null,null,{"$f":"Код4","v":"П"},{"$f":"Код4Текст","v":"Присутствовал"},null,null,{"$f":"Код5","v":"С"},{"$f":"Код5Текст","v":"Свободный день"}]
[]
[null,{"$f":"DATE(ГодКалендаря,9,1)","v":"2012-09-01"},null,{"$f":"TEXT(WEEKDAY(DATE(ГодКалендаря,9,1),1),\"aaa\")","v":"Сб"},{"$f":"TEXT(WEEKDAY(DATE(ГодКалендаря,9,2),1),\"aaa\")","v":"Вс"},{"$f":"TEXT(WEEKDAY(DATE(ГодКалендаря,9,3),1),\"aaa\")","v":"Пн"},{"$f":"TEXT(WEEKDAY(DATE(ГодКалендаря,9,4),1),\"aaa\")","v":"Вт"},{"$f":"TEXT(WEEKDAY(DATE(ГодКалендаря,9,5),1),\"aaa\")","v":"Ср"},{"$f":"TEXT(WEEKDAY(DATE(ГодКалендаря,9,6),1),\"aaa\")","v":"Чт"},{"$f":"TEXT(WEEKDAY(DATE(ГодКалендаря,9,7),1),\"aaa\")","v":"Пт"},{"$f":"TEXT(WEEKDAY(DATE(ГодКалендаря,9,8),1),\"aaa\")","v":"Сб"},{"$f":"TEXT(WEEKDAY(DATE(ГодКалендаря,9,9),1),\"aaa\")","v":"Вс"},{"$f":"TEXT(WEEKDAY(DATE(ГодКалендаря,9,10),1),\"aaa\")","v":"Пн"},{"$f":"TEXT(WEEKDAY(DATE(ГодКалендаря,9,11),1),\"aaa\")","v":"Вт"},{"$f":"TEXT(WEEKDAY(DATE(ГодКалендаря,9,12),1),\"aaa\")","v":"Ср"},{"$f":"TEXT(WEEKDAY(DATE(ГодКалендаря,9,13),1),\"aaa\")","v":"Чт"},{"$f":"TEXT(WEEKDAY(DATE(ГодКалендаря,9,14),1),\"aaa\")","v":"Пт"},{"$f":"TEXT(WEEKDAY(DATE(ГодКалендаря,9,15),1),\"aaa\")","v":"Сб"},{"$f":"TEXT(WEEKDAY(DATE(ГодКалендаря,9,16),1),\"aaa\")","v":"Вс"},{"$f":"TEXT(WEEKDAY(DATE(ГодКалендаря,9,17),1),\"aaa\")","v":"Пн"},{"$f":"TEXT(WEEKDAY(DATE(ГодКалендаря,9,18),1),\"aaa\")","v":"Вт"},{"$f":"TEXT(WEEKDAY(DATE(ГодКалендаря,9,19),1),\"aaa\")","v":"Ср"},{"$f":"TEXT(WEEKDAY(DATE(ГодКалендаря,9,20),1),\"aaa\")","v":"Чт"},{"$f":"TEXT(WEEKDAY(DATE(ГодКалендаря,9,21),1),\"aaa\")","v":"Пт"},{"$f":"TEXT(WEEKDAY(DATE(ГодКалендаря,9,22),1),\"aaa\")","v":"Сб"},{"$f":"TEXT(WEEKDAY(DATE(ГодКалендаря,9,23),1),\"aaa\")","v":"Вс"},{"$f":"TEXT(WEEKDAY(DATE(ГодКалендаря,9,24),1),\"aaa\")","v":"Пн"},{"$f":"TEXT(WEEKDAY(DATE(ГодКалендаря,9,25),1),\"aaa\")","v":"Вт"},{"$f":"TEXT(WEEKDAY(DATE(ГодКалендаря,9,26),1),\"aaa\")","v":"Ср"},{"$f":"TEXT(WEEKDAY(DATE(ГодКалендаря,9,27),1),\"aaa\")","v":"Чт"},{"$f":"TEXT(WEEKDAY(DATE(ГодКалендаря,9,28),1),\"aaa\")","v":"Пт"},{"$f":"TEXT(WEEKDAY(DATE(ГодКалендаря,9,29),1),\"aaa\")","v":"Сб"},{"$f":"TEXT(WEEKDAY(DATE(ГодКалендаря,9,30),1),\"aaa\")","v":"Вс"},null,"Итого"]
[null,"Идентификатор студента","Имя студента","1","2","3","4","5","6","7","8","9","10","11","12","13","14","15","16","17","18","19","20","21","22","23","24","25","26","27","28","29","30"," ","О","У","Н","П","Количество пропущенных дней"]
[null,null,{"$f":"IFERROR(VLOOKUP(ПосещаемостьЗаСентябрь[[#This Row],[Идентификатор студента]],СписокСтудентов[],18,FALSE),\"\")","v":""},{"$nulls":31},{"$f":"COUNTIF(ПосещаемостьЗаСентябрь[[#This Row],[1]:[ ]],Код1)","v":0},{"$f":"COUNTIF(ПосещаемостьЗаСентябрь[[#This Row],[1]:[ ]],Код2)","v":0},{"$f":"COUNTIF(ПосещаемостьЗаСентябрь[[#This Row],[1]:[ ]],Код3)","v":0},{"$f":"COUNTIF(ПосещаемостьЗаСентябрь[[#This Row],[1]:[ ]],Код4)","v":0},{"$f":"SUM(ПосещаемостьЗаСентябрь[[#This Row],[У]:[Н]])","v":0}]
[null,null,{"$f":"IFERROR(VLOOKUP(ПосещаемостьЗаСентябрь[[#This Row],[Идентификатор студента]],СписокСтудентов[],18,FALSE),\"\")","v":""},{"$nulls":31},{"$f":"COUNTIF(ПосещаемостьЗаСентябрь[[#This Row],[1]:[ ]],Код1)","v":0},{"$f":"COUNTIF(ПосещаемостьЗаСентябрь[[#This Row],[1]:[ ]],Код2)","v":0},{"$f":"COUNTIF(ПосещаемостьЗаСентябрь[[#This Row],[1]:[ ]],Код3)","v":0},{"$f":"COUNTIF(ПосещаемостьЗаСентябрь[[#This Row],[1]:[ ]],Код4)","v":0},{"$f":"SUM(ПосещаемостьЗаСентябрь[[#This Row],[У]:[Н]])","v":0}]
[null,null,{"$f":"IFERROR(VLOOKUP(ПосещаемостьЗаСентябрь[[#This Row],[Идентификатор студента]],СписокСтудентов[],18,FALSE),\"\")","v":""},{"$nulls":31},{"$f":"COUNTIF(ПосещаемостьЗаСентябрь[[#This Row],[1]:[ ]],Код1)","v":0},{"$f":"COUNTIF(ПосещаемостьЗаСентябрь[[#This Row],[1]:[ ]],Код2)","v":0},{"$f":"COUNTIF(ПосещаемостьЗаСентябрь[[#This Row],[1]:[ ]],Код3)","v":0},{"$f":"COUNTIF(ПосещаемостьЗаСентябрь[[#This Row],[1]:[ ]],Код4)","v":0},{"$f":"SUM(ПосещаемостьЗаСентябрь[[#This Row],[У]:[Н]])","v":0}]
[null,null,{"$f":"IFERROR(VLOOKUP(ПосещаемостьЗаСентябрь[[#This Row],[Идентификатор студента]],СписокСтудентов[],18,FALSE),\"\")","v":""},{"$nulls":31},{"$f":"COUNTIF(ПосещаемостьЗаСентябрь[[#This Row],[1]:[ ]],Код1)","v":0},{"$f":"COUNTIF(ПосещаемостьЗаСентябрь[[#This Row],[1]:[ ]],Код2)","v":0},{"$f":"COUNTIF(ПосещаемостьЗаСентябрь[[#This Row],[1]:[ ]],Код3)","v":0},{"$f":"COUNTIF(ПосещаемостьЗаСентябрь[[#This Row],[1]:[ ]],Код4)","v":0},{"$f":"SUM(ПосещаемостьЗаСентябрь[[#This Row],[У]:[Н]])","v":0}]
[null,null,{"$f":"IFERROR(VLOOKUP(ПосещаемостьЗаСентябрь[[#This Row],[Идентификатор студента]],СписокСтудентов[],18,FALSE),\"\")","v":""},{"$nulls":31},{"$f":"COUNTIF(ПосещаемостьЗаСентябрь[[#This Row],[1]:[ ]],Код1)","v":0},{"$f":"COUNTIF(ПосещаемостьЗаСентябрь[[#This Row],[1]:[ ]],Код2)","v":0},{"$f":"COUNTIF(ПосещаемостьЗаСентябрь[[#This Row],[1]:[ ]],Код3)","v":0},{"$f":"COUNTIF(ПосещаемостьЗаСентябрь[[#This Row],[1]:[ ]],Код4)","v":0},{"$f":"SUM(ПосещаемостьЗаСентябрь[[#This Row],[У]:[Н]])","v":0}]
[null,null,"Общее количество пропущенных дней",{"$f":"COUNTIF(ПосещаемостьЗаСентябрь[1],\"Н\")+COUNTIF(ПосещаемостьЗаСентябрь[1],\"У\")","v":0},{"$f":"COUNTIF(ПосещаемостьЗаСентябрь[2],\"Н\")+COUNTIF(ПосещаемостьЗаСентябрь[2],\"У\")","v":0},{"$f":"COUNTIF(ПосещаемостьЗаСентябрь[3],\"Н\")+COUNTIF(ПосещаемостьЗаСентябрь[3],\"У\")","v":0},{"$f":"COUNTIF(ПосещаемостьЗаСентябрь[4],\"Н\")+COUNTIF(ПосещаемостьЗаСентябрь[4],\"У\")","v":0},{"$f":"COUNTIF(ПосещаемостьЗаСентябрь[5],\"Н\")+COUNTIF(ПосещаемостьЗаСентябрь[5],\"У\")","v":0},{"$f":"COUNTIF(ПосещаемостьЗаСентябрь[6],\"Н\")+COUNTIF(ПосещаемостьЗаСентябрь[6],\"У\")","v":0},{"$f":"COUNTIF(ПосещаемостьЗаСентябрь[7],\"Н\")+COUNTIF(ПосещаемостьЗаСентябрь[7],\"У\")","v":0},{"$f":"COUNTIF(ПосещаемостьЗаСентябрь[8],\"Н\")+COUNTIF(ПосещаемостьЗаСентябрь[8],\"У\")","v":0},{"$f":"COUNTIF(ПосещаемостьЗаСентябрь[9],\"Н\")+COUNTIF(ПосещаемостьЗаСентябрь[9],\"У\")","v":0},{"$f":"COUNTIF(ПосещаемостьЗаСентябрь[10],\"Н\")+COUNTIF(ПосещаемостьЗаСентябрь[10],\"У\")","v":0},{"$f":"COUNTIF(ПосещаемостьЗаСентябрь[11],\"Н\")+COUNTIF(ПосещаемостьЗаСентябрь[11],\"У\")","v":0},{"$f":"COUNTIF(ПосещаемостьЗаСентябрь[12],\"Н\")+COUNTIF(ПосещаемостьЗаСентябрь[12],\"У\")","v":0},{"$f":"COUNTIF(ПосещаемостьЗаСентябрь[13],\"Н\")+COUNTIF(ПосещаемостьЗаСентябрь[13],\"У\")","v":0},{"$f":"COUNTIF(ПосещаемостьЗаСентябрь[14],\"Н\")+COUNTIF(ПосещаемостьЗаСентябрь[14],\"У\")","v":0},{"$f":"COUNTIF(ПосещаемостьЗаСентябрь[15],\"Н\")+COUNTIF(ПосещаемостьЗаСентябрь[15],\"У\")","v":0},{"$f":"COUNTIF(ПосещаемостьЗаСентябрь[16],\"Н\")+COUNTIF(ПосещаемостьЗаСентябрь[16],\"У\")","v":0},{"$f":"COUNTIF(ПосещаемостьЗаСентябрь[17],\"Н\")+COUNTIF(ПосещаемостьЗаСентябрь[17],\"У\")","v":0},{"$f":"COUNTIF(ПосещаемостьЗаСентябрь[18],\"Н\")+COUNTIF(ПосещаемостьЗаСентябрь[18],\"У\")","v":0},{"$f":"COUNTIF(ПосещаемостьЗаСентябрь[19],\"Н\")+COUNTIF(ПосещаемостьЗаСентябрь[19],\"У\")","v":0},{"$f":"COUNTIF(ПосещаемостьЗаСентябрь[20],\"Н\")+COUNTIF(ПосещаемостьЗаСентябрь[20],\"У\")","v":0},{"$f":"COUNTIF(ПосещаемостьЗаСентябрь[21],\"Н\")+COUNTIF(ПосещаемостьЗаСентябрь[21],\"У\")","v":0},{"$f":"COUNTIF(ПосещаемостьЗаСентябрь[22],\"Н\")+COUNTIF(ПосещаемостьЗаСентябрь[22],\"У\")","v":0},{"$f":"COUNTIF(ПосещаемостьЗаСентябрь[23],\"Н\")+COUNTIF(ПосещаемостьЗаСентябрь[23],\"У\")","v":0},{"$f":"COUNTIF(ПосещаемостьЗаСентябрь[24],\"Н\")+COUNTIF(ПосещаемостьЗаСентябрь[24],\"У\")","v":0},{"$f":"COUNTIF(ПосещаемостьЗаСентябрь[25],\"Н\")+COUNTIF(ПосещаемостьЗаСентябрь[25],\"У\")","v":0},{"$f":"COUNTIF(ПосещаемостьЗаСентябрь[26],\"Н\")+COUNTIF(ПосещаемостьЗаСентябрь[26],\"У\")","v":0},{"$f":"COUNTIF(ПосещаемостьЗаСентябрь[27],\"Н\")+COUNTIF(ПосещаемостьЗаСентябрь[27],\"У\")","v":0},{"$f":"COUNTIF(ПосещаемостьЗаСентябрь[28],\"Н\")+COUNTIF(ПосещаемостьЗаСентябрь[28],\"У\")","v":0},{"$f":"COUNTIF(ПосещаемостьЗаСентябрь[29],\"Н\")+COUNTIF(ПосещаемостьЗаСентябрь[29],\"У\")","v":0},{"$f":"COUNTIF(ПосещаемостьЗаСентябрь[30],\"Н\")+COUNTIF(ПосещаемостьЗаСентябрь[30],\"У\")","v":0},{"$f":"COUNTIF(ПосещаемостьЗаСентябрь[[ ]],\"Н\")+COUNTIF(ПосещаемостьЗаСентябрь[[ ]],\"У\")","v":0},{"$f":"SUBTOTAL(109,ПосещаемостьЗаСентябрь[О])","v":0},{"$f":"SUBTOTAL(109,ПосещаемостьЗаСентябрь[У])","v":0},{"$f":"SUBTOTAL(109,ПосещаемостьЗаСентябрь[Н])","v":0},{"$f":"SUBTOTAL(109,ПосещаемостьЗаСентябрь[П])","v":0},{"$f":"SUBTOTAL(109,ПосещаемостьЗаСентябрь[Количество пропущенных дней])","v":0}]

{"sheet":"Октябрь","index":4,"n_rows":12,"n_cols":39,"rows_kept":12,"merged":[[4,34,4,38]]}
["ТАБЕЛЬ ПОСЕЩАЕМОСТИ ЗАНЯТИЙ СТУДЕНТОМ",{"$nulls":36},"Начало учебного года:",{"$f":"ГодКалендаря","v":2012}]
[]
[null,null,{"$f":"ЦветоваяКодировкаТекст","v":"ЦВЕТОВАЯ КОДИРОВКА "},{"$f":"Код1","v":"О"},{"$f":"Код1Текст","v":"Опоздал"},null,null,{"$f":"Код2","v":"У"},{"$f":"Код2Текст","v":"Отсутствовал по уважительной причине"},null,null,{"$f":"Код3","v":"Н"},{"$f":"Код3Текст","v":"Отсутствовал по неуважительной причине"},null,null,{"$f":"Код4","v":"П"},{"$f":"Код4Текст","v":"Присутствовал"},null,null,{"$f":"Код5","v":"С"},{"$f":"Код5Текст","v":"Свободный день"}]
[]
[null,{"$f":"DATE(ГодКалендаря,10,1)","v":"2012-10-01"},null,{"$f":"TEXT(WEEKDAY(DATE(ГодКалендаря,10,1),1),\"aaa\")","v":"Пн"},{"$f":"TEXT(WEEKDAY(DATE(ГодКалендаря,10,2),1),\"aaa\")","v":"Вт"},{"$f":"TEXT(WEEKDAY(DATE(ГодКалендаря,10,3),1),\"aaa\")","v":"Ср"},{"$f":"TEXT(WEEKDAY(DATE(ГодКалендаря,10,4),1),\"aaa\")","v":"Чт"},{"$f":"TEXT(WEEKDAY(DATE(ГодКалендаря,10,5),1),\"aaa\")","v":"Пт"},{"$f":"TEXT(WEEKDAY(DATE(ГодКалендаря,10,6),1),\"aaa\")","v":"Сб"},{"$f":"TEXT(WEEKDAY(DATE(ГодКалендаря,10,7),1),\"aaa\")","v":"Вс"},{"$f":"TEXT(WEEKDAY(DATE(ГодКалендаря,10,8),1),\"aaa\")","v":"Пн"},{"$f":"TEXT(WEEKDAY(DATE(ГодКалендаря,10,9),1),\"aaa\")","v":"Вт"},{"$f":"TEXT(WEEKDAY(DATE(ГодКалендаря,10,10),1),\"aaa\")","v":"Ср"},{"$f":"TEXT(WEEKDAY(DATE(ГодКалендаря,10,11),1),\"aaa\")","v":"Чт"},{"$f":"TEXT(WEEKDAY(DATE(ГодКалендаря,10,12),1),\"aaa\")","v":"Пт"},{"$f":"TEXT(WEEKDAY(DATE(ГодКалендаря,10,13),1),\"aaa\")","v":"Сб"},{"$f":"TEXT(WEEKDAY(DATE(ГодКалендаря,10,14),1),\"aaa\")","v":"Вс"},{"$f":"TEXT(WEEKDAY(DATE(ГодКалендаря,10,15),1),\"aaa\")","v":"Пн"},{"$f":"TEXT(WEEKDAY(DATE(ГодКалендаря,10,16),1),\"aaa\")","v":"Вт"},{"$f":"TEXT(WEEKDAY(DATE(ГодКалендаря,10,17),1),\"aaa\")","v":"Ср"},{"$f":"TEXT(WEEKDAY(DATE(ГодКалендаря,10,18),1),\"aaa\")","v":"Чт"},{"$f":"TEXT(WEEKDAY(DATE(ГодКалендаря,10,19),1),\"aaa\")","v":"Пт"},{"$f":"TEXT(WEEKDAY(DATE(ГодКалендаря,10,20),1),\"aaa\")","v":"Сб"},{"$f":"TEXT(WEEKDAY(DATE(ГодКалендаря,10,21),1),\"aaa\")","v":"Вс"},{"$f":"TEXT(WEEKDAY(DATE(ГодКалендаря,10,22),1),\"aaa\")","v":"Пн"},{"$f":"TEXT(WEEKDAY(DATE(ГодКалендаря,10,23),1),\"aaa\")","v":"Вт"},{"$f":"TEXT(WEEKDAY(DATE(ГодКалендаря,10,24),1),\"aaa\")","v":"Ср"},{"$f":"TEXT(WEEKDAY(DATE(ГодКалендаря,10,25),1),\"aaa\")","v":"Чт"},{"$f":"TEXT(WEEKDAY(DATE(ГодКалендаря,10,26),1),\"aaa\")","v":"Пт"},{"$f":"TEXT(WEEKDAY(DATE(ГодКалендаря,10,27),1),\"aaa\")","v":"Сб"},{"$f":"TEXT(WEEKDAY(DATE(ГодКалендаря,10,28),1),\"aaa\")","v":"Вс"},{"$f":"TEXT(WEEKDAY(DATE(ГодКалендаря,10,29),1),\"aaa\")","v":"Пн"},{"$f":"TEXT(WEEKDAY(DATE(ГодКалендаря,10,30),1),\"aaa\")","v":"Вт"},{"$f":"TEXT(WEEKDAY(DATE(ГодКалендаря,10,31),1),\"aaa\")","v":"Ср"},"Итого"]
[null,"Идентификатор студента","Имя студента","1","2","3","4","5","6","7","8","9","10","11","12","13","14","15","16","17","18","19","20","21","22","23","24","25","26","27","28","29","30","31","О","У","Н","П","Количество пропущенных дней"]
[null,null,{"$f":"IFERROR(VLOOKUP(ПосещаемостьЗаОктябрь[[#This Row],[Идентификатор студента]],СписокСтудентов[],18,FALSE),\"\")","v":""},{"$nulls":31},{"$f":"COUNTIF(ПосещаемостьЗаОктябрь[[#This Row],[1]:[31]],Код1)","v":0},{"$f":"COUNTIF(ПосещаемостьЗаОктябрь[[#This Row],[1]:[31]],Код2)","v":0},{"$f":"COUNTIF(ПосещаемостьЗаОктябрь[[#This Row],[1]:[31]],Код3)","v":0},{"$f":"COUNTIF(ПосещаемостьЗаОктябрь[[#This Row],[1]:[31]],Код4)","v":0},{"$f":"SUM(ПосещаемостьЗаОктябрь[[#This Row],[У]:[Н]])","v":0}]
[null,null,{"$f":"IFERROR(VLOOKUP(ПосещаемостьЗаОктябрь[[#This Row],[Идентификатор студента]],СписокСтудентов[],18,FALSE),\"\")","v":""},{"$nulls":31},{"$f":"COUNTIF(ПосещаемостьЗаОктябрь[[#This Row],[1]:[31]],Код1)","v":0},{"$f":"COUNTIF(ПосещаемостьЗаОктябрь[[#This Row],[1]:[31]],Код2)","v":0},{"$f":"COUNTIF(ПосещаемостьЗаОктябрь[[#This Row],[1]:[31]],Код3)","v":0},{"$f":"COUNTIF(ПосещаемостьЗаОктябрь[[#This Row],[1]:[31]],Код4)","v":0},{"$f":"SUM(ПосещаемостьЗаОктябрь[[#This Row],[У]:[Н]])","v":0}]
[null,null,{"$f":"IFERROR(VLOOKUP(ПосещаемостьЗаОктябрь[[#This Row],[Идентификатор студента]],СписокСтудентов[],18,FALSE),\"\")","v":""},{"$nulls":31},{"$f":"COUNTIF(ПосещаемостьЗаОктябрь[[#This Row],[1]:[31]],Код1)","v":0},{"$f":"COUNTIF(ПосещаемостьЗаОктябрь[[#This Row],[1]:[31]],Код2)","v":0},{"$f":"COUNTIF(ПосещаемостьЗаОктябрь[[#This Row],[1]:[31]],Код3)","v":0},{"$f":"COUNTIF(ПосещаемостьЗаОктябрь[[#This Row],[1]:[31]],Код4)","v":0},{"$f":"SUM(ПосещаемостьЗаОктябрь[[#This Row],[У]:[Н]])","v":0}]
[null,null,{"$f":"IFERROR(VLOOKUP(ПосещаемостьЗаОктябрь[[#This Row],[Идентификатор студента]],СписокСтудентов[],18,FALSE),\"\")","v":""},{"$nulls":31},{"$f":"COUNTIF(ПосещаемостьЗаОктябрь[[#This Row],[1]:[31]],Код1)","v":0},{"$f":"COUNTIF(ПосещаемостьЗаОктябрь[[#This Row],[1]:[31]],Код2)","v":0},{"$f":"COUNTIF(ПосещаемостьЗаОктябрь[[#This Row],[1]:[31]],Код3)","v":0},{"$f":"COUNTIF(ПосещаемостьЗаОктябрь[[#This Row],[1]:[31]],Код4)","v":0},{"$f":"SUM(ПосещаемостьЗаОктябрь[[#This Row],[У]:[Н]])","v":0}]
[null,null,{"$f":"IFERROR(VLOOKUP(ПосещаемостьЗаОктябрь[[#This Row],[Идентификатор студента]],СписокСтудентов[],18,FALSE),\"\")","v":""},{"$nulls":31},{"$f":"COUNTIF(ПосещаемостьЗаОктябрь[[#This Row],[1]:[31]],Код1)","v":0},{"$f":"COUNTIF(ПосещаемостьЗаОктябрь[[#This Row],[1]:[31]],Код2)","v":0},{"$f":"COUNTIF(ПосещаемостьЗаОктябрь[[#This Row],[1]:[31]],Код3)","v":0},{"$f":"COUNTIF(ПосещаемостьЗаОктябрь[[#This Row],[1]:[31]],Код4)","v":0},{"$f":"SUM(ПосещаемостьЗаОктябрь[[#This Row],[У]:[Н]])","v":0}]
[null,null,"Общее количество пропущенных дней",{"$f":"COUNTIF(ПосещаемостьЗаОктябрь[1],\"Н\")+COUNTIF(ПосещаемостьЗаОктябрь[1],\"У\")","v":0},{"$f":"COUNTIF(ПосещаемостьЗаОктябрь[2],\"Н\")+COUNTIF(ПосещаемостьЗаОктябрь[2],\"У\")","v":0},{"$f":"COUNTIF(ПосещаемостьЗаОктябрь[3],\"Н\")+COUNTIF(ПосещаемостьЗаОктябрь[3],\"У\")","v":0},{"$f":"COUNTIF(ПосещаемостьЗаОктябрь[4],\"Н\")+COUNTIF(ПосещаемостьЗаОктябрь[4],\"У\")","v":0},{"$f":"COUNTIF(ПосещаемостьЗаОктябрь[5],\"Н\")+COUNTIF(ПосещаемостьЗаОктябрь[5],\"У\")","v":0},{"$f":"COUNTIF(ПосещаемостьЗаОктябрь[6],\"Н\")+COUNTIF(ПосещаемостьЗаОктябрь[6],\"У\")","v":0},{"$f":"COUNTIF(ПосещаемостьЗаОктябрь[7],\"Н\")+COUNTIF(ПосещаемостьЗаОктябрь[7],\"У\")","v":0},{"$f":"COUNTIF(ПосещаемостьЗаОктябрь[8],\"Н\")+COUNTIF(ПосещаемостьЗаОктябрь[8],\"У\")","v":0},{"$f":"COUNTIF(ПосещаемостьЗаОктябрь[9],\"Н\")+COUNTIF(ПосещаемостьЗаОктябрь[9],\"У\")","v":0},{"$f":"COUNTIF(ПосещаемостьЗаОктябрь[10],\"Н\")+COUNTIF(ПосещаемостьЗаОктябрь[10],\"У\")","v":0},{"$f":"COUNTIF(ПосещаемостьЗаОктябрь[11],\"Н\")+COUNTIF(ПосещаемостьЗаОктябрь[11],\"У\")","v":0},{"$f":"COUNTIF(ПосещаемостьЗаОктябрь[12],\"Н\")+COUNTIF(ПосещаемостьЗаОктябрь[12],\"У\")","v":0},{"$f":"COUNTIF(ПосещаемостьЗаОктябрь[13],\"Н\")+COUNTIF(ПосещаемостьЗаОктябрь[13],\"У\")","v":0},{"$f":"COUNTIF(ПосещаемостьЗаОктябрь[14],\"Н\")+COUNTIF(ПосещаемостьЗаОктябрь[14],\"У\")","v":0},{"$f":"COUNTIF(ПосещаемостьЗаОктябрь[15],\"Н\")+COUNTIF(ПосещаемостьЗаОктябрь[15],\"У\")","v":0},{"$f":"COUNTIF(ПосещаемостьЗаОктябрь[16],\"Н\")+COUNTIF(ПосещаемостьЗаОктябрь[16],\"У\")","v":0},{"$f":"COUNTIF(ПосещаемостьЗаОктябрь[17],\"Н\")+COUNTIF(ПосещаемостьЗаОктябрь[17],\"У\")","v":0},{"$f":"COUNTIF(ПосещаемостьЗаОктябрь[18],\"Н\")+COUNTIF(ПосещаемостьЗаОктябрь[18],\"У\")","v":0},{"$f":"COUNTIF(ПосещаемостьЗаОктябрь[19],\"Н\")+COUNTIF(ПосещаемостьЗаОктябрь[19],\"У\")","v":0},{"$f":"COUNTIF(ПосещаемостьЗаОктябрь[20],\"Н\")+COUNTIF(ПосещаемостьЗаОктябрь[20],\"У\")","v":0},{"$f":"COUNTIF(ПосещаемостьЗаОктябрь[21],\"Н\")+COUNTIF(ПосещаемостьЗаОктябрь[21],\"У\")","v":0},{"$f":"COUNTIF(ПосещаемостьЗаОктябрь[22],\"Н\")+COUNTIF(ПосещаемостьЗаОктябрь[22],\"У\")","v":0},{"$f":"COUNTIF(ПосещаемостьЗаОктябрь[23],\"Н\")+COUNTIF(ПосещаемостьЗаОктябрь[23],\"У\")","v":0},{"$f":"COUNTIF(ПосещаемостьЗаОктябрь[24],\"Н\")+COUNTIF(ПосещаемостьЗаОктябрь[24],\"У\")","v":0},{"$f":"COUNTIF(ПосещаемостьЗаОктябрь[25],\"Н\")+COUNTIF(ПосещаемостьЗаОктябрь[25],\"У\")","v":0},{"$f":"COUNTIF(ПосещаемостьЗаОктябрь[26],\"Н\")+COUNTIF(ПосещаемостьЗаОктябрь[26],\"У\")","v":0},{"$f":"COUNTIF(ПосещаемостьЗаОктябрь[27],\"Н\")+COUNTIF(ПосещаемостьЗаОктябрь[27],\"У\")","v":0},{"$f":"COUNTIF(ПосещаемостьЗаОктябрь[28],\"Н\")+COUNTIF(ПосещаемостьЗаОктябрь[28],\"У\")","v":0},{"$f":"COUNTIF(ПосещаемостьЗаОктябрь[29],\"Н\")+COUNTIF(ПосещаемостьЗаОктябрь[29],\"У\")","v":0},{"$f":"COUNTIF(ПосещаемостьЗаОктябрь[30],\"Н\")+COUNTIF(ПосещаемостьЗаОктябрь[30],\"У\")","v":0},{"$f":"COUNTIF(ПосещаемостьЗаОктябрь[31],\"Н\")+COUNTIF(ПосещаемостьЗаОктябрь[31],\"У\")","v":0},{"$f":"SUBTOTAL(109,ПосещаемостьЗаОктябрь[О])","v":0},{"$f":"SUBTOTAL(109,ПосещаемостьЗаОктябрь[У])","v":0},{"$f":"SUBTOTAL(109,ПосещаемостьЗаОктябрь[Н])","v":0},{"$f":"SUBTOTAL(109,ПосещаемостьЗаОктябрь[П])","v":0},{"$f":"SUBTOTAL(109,ПосещаемостьЗаОктябрь[Количество пропущенных дней])","v":0}]

{"sheet":"Ноябрь","index":5,"n_rows":12,"n_cols":39,"rows_kept":12,"merged":[[4,34,4,38]]}
["ТАБЕЛЬ ПОСЕЩАЕМОСТИ ЗАНЯТИЙ СТУДЕНТОМ",{"$nulls":36},"Начало учебного года:",{"$f":"ГодКалендаря","v":2012}]
[]
[null,null,{"$f":"ЦветоваяКодировкаТекст","v":"ЦВЕТОВАЯ КОДИРОВКА "},{"$f":"Код1","v":"О"},{"$f":"Код1Текст","v":"Опоздал"},null,null,{"$f":"Код2","v":"У"},{"$f":"Код2Текст","v":"Отсутствовал по уважительной причине"},null,null,{"$f":"Код3","v":"Н"},{"$f":"Код3Текст","v":"Отсутствовал по неуважительной причине"},null,null,{"$f":"Код4","v":"П"},{"$f":"Код4Текст","v":"Присутствовал"},null,null,{"$f":"Код5","v":"С"},{"$f":"Код5Текст","v":"Свободный день"}]
[]
[null,{"$f":"DATE(ГодКалендаря,11,1)","v":"2012-11-01"},null,{"$f":"TEXT(WEEKDAY(DATE(ГодКалендаря,11,1),1),\"aaa\")","v":"Чт"},{"$f":"TEXT(WEEKDAY(DATE(ГодКалендаря,11,2),1),\"aaa\")","v":"Пт"},{"$f":"TEXT(WEEKDAY(DATE(ГодКалендаря,11,3),1),\"aaa\")","v":"Сб"},{"$f":"TEXT(WEEKDAY(DATE(ГодКалендаря,11,4),1),\"aaa\")","v":"Вс"},{"$f":"TEXT(WEEKDAY(DATE(ГодКалендаря,11,5),1),\"aaa\")","v":"Пн"},{"$f":"TEXT(WEEKDAY(DATE(ГодКалендаря,11,6),1),\"aaa\")","v":"Вт"},{"$f":"TEXT(WEEKDAY(DATE(ГодКалендаря,11,7),1),\"aaa\")","v":"Ср"},{"$f":"TEXT(WEEKDAY(DATE(ГодКалендаря,11,8),1),\"aaa\")","v":"Чт"},{"$f":"TEXT(WEEKDAY(DATE(ГодКалендаря,11,9),1),\"aaa\")","v":"Пт"},{"$f":"TEXT(WEEKDAY(DATE(ГодКалендаря,11,10),1),\"aaa\")","v":"Сб"},{"$f":"TEXT(WEEKDAY(DATE(ГодКалендаря,11,11),1),\"aaa\")","v":"Вс"},{"$f":"TEXT(WEEKDAY(DATE(ГодКалендаря,11,12),1),\"aaa\")","v":"Пн"},{"$f":"TEXT(WEEKDAY(DATE(ГодКалендаря,11,13),1),\"aaa\")","v":"Вт"},{"$f":"TEXT(WEEKDAY(DATE(ГодКалендаря,11,14),1),\"aaa\")","v":"Ср"},{"$f":"TEXT(WEEKDAY(DATE(ГодКалендаря,11,15),1),\"aaa\")","v":"Чт"},{"$f":"TEXT(WEEKDAY(DATE(ГодКалендаря,11,16),1),\"aaa\")","v":"Пт"},{"$f":"TEXT(WEEKDAY(DATE(ГодКалендаря,11,17),1),\"aaa\")","v":"Сб"},{"$f":"TEXT(WEEKDAY(DATE(ГодКалендаря,11,18),1),\"aaa\")","v":"Вс"},{"$f":"TEXT(WEEKDAY(DATE(ГодКалендаря,11,19),1),\"aaa\")","v":"Пн"},{"$f":"TEXT(WEEKDAY(DATE(ГодКалендаря,11,20),1),\"aaa\")","v":"Вт"},{"$f":"TEXT(WEEKDAY(DATE(ГодКалендаря,11,21),1),\"aaa\")","v":"Ср"},{"$f":"TEXT(WEEKDAY(DATE(ГодКалендаря,11,22),1),\"aaa\")","v":"Чт"},{"$f":"TEXT(WEEKDAY(DATE(ГодКалендаря,11,23),1),\"aaa\")","v":"Пт"},{"$f":"TEXT(WEEKDAY(DATE(ГодКалендаря,11,24),1),\"aaa\")","v":"Сб"},{"$f":"TEXT(WEEKDAY(DATE(ГодКалендаря,11,25),1),\"aaa\")","v":"Вс"},{"$f":"TEXT(WEEKDAY(DATE(ГодКалендаря,11,26),1),\"aaa\")","v":"Пн"},{"$f":"TEXT(WEEKDAY(DATE(ГодКалендаря,11,27),1),\"aaa\")","v":"Вт"},{"$f":"TEXT(WEEKDAY(DATE(ГодКалендаря,11,28),1),\"aaa\")","v":"Ср"},{"$f":"TEXT(WEEKDAY(DATE(ГодКалендаря,11,29),1),\"aaa\")","v":"Чт"},{"$f":"TEXT(WEEKDAY(DATE(ГодКалендаря,11,30),1),\"aaa\")","v":"Пт"},null,"Итого"]
[null,"Идентификатор студента","Имя студента","1","2","3","4","5","6","7","8","9","10","11","12","13","14","15","16","17","18","19","20","21","22","23","24","25","26","27","28","29","30"," ","О","У","Н","П","Количество пропущенных дней"]
[null,null,{"$f":"IFERROR(VLOOKUP(ПосещаемостьЗаНоябрь[[#This Row],[Идентификатор студента]],СписокСтудентов[],18,FALSE),\"\")","v":""},{"$nulls":31},{"$f":"COUNTIF(ПосещаемостьЗаНоябрь[[#This Row],[1]:[ ]],Код1)","v":0},{"$f":"COUNTIF(ПосещаемостьЗаНоябрь[[#This Row],[1]:[ ]],Код2)","v":0},{"$f":"COUNTIF(ПосещаемостьЗаНоябрь[[#This Row],[1]:[ ]],Код3)","v":0},{"$f":"COUNTIF(ПосещаемостьЗаНоябрь[[#This Row],[1]:[ ]],Код4)","v":0},{"$f":"SUM(ПосещаемостьЗаНоябрь[[#This Row],[У]:[Н]])","v":0}]
[null,null,{"$f":"IFERROR(VLOOKUP(ПосещаемостьЗаНоябрь[[#This Row],[Идентификатор студента]],СписокСтудентов[],18,FALSE),\"\")","v":""},{"$nulls":31},{"$f":"COUNTIF(ПосещаемостьЗаНоябрь[[#This Row],[1]:[ ]],Код1)","v":0},{"$f":"COUNTIF(ПосещаемостьЗаНоябрь[[#This Row],[1]:[ ]],Код2)","v":0},{"$f":"COUNTIF(ПосещаемостьЗаНоябрь[[#This Row],[1]:[ ]],Код3)","v":0},{"$f":"COUNTIF(ПосещаемостьЗаНоябрь[[#This Row],[1]:[ ]],Код4)","v":0},{"$f":"SUM(ПосещаемостьЗаНоябрь[[#This Row],[У]:[Н]])","v":0}]
[null,null,{"$f":"IFERROR(VLOOKUP(ПосещаемостьЗаНоябрь[[#This Row],[Идентификатор студента]],СписокСтудентов[],18,FALSE),\"\")","v":""},{"$nulls":31},{"$f":"COUNTIF(ПосещаемостьЗаНоябрь[[#This Row],[1]:[ ]],Код1)","v":0},{"$f":"COUNTIF(ПосещаемостьЗаНоябрь[[#This Row],[1]:[ ]],Код2)","v":0},{"$f":"COUNTIF(ПосещаемостьЗаНоябрь[[#This Row],[1]:[ ]],Код3)","v":0},{"$f":"COUNTIF(ПосещаемостьЗаНоябрь[[#This Row],[1]:[ ]],Код4)","v":0},{"$f":"SUM(ПосещаемостьЗаНоябрь[[#This Row],[У]:[Н]])","v":0}]
[null,null,{"$f":"IFERROR(VLOOKUP(ПосещаемостьЗаНоябрь[[#This Row],[Идентификатор студента]],СписокСтудентов[],18,FALSE),\"\")","v":""},{"$nulls":31},{"$f":"COUNTIF(ПосещаемостьЗаНоябрь[[#This Row],[1]:[ ]],Код1)","v":0},{"$f":"COUNTIF(ПосещаемостьЗаНоябрь[[#This Row],[1]:[ ]],Код2)","v":0},{"$f":"COUNTIF(ПосещаемостьЗаНоябрь[[#This Row],[1]:[ ]],Код3)","v":0},{"$f":"COUNTIF(ПосещаемостьЗаНоябрь[[#This Row],[1]:[ ]],Код4)","v":0},{"$f":"SUM(ПосещаемостьЗаНоябрь[[#This Row],[У]:[Н]])","v":0}]
[null,null,{"$f":"IFERROR(VLOOKUP(ПосещаемостьЗаНоябрь[[#This Row],[Идентификатор студента]],СписокСтудентов[],18,FALSE),\"\")","v":""},{"$nulls":31},{"$f":"COUNTIF(ПосещаемостьЗаНоябрь[[#This Row],[1]:[ ]],Код1)","v":0},{"$f":"COUNTIF(ПосещаемостьЗаНоябрь[[#This Row],[1]:[ ]],Код2)","v":0},{"$f":"COUNTIF(ПосещаемостьЗаНоябрь[[#This Row],[1]:[ ]],Код3)","v":0},{"$f":"COUNTIF(ПосещаемостьЗаНоябрь[[#This Row],[1]:[ ]],Код4)","v":0},{"$f":"SUM(ПосещаемостьЗаНоябрь[[#This Row],[У]:[Н]])","v":0}]
[null,null,"Общее количество пропущенных дней",{"$f":"COUNTIF(ПосещаемостьЗаНоябрь[1],\"Н\")+COUNTIF(ПосещаемостьЗаНоябрь[1],\"У\")","v":0},{"$f":"COUNTIF(ПосещаемостьЗаНоябрь[2],\"Н\")+COUNTIF(ПосещаемостьЗаНоябрь[2],\"У\")","v":0},{"$f":"COUNTIF(ПосещаемостьЗаНоябрь[3],\"Н\")+COUNTIF(ПосещаемостьЗаНоябрь[3],\"У\")","v":0},{"$f":"COUNTIF(ПосещаемостьЗаНоябрь[4],\"Н\")+COUNTIF(ПосещаемостьЗаНоябрь[4],\"У\")","v":0},{"$f":"COUNTIF(ПосещаемостьЗаНоябрь[5],\"Н\")+COUNTIF(ПосещаемостьЗаНоябрь[5],\"У\")","v":0},{"$f":"COUNTIF(ПосещаемостьЗаНоябрь[6],\"Н\")+COUNTIF(ПосещаемостьЗаНоябрь[6],\"У\")","v":0},{"$f":"COUNTIF(ПосещаемостьЗаНоябрь[7],\"Н\")+COUNTIF(ПосещаемостьЗаНоябрь[7],\"У\")","v":0},{"$f":"COUNTIF(ПосещаемостьЗаНоябрь[8],\"Н\")+COUNTIF(ПосещаемостьЗаНоябрь[8],\"У\")","v":0},{"$f":"COUNTIF(ПосещаемостьЗаНоябрь[9],\"Н\")+COUNTIF(ПосещаемостьЗаНоябрь[9],\"У\")","v":0},{"$f":"COUNTIF(ПосещаемостьЗаНоябрь[10],\"Н\")+COUNTIF(ПосещаемостьЗаНоябрь[10],\"У\")","v":0},{"$f":"COUNTIF(ПосещаемостьЗаНоябрь[11],\"Н\")+COUNTIF(ПосещаемостьЗаНоябрь[11],\"У\")","v":0},{"$f":"COUNTIF(ПосещаемостьЗаНоябрь[12],\"Н\")+COUNTIF(ПосещаемостьЗаНоябрь[12],\"У\")","v":0},{"$f":"COUNTIF(ПосещаемостьЗаНоябрь[13],\"Н\")+COUNTIF(ПосещаемостьЗаНоябрь[13],\"У\")","v":0},{"$f":"COUNTIF(ПосещаемостьЗаНоябрь[14],\"Н\")+COUNTIF(ПосещаемостьЗаНоябрь[14],\"У\")","v":0},{"$f":"COUNTIF(ПосещаемостьЗаНоябрь[15],\"Н\")+COUNTIF(ПосещаемостьЗаНоябрь[15],\"У\")","v":0},{"$f":"COUNTIF(ПосещаемостьЗаНоябрь[16],\"Н\")+COUNTIF(ПосещаемостьЗаНоябрь[16],\"У\")","v":0},{"$f":"COUNTIF(ПосещаемостьЗаНоябрь[17],\"Н\")+COUNTIF(ПосещаемостьЗаНоябрь[17],\"У\")","v":0},{"$f":"COUNTIF(ПосещаемостьЗаНоябрь[18],\"Н\")+COUNTIF(ПосещаемостьЗаНоябрь[18],\"У\")","v":0},{"$f":"COUNTIF(ПосещаемостьЗаНоябрь[19],\"Н\")+COUNTIF(ПосещаемостьЗаНоябрь[19],\"У\")","v":0},{"$f":"COUNTIF(ПосещаемостьЗаНоябрь[20],\"Н\")+COUNTIF(ПосещаемостьЗаНоябрь[20],\"У\")","v":0},{"$f":"COUNTIF(ПосещаемостьЗаНоябрь[21],\"Н\")+COUNTIF(ПосещаемостьЗаНоябрь[21],\"У\")","v":0},{"$f":"COUNTIF(ПосещаемостьЗаНоябрь[22],\"Н\")+COUNTIF(ПосещаемостьЗаНоябрь[22],\"У\")","v":0},{"$f":"COUNTIF(ПосещаемостьЗаНоябрь[23],\"Н\")+COUNTIF(ПосещаемостьЗаНоябрь[23],\"У\")","v":0},{"$f":"COUNTIF(ПосещаемостьЗаНоябрь[24],\"Н\")+COUNTIF(ПосещаемостьЗаНоябрь[24],\"У\")","v":0},{"$f":"COUNTIF(ПосещаемостьЗаНоябрь[25],\"Н\")+COUNTIF(ПосещаемостьЗаНоябрь[25],\"У\")","v":0},{"$f":"COUNTIF(ПосещаемостьЗаНоябрь[26],\"Н\")+COUNTIF(ПосещаемостьЗаНоябрь[26],\"У\")","v":0},{"$f":"COUNTIF(ПосещаемостьЗаНоябрь[27],\"Н\")+COUNTIF(ПосещаемостьЗаНоябрь[27],\"У\")","v":0},{"$f":"COUNTIF(ПосещаемостьЗаНоябрь[28],\"Н\")+COUNTIF(ПосещаемостьЗаНоябрь[28],\"У\")","v":0},{"$f":"COUNTIF(ПосещаемостьЗаНоябрь[29],\"Н\")+COUNTIF(ПосещаемостьЗаНоябрь[29],\"У\")","v":0},{"$f":"COUNTIF(ПосещаемостьЗаНоябрь[30],\"Н\")+COUNTIF(ПосещаемостьЗаНоябрь[30],\"У\")","v":0},{"$f":"COUNTIF(ПосещаемостьЗаНоябрь[[ ]],\"Н\")+COUNTIF(ПосещаемостьЗаНоябрь[[ ]],\"У\")","v":0},{"$f":"SUBTOTAL(109,ПосещаемостьЗаНоябрь[О])","v":0},{"$f":"SUBTOTAL(109,ПосещаемостьЗаНоябрь[У])","v":0},{"$f":"SUBTOTAL(109,ПосещаемостьЗаНоябрь[Н])","v":0},{"$f":"SUBTOTAL(109,ПосещаемостьЗаНоябрь[П])","v":0},{"$f":"SUBTOTAL(109,ПосещаемостьЗаНоябрь[Количество пропущенных дней])","v":0}]

{"sheet":"Декабрь","index":6,"n_rows":12,"n_cols":39,"rows_kept":12,"merged":[[4,34,4,38]]}
["ТАБЕЛЬ ПОСЕЩАЕМОСТИ ЗАНЯТИЙ СТУДЕНТОМ",{"$nulls":36},"Начало учебного года:",{"$f":"ГодКалендаря","v":2012}]
[]
[null,null,{"$f":"ЦветоваяКодировкаТекст","v":"ЦВЕТОВАЯ КОДИРОВКА "},{"$f":"Код1","v":"О"},{"$f":"Код1Текст","v":"Опоздал"},null,null,{"$f":"Код2","v":"У"},{"$f":"Код2Текст","v":"Отсутствовал по уважительной причине"},null,null,{"$f":"Код3","v":"Н"},{"$f":"Код3Текст","v":"Отсутствовал по неуважительной причине"},null,null,{"$f":"Код4","v":"П"},{"$f":"Код4Текст","v":"Присутствовал"},null,null,{"$f":"Код5","v":"С"},{"$f":"Код5Текст","v":"Свободный день"}]
[]
[null,{"$f":"DATE(ГодКалендаря,12,1)","v":"2012-12-01"},null,{"$f":"TEXT(WEEKDAY(DATE(ГодКалендаря,12,1),1),\"aaa\")","v":"Сб"},{"$f":"TEXT(WEEKDAY(DATE(ГодКалендаря,12,2),1),\"aaa\")","v":"Вс"},{"$f":"TEXT(WEEKDAY(DATE(ГодКалендаря,12,3),1),\"aaa\")","v":"Пн"},{"$f":"TEXT(WEEKDAY(DATE(ГодКалендаря,12,4),1),\"aaa\")","v":"Вт"},{"$f":"TEXT(WEEKDAY(DATE(ГодКалендаря,12,5),1),\"aaa\")","v":"Ср"},{"$f":"TEXT(WEEKDAY(DATE(ГодКалендаря,12,6),1),\"aaa\")","v":"Чт"},{"$f":"TEXT(WEEKDAY(DATE(ГодКалендаря,12,7),1),\"aaa\")","v":"Пт"},{"$f":"TEXT(WEEKDAY(DATE(ГодКалендаря,12,8),1),\"aaa\")","v":"Сб"},{"$f":"TEXT(WEEKDAY(DATE(ГодКалендаря,12,9),1),\"aaa\")","v":"Вс"},{"$f":"TEXT(WEEKDAY(DATE(ГодКалендаря,12,10),1),\"aaa\")","v":"Пн"},{"$f":"TEXT(WEEKDAY(DATE(ГодКалендаря,12,11),1),\"aaa\")","v":"Вт"},{"$f":"TEXT(WEEKDAY(DATE(ГодКалендаря,12,12),1),\"aaa\")","v":"Ср"},{"$f":"TEXT(WEEKDAY(DATE(ГодКалендаря,12,13),1),\"aaa\")","v":"Чт"},{"$f":"TEXT(WEEKDAY(DATE(ГодКалендаря,12,14),1),\"aaa\")","v":"Пт"},{"$f":"TEXT(WEEKDAY(DATE(ГодКалендаря,12,15),1),\"aaa\")","v":"Сб"},{"$f":"TEXT(WEEKDAY(DATE(ГодКалендаря,12,16),1),\"aaa\")","v":"Вс"},{"$f":"TEXT(WEEKDAY(DATE(ГодКалендаря,12,17),1),\"aaa\")","v":"Пн"},{"$f":"TEXT(WEEKDAY(DATE(ГодКалендаря,12,18),1),\"aaa\")","v":"Вт"},{"$f":"TEXT(WEEKDAY(DATE(ГодКалендаря,12,19),1),\"aaa\")","v":"Ср"},{"$f":"TEXT(WEEKDAY(DATE(ГодКалендаря,12,20),1),\"aaa\")","v":"Чт"},{"$f":"TEXT(WEEKDAY(DATE(ГодКалендаря,12,21),1),\"aaa\")","v":"Пт"},{"$f":"TEXT(WEEKDAY(DATE(ГодКалендаря,12,22),1),\"aaa\")","v":"Сб"},{"$f":"TEXT(WEEKDAY(DATE(ГодКалендаря,12,23),1),\"aaa\")","v":"Вс"},{"$f":"TEXT(WEEKDAY(DATE(ГодКалендаря,12,24),1),\"aaa\")","v":"Пн"},{"$f":"TEXT(WEEKDAY(DATE(ГодКалендаря,12,25),1),\"aaa\")","v":"Вт"},{"$f":"TEXT(WEEKDAY(DATE(ГодКалендаря,12,26),1),\"aaa\")","v":"Ср"},{"$f":"TEXT(WEEKDAY(DATE(ГодКалендаря,12,27),1),\"aaa\")","v":"Чт"},{"$f":"TEXT(WEEKDAY(DATE(ГодКалендаря,12,28),1),\"aaa\")","v":"Пт"},{"$f":"TEXT(WEEKDAY(DATE(ГодКалендаря,12,29),1),\"aaa\")","v":"Сб"},{"$f":"TEXT(WEEKDAY(DATE(ГодКалендаря,12,30),1),\"aaa\")","v":"Вс"},{"$f":"TEXT(WEEKDAY(DATE(ГодКалендаря,12,31),1),\"aaa\")","v":"Пн"},"Итого"]
[null,"Идентификатор студента","Имя студента","1","2","3","4","5","6","7","8","9","10","11","12","13","14","15","16","17","18","19","20","21","22","23","24","25","26","27","28","29","30","31","О","У","Н","П","Количество пропущенных дней"]
[null,null,{"$f":"IFERROR(VLOOKUP(ПосещаемостьЗаДекабрь[[#This Row],[Идентификатор студента]],СписокСтудентов[],18,FALSE),\"\")","v":""},{"$nulls":31},{"$f":"COUNTIF(ПосещаемостьЗаДекабрь[[#This Row],[1]:[31]],Код1)","v":0},{"$f":"COUNTIF(ПосещаемостьЗаДекабрь[[#This Row],[1]:[31]],Код2)","v":0},{"$f":"COUNTIF(ПосещаемостьЗаДекабрь[[#This Row],[1]:[31]],Код3)","v":0},{"$f":"COUNTIF(ПосещаемостьЗаДекабрь[[#This Row],[1]:[31]],Код4)","v":0},{"$f":"SUM(ПосещаемостьЗаДекабрь[[#This Row],[У]:[Н]])","v":0}]
[null,null,{"$f":"IFERROR(VLOOKUP(ПосещаемостьЗаДекабрь[[#This Row],[Идентификатор студента]],СписокСтудентов[],18,FALSE),\"\")","v":""},{"$nulls":31},{"$f":"COUNTIF(ПосещаемостьЗаДекабрь[[#This Row],[1]:[31]],Код1)","v":0},{"$f":"COUNTIF(ПосещаемостьЗаДекабрь[[#This Row],[1]:[31]],Код2)","v":0},{"$f":"COUNTIF(ПосещаемостьЗаДекабрь[[#This Row],[1]:[31]],Код3)","v":0},{"$f":"COUNTIF(ПосещаемостьЗаДекабрь[[#This Row],[1]:[31]],Код4)","v":0},{"$f":"SUM(ПосещаемостьЗаДекабрь[[#This Row],[У]:[Н]])","v":0}]
[null,null,{"$f":"IFERROR(VLOOKUP(ПосещаемостьЗаДекабрь[[#This Row],[Идентификатор студента]],СписокСтудентов[],18,FALSE),\"\")","v":""},{"$nulls":31},{"$f":"COUNTIF(ПосещаемостьЗаДекабрь[[#This Row],[1]:[31]],Код1)","v":0},{"$f":"COUNTIF(ПосещаемостьЗаДекабрь[[#This Row],[1]:[31]],Код2)","v":0},{"$f":"COUNTIF(ПосещаемостьЗаДекабрь[[#This Row],[1]:[31]],Код3)","v":0},{"$f":"COUNTIF(ПосещаемостьЗаДекабрь[[#This Row],[1]:[31]],Код4)","v":0},{"$f":"SUM(ПосещаемостьЗаДекабрь[[#This Row],[У]:[Н]])","v":0}]
[null,null,{"$f":"IFERROR(VLOOKUP(ПосещаемостьЗаДекабрь[[#This Row],[Идентификатор студента]],СписокСтудентов[],18,FALSE),\"\")","v":""},{"$nulls":31},{"$f":"COUNTIF(ПосещаемостьЗаДекабрь[[#This Row],[1]:[31]],Код1)","v":0},{"$f":"COUNTIF(ПосещаемостьЗаДекабрь[[#This Row],[1]:[31]],Код2)","v":0},{"$f":"COUNTIF(ПосещаемостьЗаДекабрь[[#This Row],[1]:[31]],Код3)","v":0},{"$f":"COUNTIF(ПосещаемостьЗаДекабрь[[#This Row],[1]:[31]],Код4)","v":0},{"$f":"SUM(ПосещаемостьЗаДекабрь[[#This Row],[У]:[Н]])","v":0}]
[null,null,{"$f":"IFERROR(VLOOKUP(ПосещаемостьЗаДекабрь[[#This Row],[Идентификатор студента]],СписокСтудентов[],18,FALSE),\"\")","v":""},{"$nulls":31},{"$f":"COUNTIF(ПосещаемостьЗаДекабрь[[#This Row],[1]:[31]],Код1)","v":0},{"$f":"COUNTIF(ПосещаемостьЗаДекабрь[[#This Row],[1]:[31]],Код2)","v":0},{"$f":"COUNTIF(ПосещаемостьЗаДекабрь[[#This Row],[1]:[31]],Код3)","v":0},{"$f":"COUNTIF(ПосещаемостьЗаДекабрь[[#This Row],[1]:[31]],Код4)","v":0},{"$f":"SUM(ПосещаемостьЗаДекабрь[[#This Row],[У]:[Н]])","v":0}]
[null,null,"Общее количество пропущенных дней",{"$f":"COUNTIF(ПосещаемостьЗаДекабрь[1],\"Н\")+COUNTIF(ПосещаемостьЗаДекабрь[1],\"У\")","v":0},{"$f":"COUNTIF(ПосещаемостьЗаДекабрь[2],\"Н\")+COUNTIF(ПосещаемостьЗаДекабрь[2],\"У\")","v":0},{"$f":"COUNTIF(ПосещаемостьЗаДекабрь[3],\"Н\")+COUNTIF(ПосещаемостьЗаДекабрь[3],\"У\")","v":0},{"$f":"COUNTIF(ПосещаемостьЗаДекабрь[4],\"Н\")+COUNTIF(ПосещаемостьЗаДекабрь[4],\"У\")","v":0},{"$f":"COUNTIF(ПосещаемостьЗаДекабрь[5],\"Н\")+COUNTIF(ПосещаемостьЗаДекабрь[5],\"У\")","v":0},{"$f":"COUNTIF(ПосещаемостьЗаДекабрь[6],\"Н\")+COUNTIF(ПосещаемостьЗаДекабрь[6],\"У\")","v":0},{"$f":"COUNTIF(ПосещаемостьЗаДекабрь[7],\"Н\")+COUNTIF(ПосещаемостьЗаДекабрь[7],\"У\")","v":0},{"$f":"COUNTIF(ПосещаемостьЗаДекабрь[8],\"Н\")+COUNTIF(ПосещаемостьЗаДекабрь[8],\"У\")","v":0},{"$f":"COUNTIF(ПосещаемостьЗаДекабрь[9],\"Н\")+COUNTIF(ПосещаемостьЗаДекабрь[9],\"У\")","v":0},{"$f":"COUNTIF(ПосещаемостьЗаДекабрь[10],\"Н\")+COUNTIF(ПосещаемостьЗаДекабрь[10],\"У\")","v":0},{"$f":"COUNTIF(ПосещаемостьЗаДекабрь[11],\"Н\")+COUNTIF(ПосещаемостьЗаДекабрь[11],\"У\")","v":0},{"$f":"COUNTIF(ПосещаемостьЗаДекабрь[12],\"Н\")+COUNTIF(ПосещаемостьЗаДекабрь[12],\"У\")","v":0},{"$f":"COUNTIF(ПосещаемостьЗаДекабрь[13],\"Н\")+COUNTIF(ПосещаемостьЗаДекабрь[13],\"У\")","v":0},{"$f":"COUNTIF(ПосещаемостьЗаДекабрь[14],\"Н\")+COUNTIF(ПосещаемостьЗаДекабрь[14],\"У\")","v":0},{"$f":"COUNTIF(ПосещаемостьЗаДекабрь[15],\"Н\")+COUNTIF(ПосещаемостьЗаДекабрь[15],\"У\")","v":0},{"$f":"COUNTIF(ПосещаемостьЗаДекабрь[16],\"Н\")+COUNTIF(ПосещаемостьЗаДекабрь[16],\"У\")","v":0},{"$f":"COUNTIF(ПосещаемостьЗаДекабрь[17],\"Н\")+COUNTIF(ПосещаемостьЗаДекабрь[17],\"У\")","v":0},{"$f":"COUNTIF(ПосещаемостьЗаДекабрь[18],\"Н\")+COUNTIF(ПосещаемостьЗаДекабрь[18],\"У\")","v":0},{"$f":"COUNTIF(ПосещаемостьЗаДекабрь[19],\"Н\")+COUNTIF(ПосещаемостьЗаДекабрь[19],\"У\")","v":0},{"$f":"COUNTIF(ПосещаемостьЗаДекабрь[20],\"Н\")+COUNTIF(ПосещаемостьЗаДекабрь[20],\"У\")","v":0},{"$f":"COUNTIF(ПосещаемостьЗаДекабрь[21],\"Н\")+COUNTIF(ПосещаемостьЗаДекабрь[21],\"У\")","v":0},{"$f":"COUNTIF(ПосещаемостьЗаДекабрь[22],\"Н\")+COUNTIF(ПосещаемостьЗаДекабрь[22],\"У\")","v":0},{"$f":"COUNTIF(ПосещаемостьЗаДекабрь[23],\"Н\")+COUNTIF(ПосещаемостьЗаДекабрь[23],\"У\")","v":0},{"$f":"COUNTIF(ПосещаемостьЗаДекабрь[24],\"Н\")+COUNTIF(ПосещаемостьЗаДекабрь[24],\"У\")","v":0},{"$f":"COUNTIF(ПосещаемостьЗаДекабрь[25],\"Н\")+COUNTIF(ПосещаемостьЗаДекабрь[25],\"У\")","v":0},{"$f":"COUNTIF(ПосещаемостьЗаДекабрь[26],\"Н\")+COUNTIF(ПосещаемостьЗаДекабрь[26],\"У\")","v":0},{"$f":"COUNTIF(ПосещаемостьЗаДекабрь[27],\"Н\")+COUNTIF(ПосещаемостьЗаДекабрь[27],\"У\")","v":0},{"$f":"COUNTIF(ПосещаемостьЗаДекабрь[28],\"Н\")+COUNTIF(ПосещаемостьЗаДекабрь[28],\"У\")","v":0},{"$f":"COUNTIF(ПосещаемостьЗаДекабрь[29],\"Н\")+COUNTIF(ПосещаемостьЗаДекабрь[29],\"У\")","v":0},{"$f":"COUNTIF(ПосещаемостьЗаДекабрь[30],\"Н\")+COUNTIF(ПосещаемостьЗаДекабрь[30],\"У\")","v":0},{"$f":"COUNTIF(ПосещаемостьЗаДекабрь[31],\"Н\")+COUNTIF(ПосещаемостьЗаДекабрь[31],\"У\")","v":0},{"$f":"SUBTOTAL(109,ПосещаемостьЗаДекабрь[О])","v":0},{"$f":"SUBTOTAL(109,ПосещаемостьЗаДекабрь[У])","v":0},{"$f":"SUBTOTAL(109,ПосещаемостьЗаДекабрь[Н])","v":0},{"$f":"SUBTOTAL(109,ПосещаемостьЗаДекабрь[П])","v":0},{"$f":"SUBTOTAL(109,ПосещаемостьЗаДекабрь[Количество пропущенных дней])","v":0}]

{"sheet":"Январь","index":7,"n_rows":12,"n_cols":39,"rows_kept":12,"merged":[[4,34,4,38]]}
["ТАБЕЛЬ ПОСЕЩАЕМОСТИ ЗАНЯТИЙ СТУДЕНТОМ",{"$nulls":36},"Начало учебного года:",{"$f":"ГодКалендаря","v":2012}]
[]
[null,null,{"$f":"ЦветоваяКодировкаТекст","v":"ЦВЕТОВАЯ КОДИРОВКА "},{"$f":"Код1","v":"О"},{"$f":"Код1Текст","v":"Опоздал"},null,null,{"$f":"Код2","v":"У"},{"$f":"Код2Текст","v":"Отсутствовал по уважительной причине"},null,null,{"$f":"Код3","v":"Н"},{"$f":"Код3Текст","v":"Отсутствовал по неуважительной причине"},null,null,{"$f":"Код4","v":"П"},{"$f":"Код4Текст","v":"Присутствовал"},null,null,{"$f":"Код5","v":"С"},{"$f":"Код5Текст","v":"Свободный день"}]
[]
[null,{"$f":"DATE(ГодКалендаря+1,1,1)","v":"2013-01-01"},null,{"$f":"TEXT(WEEKDAY(DATE(ГодКалендаря+1,1,1),1),\"aaa\")","v":"Вт"},{"$f":"TEXT(WEEKDAY(DATE(ГодКалендаря+1,1,2),1),\"aaa\")","v":"Ср"},{"$f":"TEXT(WEEKDAY(DATE(ГодКалендаря+1,1,3),1),\"aaa\")","v":"Чт"},{"$f":"TEXT(WEEKDAY(DATE(ГодКалендаря+1,1,4),1),\"aaa\")","v":"Пт"},{"$f":"TEXT(WEEKDAY(DATE(ГодКалендаря+1,1,5),1),\"aaa\")","v":"Сб"},{"$f":"TEXT(WEEKDAY(DATE(ГодКалендаря+1,1,6),1),\"aaa\")","v":"Вс"},{"$f":"TEXT(WEEKDAY(DATE(ГодКалендаря+1,1,7),1),\"aaa\")","v":"Пн"},{"$f":"TEXT(WEEKDAY(DATE(ГодКалендаря+1,1,8),1),\"aaa\")","v":"Вт"},{"$f":"TEXT(WEEKDAY(DATE(ГодКалендаря+1,1,9),1),\"aaa\")","v":"Ср"},{"$f":"TEXT(WEEKDAY(DATE(ГодКалендаря+1,1,10),1),\"aaa\")","v":"Чт"},{"$f":"TEXT(WEEKDAY(DATE(ГодКалендаря+1,1,11),1),\"aaa\")","v":"Пт"},{"$f":"TEXT(WEEKDAY(DATE(ГодКалендаря+1,1,12),1),\"aaa\")","v":"Сб"},{"$f":"TEXT(WEEKDAY(DATE(ГодКалендаря+1,1,13),1),\"aaa\")","v":"Вс"},{"$f":"TEXT(WEEKDAY(DATE(ГодКалендаря+1,1,14),1),\"aaa\")","v":"Пн"},{"$f":"TEXT(WEEKDAY(DATE(ГодКалендаря+1,1,15),1),\"aaa\")","v":"Вт"},{"$f":"TEXT(WEEKDAY(DATE(ГодКалендаря+1,1,16),1),\"aaa\")","v":"Ср"},{"$f":"TEXT(WEEKDAY(DATE(ГодКалендаря+1,1,17),1),\"aaa\")","v":"Чт"},{"$f":"TEXT(WEEKDAY(DATE(ГодКалендаря+1,1,18),1),\"aaa\")","v":"Пт"},{"$f":"TEXT(WEEKDAY(DATE(ГодКалендаря+1,1,19),1),\"aaa\")","v":"Сб"},{"$f":"TEXT(WEEKDAY(DATE(ГодКалендаря+1,1,20),1),\"aaa\")","v":"Вс"},{"$f":"TEXT(WEEKDAY(DATE(ГодКалендаря+1,1,21),1),\"aaa\")","v":"Пн"},{"$f":"TEXT(WEEKDAY(DATE(ГодКалендаря+1,1,22),1),\"aaa\")","v":"Вт"},{"$f":"TEXT(WEEKDAY(DATE(ГодКалендаря+1,1,23),1),\"aaa\")","v":"Ср"},{"$f":"TEXT(WEEKDAY(DATE(ГодКалендаря+1,1,24),1),\"aaa\")","v":"Чт"},{"$f":"TEXT(WEEKDAY(DATE(ГодКалендаря+1,1,25),1),\"aaa\")","v":"Пт"},{"$f":"TEXT(WEEKDAY(DATE(ГодКалендаря+1,1,26),1),\"aaa\")","v":"Сб"},{"$f":"TEXT(WEEKDAY(DATE(ГодКалендаря+1,1,27),1),\"aaa\")","v":"Вс"},{"$f":"TEXT(WEEKDAY(DATE(ГодКалендаря+1,1,28),1),\"aaa\")","v":"Пн"},{"$f":"TEXT(WEEKDAY(DATE(ГодКалендаря+1,1,29),1),\"aaa\")","v":"Вт"},{"$f":"TEXT(WEEKDAY(DATE(ГодКалендаря+1,1,30),1),\"aaa\")","v":"Ср"},{"$f":"TEXT(WEEKDAY(DATE(ГодКалендаря+1,1,31),1),\"aaa\")","v":"Чт"},"Итого"]
[null,"Идентификатор студента","Имя студента","1","2","3","4","5","6","7","8","9","10","11","12","13","14","15","16","17","18","19","20","21","22","23","24","25","26","27","28","29","30","31","О","У","Н","П","Количество пропущенных дней"]
[null,null,{"$f":"IFERROR(VLOOKUP(ПосещаемостьЗаЯнварь[[#This Row],[Идентификатор студента]],СписокСтудентов[],18,FALSE),\"\")","v":""},{"$nulls":31},{"$f":"COUNTIF(ПосещаемостьЗаЯнварь[[#This Row],[1]:[31]],Код1)","v":0},{"$f":"COUNTIF(ПосещаемостьЗаЯнварь[[#This Row],[1]:[31]],Код2)","v":0},{"$f":"COUNTIF(ПосещаемостьЗаЯнварь[[#This Row],[1]:[31]],Код3)","v":0},{"$f":"COUNTIF(ПосещаемостьЗаЯнварь[[#This Row],[1]:[31]],Код4)","v":0},{"$f":"SUM(ПосещаемостьЗаЯнварь[[#This Row],[У]:[Н]])","v":0}]
[null,null,{"$f":"IFERROR(VLOOKUP(ПосещаемостьЗаЯнварь[[#This Row],[Идентификатор студента]],СписокСтудентов[],18,FALSE),\"\")","v":""},{"$nulls":31},{"$f":"COUNTIF(ПосещаемостьЗаЯнварь[[#This Row],[1]:[31]],Код1)","v":0},{"$f":"COUNTIF(ПосещаемостьЗаЯнварь[[#This Row],[1]:[31]],Код2)","v":0},{"$f":"COUNTIF(ПосещаемостьЗаЯнварь[[#This Row],[1]:[31]],Код3)","v":0},{"$f":"COUNTIF(ПосещаемостьЗаЯнварь[[#This Row],[1]:[31]],Код4)","v":0},{"$f":"SUM(ПосещаемостьЗаЯнварь[[#This Row],[У]:[Н]])","v":0}]
[null,null,{"$f":"IFERROR(VLOOKUP(ПосещаемостьЗаЯнварь[[#This Row],[Идентификатор студента]],СписокСтудентов[],18,FALSE),\"\")","v":""},{"$nulls":31},{"$f":"COUNTIF(ПосещаемостьЗаЯнварь[[#This Row],[1]:[31]],Код1)","v":0},{"$f":"COUNTIF(ПосещаемостьЗаЯнварь[[#This Row],[1]:[31]],Код2)","v":0},{"$f":"COUNTIF(ПосещаемостьЗаЯнварь[[#This Row],[1]:[31]],Код3)","v":0},{"$f":"COUNTIF(ПосещаемостьЗаЯнварь[[#This Row],[1]:[31]],Код4)","v":0},{"$f":"SUM(ПосещаемостьЗаЯнварь[[#This Row],[У]:[Н]])","v":0}]
[null,null,{"$f":"IFERROR(VLOOKUP(ПосещаемостьЗаЯнварь[[#This Row],[Идентификатор студента]],СписокСтудентов[],18,FALSE),\"\")","v":""},{"$nulls":31},{"$f":"COUNTIF(ПосещаемостьЗаЯнварь[[#This Row],[1]:[31]],Код1)","v":0},{"$f":"COUNTIF(ПосещаемостьЗаЯнварь[[#This Row],[1]:[31]],Код2)","v":0},{"$f":"COUNTIF(ПосещаемостьЗаЯнварь[[#This Row],[1]:[31]],Код3)","v":0},{"$f":"COUNTIF(ПосещаемостьЗаЯнварь[[#This Row],[1]:[31]],Код4)","v":0},{"$f":"SUM(ПосещаемостьЗаЯнварь[[#This Row],[У]:[Н]])","v":0}]
[null,null,{"$f":"IFERROR(VLOOKUP(ПосещаемостьЗаЯнварь[[#This Row],[Идентификатор студента]],СписокСтудентов[],18,FALSE),\"\")","v":""},{"$nulls":31},{"$f":"COUNTIF(ПосещаемостьЗаЯнварь[[#This Row],[1]:[31]],Код1)","v":0},{"$f":"COUNTIF(ПосещаемостьЗаЯнварь[[#This Row],[1]:[31]],Код2)","v":0},{"$f":"COUNTIF(ПосещаемостьЗаЯнварь[[#This Row],[1]:[31]],Код3)","v":0},{"$f":"COUNTIF(ПосещаемостьЗаЯнварь[[#This Row],[1]:[31]],Код4)","v":0},{"$f":"SUM(ПосещаемостьЗаЯнварь[[#This Row],[У]:[Н]])","v":0}]
[null,null,"Общее количество пропущенных дней",{"$f":"COUNTIF(ПосещаемостьЗаЯнварь[1],\"Н\")+COUNTIF(ПосещаемостьЗаЯнварь[1],\"У\")","v":0},{"$f":"COUNTIF(ПосещаемостьЗаЯнварь[2],\"Н\")+COUNTIF(ПосещаемостьЗаЯнварь[2],\"У\")","v":0},{"$f":"COUNTIF(ПосещаемостьЗаЯнварь[3],\"Н\")+COUNTIF(ПосещаемостьЗаЯнварь[3],\"У\")","v":0},{"$f":"COUNTIF(ПосещаемостьЗаЯнварь[4],\"Н\")+COUNTIF(ПосещаемостьЗаЯнварь[4],\"У\")","v":0},{"$f":"COUNTIF(ПосещаемостьЗаЯнварь[5],\"Н\")+COUNTIF(ПосещаемостьЗаЯнварь[5],\"У\")","v":0},{"$f":"COUNTIF(ПосещаемостьЗаЯнварь[6],\"Н\")+COUNTIF(ПосещаемостьЗаЯнварь[6],\"У\")","v":0},{"$f":"COUNTIF(ПосещаемостьЗаЯнварь[7],\"Н\")+COUNTIF(ПосещаемостьЗаЯнварь[7],\"У\")","v":0},{"$f":"COUNTIF(ПосещаемостьЗаЯнварь[8],\"Н\")+COUNTIF(ПосещаемостьЗаЯнварь[8],\"У\")","v":0},{"$f":"COUNTIF(ПосещаемостьЗаЯнварь[9],\"Н\")+COUNTIF(ПосещаемостьЗаЯнварь[9],\"У\")","v":0},{"$f":"COUNTIF(ПосещаемостьЗаЯнварь[10],\"Н\")+COUNTIF(ПосещаемостьЗаЯнварь[10],\"У\")","v":0},{"$f":"COUNTIF(ПосещаемостьЗаЯнварь[11],\"Н\")+COUNTIF(ПосещаемостьЗаЯнварь[11],\"У\")","v":0},{"$f":"COUNTIF(ПосещаемостьЗаЯнварь[12],\"Н\")+COUNTIF(ПосещаемостьЗаЯнварь[12],\"У\")","v":0},{"$f":"COUNTIF(ПосещаемостьЗаЯнварь[13],\"Н\")+COUNTIF(ПосещаемостьЗаЯнварь[13],\"У\")","v":0},{"$f":"COUNTIF(ПосещаемостьЗаЯнварь[14],\"Н\")+COUNTIF(ПосещаемостьЗаЯнварь[14],\"У\")","v":0},{"$f":"COUNTIF(ПосещаемостьЗаЯнварь[15],\"Н\")+COUNTIF(ПосещаемостьЗаЯнварь[15],\"У\")","v":0},{"$f":"COUNTIF(ПосещаемостьЗаЯнварь[16],\"Н\")+COUNTIF(ПосещаемостьЗаЯнварь[16],\"У\")","v":0},{"$f":"COUNTIF(ПосещаемостьЗаЯнварь[17],\"Н\")+COUNTIF(ПосещаемостьЗаЯнварь[17],\"У\")","v":0},{"$f":"COUNTIF(ПосещаемостьЗаЯнварь[18],\"Н\")+COUNTIF(ПосещаемостьЗаЯнварь[18],\"У\")","v":0},{"$f":"COUNTIF(ПосещаемостьЗаЯнварь[19],\"Н\")+COUNTIF(ПосещаемостьЗаЯнварь[19],\"У\")","v":0},{"$f":"COUNTIF(ПосещаемостьЗаЯнварь[20],\"Н\")+COUNTIF(ПосещаемостьЗаЯнварь[20],\"У\")","v":0},{"$f":"COUNTIF(ПосещаемостьЗаЯнварь[21],\"Н\")+COUNTIF(ПосещаемостьЗаЯнварь[21],\"У\")","v":0},{"$f":"COUNTIF(ПосещаемостьЗаЯнварь[22],\"Н\")+COUNTIF(ПосещаемостьЗаЯнварь[22],\"У\")","v":0},{"$f":"COUNTIF(ПосещаемостьЗаЯнварь[23],\"Н\")+COUNTIF(ПосещаемостьЗаЯнварь[23],\"У\")","v":0},{"$f":"COUNTIF(ПосещаемостьЗаЯнварь[24],\"Н\")+COUNTIF(ПосещаемостьЗаЯнварь[24],\"У\")","v":0},{"$f":"COUNTIF(ПосещаемостьЗаЯнварь[25],\"Н\")+COUNTIF(ПосещаемостьЗаЯнварь[25],\"У\")","v":0},{"$f":"COUNTIF(ПосещаемостьЗаЯнварь[26],\"Н\")+COUNTIF(ПосещаемостьЗаЯнварь[26],\"У\")","v":0},{"$f":"COUNTIF(ПосещаемостьЗаЯнварь[27],\"Н\")+COUNTIF(ПосещаемостьЗаЯнварь[27],\"У\")","v":0},{"$f":"COUNTIF(ПосещаемостьЗаЯнварь[28],\"Н\")+COUNTIF(ПосещаемостьЗаЯнварь[28],\"У\")","v":0},{"$f":"COUNTIF(ПосещаемостьЗаЯнварь[29],\"Н\")+COUNTIF(ПосещаемостьЗаЯнварь[29],\"У\")","v":0},null,null,{"$f":"SUBTOTAL(109,ПосещаемостьЗаЯнварь[О])","v":0},{"$f":"SUBTOTAL(109,ПосещаемостьЗаЯнварь[У])","v":0},{"$f":"SUBTOTAL(109,ПосещаемостьЗаЯнварь[Н])","v":0},{"$f":"SUBTOTAL(109,ПосещаемостьЗаЯнварь[П])","v":0},{"$f":"SUBTOTAL(109,ПосещаемостьЗаЯнварь[Количество пропущенных дней])","v":0}]

{"sheet":"Февраль","index":8,"n_rows":12,"n_cols":39,"rows_kept":12,"merged":[[4,34,4,38]]}
["ТАБЕЛЬ ПОСЕЩАЕМОСТИ ЗАНЯТИЙ СТУДЕНТОМ",{"$nulls":36},"Начало учебного года:",{"$f":"ГодКалендаря","v":2012}]
[]
[null,null,{"$f":"ЦветоваяКодировкаТекст","v":"ЦВЕТОВАЯ КОДИРОВКА "},{"$f":"Код1","v":"О"},{"$f":"Код1Текст","v":"Опоздал"},null,null,{"$f":"Код2","v":"У"},{"$f":"Код2Текст","v":"Отсутствовал по уважительной причине"},null,null,{"$f":"Код3","v":"Н"},{"$f":"Код3Текст","v":"Отсутствовал по неуважительной причине"},null,null,{"$f":"Код4","v":"П"},{"$f":"Код4Текст","v":"Присутствовал"},null,null,{"$f":"Код5","v":"С"},{"$f":"Код5Текст","v":"Свободный день"}]
[]
[null,{"$f":"DATE(ГодКалендаря+1,2,1)","v":"2013-02-01"},null,{"$f":"TEXT(WEEKDAY(DATE(ГодКалендаря+1,2,1),1),\"aaa\")","v":"Пт"},{"$f":"TEXT(WEEKDAY(DATE(ГодКалендаря+1,2,2),1),\"aaa\")","v":"Сб"},{"$f":"TEXT(WEEKDAY(DATE(ГодКалендаря+1,2,3),1),\"aaa\")","v":"Вс"},{"$f":"TEXT(WEEKDAY(DATE(ГодКалендаря+1,2,4),1),\"aaa\")","v":"Пн"},{"$f":"TEXT(WEEKDAY(DATE(ГодКалендаря+1,2,5),1),\"aaa\")","v":"Вт"},{"$f":"TEXT(WEEKDAY(DATE(ГодКалендаря+1,2,6),1),\"aaa\")","v":"Ср"},{"$f":"TEXT(WEEKDAY(DATE(ГодКалендаря+1,2,7),1),\"aaa\")","v":"Чт"},{"$f":"TEXT(WEEKDAY(DATE(ГодКалендаря+1,2,8),1),\"aaa\")","v":"Пт"},{"$f":"TEXT(WEEKDAY(DATE(ГодКалендаря+1,2,9),1),\"aaa\")","v":"Сб"},{"$f":"TEXT(WEEKDAY(DATE(ГодКалендаря+1,2,10),1),\"aaa\")","v":"Вс"},{"$f":"TEXT(WEEKDAY(DATE(ГодКалендаря+1,2,11),1),\"aaa\")","v":"Пн"},{"$f":"TEXT(WEEKDAY(DATE(ГодКалендаря+1,2,12),1),\"aaa\")","v":"Вт"},{"$f":"TEXT(WEEKDAY(DATE(ГодКалендаря+1,2,13),1),\"aaa\")","v":"Ср"},{"$f":"TEXT(WEEKDAY(DATE(ГодКалендаря+1,2,14),1),\"aaa\")","v":"Чт"},{"$f":"TEXT(WEEKDAY(DATE(ГодКалендаря+1,2,15),1),\"aaa\")","v":"Пт"},{"$f":"TEXT(WEEKDAY(DATE(ГодКалендаря+1,2,16),1),\"aaa\")","v":"Сб"},{"$f":"TEXT(WEEKDAY(DATE(ГодКалендаря+1,2,17),1),\"aaa\")","v":"Вс"},{"$f":"TEXT(WEEKDAY(DATE(ГодКалендаря+1,2,18),1),\"aaa\")","v":"Пн"},{"$f":"TEXT(WEEKDAY(DATE(ГодКалендаря+1,2,19),1),\"aaa\")","v":"Вт"},{"$f":"TEXT(WEEKDAY(DATE(ГодКалендаря+1,2,20),1),\"aaa\")","v":"Ср"},{"$f":"TEXT(WEEKDAY(DATE(ГодКалендаря+1,2,21),1),\"aaa\")","v":"Чт"},{"$f":"TEXT(WEEKDAY(DATE(ГодКалендаря+1,2,22),1),\"aaa\")","v":"Пт"},{"$f":"TEXT(WEEKDAY(DATE(ГодКалендаря+1,2,23),1),\"aaa\")","v":"Сб"},{"$f":"TEXT(WEEKDAY(DATE(ГодКалендаря+1,2,24),1),\"aaa\")","v":"Вс"},{"$f":"TEXT(WEEKDAY(DATE(ГодКалендаря+1,2,25),1),\"aaa\")","v":"Пн"},{"$f":"TEXT(WEEKDAY(DATE(ГодКалендаря+1,2,26),1),\"aaa\")","v":"Вт"},{"$f":"TEXT(WEEKDAY(DATE(ГодКалендаря+1,2,27),1),\"aaa\")","v":"Ср"},{"$f":"TEXT(WEEKDAY(DATE(ГодКалендаря+1,2,28),1),\"aaa\")","v":"Чт"},{"$f":"TEXT(WEEKDAY(DATE(ГодКалендаря+1,2,29),1),\"aaa\")","v":"Пт"},null,null,"Итого"]
[null,"Идентификатор студента","Имя студента","1","2","3","4","5","6","7","8","9","10","11","12","13","14","15","16","17","18","19","20","21","22","23","24","25","26","27","28","29","30","31","О","У","Н","П","Количество пропущенных дней"]
[null,null,{"$f":"IFERROR(VLOOKUP(ПосещаемостьЗаФевраль[[#This Row],[Идентификатор студента]],СписокСтудентов[],18,FALSE),\"\")","v":""},{"$nulls":31},{"$f":"COUNTIF(ПосещаемостьЗаФевраль[[#This Row],[1]:[31]],Код1)","v":0},{"$f":"COUNTIF(ПосещаемостьЗаФевраль[[#This Row],[1]:[31]],Код2)","v":0},{"$f":"COUNTIF(ПосещаемостьЗаФевраль[[#This Row],[1]:[31]],Код3)","v":0},{"$f":"COUNTIF(ПосещаемостьЗаФевраль[[#This Row],[1]:[31]],Код4)","v":0},{"$f":"SUM(ПосещаемостьЗаФевраль[[#This Row],[У]:[Н]])","v":0}]
[null,null,{"$f":"IFERROR(VLOOKUP(ПосещаемостьЗаФевраль[[#This Row],[Идентификатор студента]],СписокСтудентов[],18,FALSE),\"\")","v":""},{"$nulls":31},{"$f":"COUNTIF(ПосещаемостьЗаФевраль[[#This Row],[1]:[31]],Код1)","v":0},{"$f":"COUNTIF(ПосещаемостьЗаФевраль[[#This Row],[1]:[31]],Код2)","v":0},{"$f":"COUNTIF(ПосещаемостьЗаФевраль[[#This Row],[1]:[31]],Код3)","v":0},{"$f":"COUNTIF(ПосещаемостьЗаФевраль[[#This Row],[1]:[31]],Код4)","v":0},{"$f":"SUM(ПосещаемостьЗаФевраль[[#This Row],[У]:[Н]])","v":0}]
[null,null,{"$f":"IFERROR(VLOOKUP(ПосещаемостьЗаФевраль[[#This Row],[Идентификатор студента]],СписокСтудентов[],18,FALSE),\"\")","v":""},{"$nulls":31},{"$f":"COUNTIF(ПосещаемостьЗаФевраль[[#This Row],[1]:[31]],Код1)","v":0},{"$f":"COUNTIF(ПосещаемостьЗаФевраль[[#This Row],[1]:[31]],Код2)","v":0},{"$f":"COUNTIF(ПосещаемостьЗаФевраль[[#This Row],[1]:[31]],Код3)","v":0},{"$f":"COUNTIF(ПосещаемостьЗаФевраль[[#This Row],[1]:[31]],Код4)","v":0},{"$f":"SUM(ПосещаемостьЗаФевраль[[#This Row],[У]:[Н]])","v":0}]
[null,null,{"$f":"IFERROR(VLOOKUP(ПосещаемостьЗаФевраль[[#This Row],[Идентификатор студента]],СписокСтудентов[],18,FALSE),\"\")","v":""},{"$nulls":31},{"$f":"COUNTIF(ПосещаемостьЗаФевраль[[#This Row],[1]:[31]],Код1)","v":0},{"$f":"COUNTIF(ПосещаемостьЗаФевраль[[#This Row],[1]:[31]],Код2)","v":0},{"$f":"COUNTIF(ПосещаемостьЗаФевраль[[#This Row],[1]:[31]],Код3)","v":0},{"$f":"COUNTIF(ПосещаемостьЗаФевраль[[#This Row],[1]:[31]],Код4)","v":0},{"$f":"SUM(ПосещаемостьЗаФевраль[[#This Row],[У]:[Н]])","v":0}]
[null,null,{"$f":"IFERROR(VLOOKUP(ПосещаемостьЗаФевраль[[#This Row],[Идентификатор студента]],СписокСтудентов[],18,FALSE),\"\")","v":""},{"$nulls":31},{"$f":"COUNTIF(ПосещаемостьЗаФевраль[[#This Row],[1]:[31]],Код1)","v":0},{"$f":"COUNTIF(ПосещаемостьЗаФевраль[[#This Row],[1]:[31]],Код2)","v":0},{"$f":"COUNTIF(ПосещаемостьЗаФевраль[[#This Row],[1]:[31]],Код3)","v":0},{"$f":"COUNTIF(ПосещаемостьЗаФевраль[[#This Row],[1]:[31]],Код4)","v":0},{"$f":"SUM(ПосещаемостьЗаФевраль[[#This Row],[У]:[Н]])","v":0}]
[null,null,"Общее количество пропущенных дней",{"$f":"COUNTIF(ПосещаемостьЗаФевраль[1],\"Н\")+COUNTIF(ПосещаемостьЗаФевраль[1],\"У\")","v":0},{"$f":"COUNTIF(ПосещаемостьЗаФевраль[2],\"Н\")+COUNTIF(ПосещаемостьЗаФевраль[2],\"У\")","v":0},{"$f":"COUNTIF(ПосещаемостьЗаФевраль[3],\"Н\")+COUNTIF(ПосещаемостьЗаФевраль[3],\"У\")","v":0},{"$f":"COUNTIF(ПосещаемостьЗаФевраль[4],\"Н\")+COUNTIF(ПосещаемостьЗаФевраль[4],\"У\")","v":0},{"$f":"COUNTIF(ПосещаемостьЗаФевраль[5],\"Н\")+COUNTIF(ПосещаемостьЗаФевраль[5],\"У\")","v":0},{"$f":"COUNTIF(ПосещаемостьЗаФевраль[6],\"Н\")+COUNTIF(ПосещаемостьЗаФевраль[6],\"У\")","v":0},{"$f":"COUNTIF(ПосещаемостьЗаФевраль[7],\"Н\")+COUNTIF(ПосещаемостьЗаФевраль[7],\"У\")","v":0},{"$f":"COUNTIF(ПосещаемостьЗаФевраль[8],\"Н\")+COUNTIF(ПосещаемостьЗаФевраль[8],\"У\")","v":0},{"$f":"COUNTIF(ПосещаемостьЗаФевраль[9],\"Н\")+COUNTIF(ПосещаемостьЗаФевраль[9],\"У\")","v":0},{"$f":"COUNTIF(ПосещаемостьЗаФевраль[10],\"Н\")+COUNTIF(ПосещаемостьЗаФевраль[10],\"У\")","v":0},{"$f":"COUNTIF(ПосещаемостьЗаФевраль[11],\"Н\")+COUNTIF(ПосещаемостьЗаФевраль[11],\"У\")","v":0},{"$f":"COUNTIF(ПосещаемостьЗаФевраль[12],\"Н\")+COUNTIF(ПосещаемостьЗаФевраль[12],\"У\")","v":0},{"$f":"COUNTIF(ПосещаемостьЗаФевраль[13],\"Н\")+COUNTIF(ПосещаемостьЗаФевраль[13],\"У\")","v":0},{"$f":"COUNTIF(ПосещаемостьЗаФевраль[14],\"Н\")+COUNTIF(ПосещаемостьЗаФевраль[14],\"У\")","v":0},{"$f":"COUNTIF(ПосещаемостьЗаФевраль[15],\"Н\")+COUNTIF(ПосещаемостьЗаФевраль[15],\"У\")","v":0},{"$f":"COUNTIF(ПосещаемостьЗаФевраль[16],\"Н\")+COUNTIF(ПосещаемостьЗаФевраль[16],\"У\")","v":0},{"$f":"COUNTIF(ПосещаемостьЗаФевраль[17],\"Н\")+COUNTIF(ПосещаемостьЗаФевраль[17],\"У\")","v":0},{"$f":"COUNTIF(ПосещаемостьЗаФевраль[18],\"Н\")+COUNTIF(ПосещаемостьЗаФевраль[18],\"У\")","v":0},{"$f":"COUNTIF(ПосещаемостьЗаФевраль[19],\"Н\")+COUNTIF(ПосещаемостьЗаФевраль[19],\"У\")","v":0},{"$f":"COUNTIF(ПосещаемостьЗаФевраль[20],\"Н\")+COUNTIF(ПосещаемостьЗаФевраль[20],\"У\")","v":0},{"$f":"COUNTIF(ПосещаемостьЗаФевраль[21],\"Н\")+COUNTIF(ПосещаемостьЗаФевраль[21],\"У\")","v":0},{"$f":"COUNTIF(ПосещаемостьЗаФевраль[22],\"Н\")+COUNTIF(ПосещаемостьЗаФевраль[22],\"У\")","v":0},{"$f":"COUNTIF(ПосещаемостьЗаФевраль[23],\"Н\")+COUNTIF(ПосещаемостьЗаФевраль[23],\"У\")","v":0},{"$f":"COUNTIF(ПосещаемостьЗаФевраль[24],\"Н\")+COUNTIF(ПосещаемостьЗаФевраль[24],\"У\")","v":0},{"$f":"COUNTIF(ПосещаемостьЗаФевраль[25],\"Н\")+COUNTIF(ПосещаемостьЗаФевраль[25],\"У\")","v":0},{"$f":"COUNTIF(ПосещаемостьЗаФевраль[26],\"Н\")+COUNTIF(ПосещаемостьЗаФевраль[26],\"У\")","v":0},{"$f":"COUNTIF(ПосещаемостьЗаФевраль[27],\"Н\")+COUNTIF(ПосещаемостьЗаФевраль[27],\"У\")","v":0},{"$f":"COUNTIF(ПосещаемостьЗаФевраль[28],\"Н\")+COUNTIF(ПосещаемостьЗаФевраль[28],\"У\")","v":0},{"$f":"COUNTIF(ПосещаемостьЗаФевраль[29],\"Н\")+COUNTIF(ПосещаемостьЗаФевраль[29],\"У\")","v":0},null,null,{"$f":"SUBTOTAL(109,ПосещаемостьЗаФевраль[О])","v":0},{"$f":"SUBTOTAL(109,ПосещаемостьЗаФевраль[У])","v":0},{"$f":"SUBTOTAL(109,ПосещаемостьЗаФевраль[Н])","v":0},{"$f":"SUBTOTAL(109,ПосещаемостьЗаФевраль[П])","v":0},{"$f":"SUBTOTAL(109,ПосещаемостьЗаФевраль[Количество пропущенных дней])","v":0}]

{"sheet":"Март","index":9,"n_rows":12,"n_cols":39,"rows_kept":12,"merged":[[4,34,4,38]]}
["ТАБЕЛЬ ПОСЕЩАЕМОСТИ ЗАНЯТИЙ СТУДЕНТОМ",{"$nulls":36},"Начало учебного года:",{"$f":"ГодКалендаря","v":2012}]
[]
[null,null,{"$f":"ЦветоваяКодировкаТекст","v":"ЦВЕТОВАЯ КОДИРОВКА "},{"$f":"Код1","v":"О"},{"$f":"Код1Текст","v":"Опоздал"},null,null,{"$f":"Код2","v":"У"},{"$f":"Код2Текст","v":"Отсутствовал по уважительной причине"},null,null,{"$f":"Код3","v":"Н"},{"$f":"Код3Текст","v":"Отсутствовал по неуважительной причине"},null,null,{"$f":"Код4","v":"П"},{"$f":"Код4Текст","v":"Присутствовал"},null,null,{"$f":"Код5","v":"С"},{"$f":"Код5Текст","v":"Свободный день"}]
[]
[null,{"$f":"DATE(ГодКалендаря+1,3,1)","v":"2013-03-01"},null,{"$f":"TEXT(WEEKDAY(DATE(ГодКалендаря+1,3,1),1),\"aaa\")","v":"Пт"},{"$f":"TEXT(WEEKDAY(DATE(ГодКалендаря+1,3,2),1),\"aaa\")","v":"Сб"},{"$f":"TEXT(WEEKDAY(DATE(ГодКалендаря+1,3,3),1),\"aaa\")","v":"Вс"},{"$f":"TEXT(WEEKDAY(DATE(ГодКалендаря+1,3,4),1),\"aaa\")","v":"Пн"},{"$f":"TEXT(WEEKDAY(DATE(ГодКалендаря+1,3,5),1),\"aaa\")","v":"Вт"},{"$f":"TEXT(WEEKDAY(DATE(ГодКалендаря+1,3,6),1),\"aaa\")","v":"Ср"},{"$f":"TEXT(WEEKDAY(DATE(ГодКалендаря+1,3,7),1),\"aaa\")","v":"Чт"},{"$f":"TEXT(WEEKDAY(DATE(ГодКалендаря+1,3,8),1),\"aaa\")","v":"Пт"},{"$f":"TEXT(WEEKDAY(DATE(ГодКалендаря+1,3,9),1),\"aaa\")","v":"Сб"},{"$f":"TEXT(WEEKDAY(DATE(ГодКалендаря+1,3,10),1),\"aaa\")","v":"Вс"},{"$f":"TEXT(WEEKDAY(DATE(ГодКалендаря+1,3,11),1),\"aaa\")","v":"Пн"},{"$f":"TEXT(WEEKDAY(DATE(ГодКалендаря+1,3,12),1),\"aaa\")","v":"Вт"},{"$f":"TEXT(WEEKDAY(DATE(ГодКалендаря+1,3,13),1),\"aaa\")","v":"Ср"},{"$f":"TEXT(WEEKDAY(DATE(ГодКалендаря+1,3,14),1),\"aaa\")","v":"Чт"},{"$f":"TEXT(WEEKDAY(DATE(ГодКалендаря+1,3,15),1),\"aaa\")","v":"Пт"},{"$f":"TEXT(WEEKDAY(DATE(ГодКалендаря+1,3,16),1),\"aaa\")","v":"Сб"},{"$f":"TEXT(WEEKDAY(DATE(ГодКалендаря+1,3,17),1),\"aaa\")","v":"Вс"},{"$f":"TEXT(WEEKDAY(DATE(ГодКалендаря+1,3,18),1),\"aaa\")","v":"Пн"},{"$f":"TEXT(WEEKDAY(DATE(ГодКалендаря+1,3,19),1),\"aaa\")","v":"Вт"},{"$f":"TEXT(WEEKDAY(DATE(ГодКалендаря+1,3,20),1),\"aaa\")","v":"Ср"},{"$f":"TEXT(WEEKDAY(DATE(ГодКалендаря+1,3,21),1),\"aaa\")","v":"Чт"},{"$f":"TEXT(WEEKDAY(DATE(ГодКалендаря+1,3,22),1),\"aaa\")","v":"Пт"},{"$f":"TEXT(WEEKDAY(DATE(ГодКалендаря+1,3,23),1),\"aaa\")","v":"Сб"},{"$f":"TEXT(WEEKDAY(DATE(ГодКалендаря+1,3,24),1),\"aaa\")","v":"Вс"},{"$f":"TEXT(WEEKDAY(DATE(ГодКалендаря+1,3,25),1),\"aaa\")","v":"Пн"},{"$f":"TEXT(WEEKDAY(DATE(ГодКалендаря+1,3,26),1),\"aaa\")","v":"Вт"},{"$f":"TEXT(WEEKDAY(DATE(ГодКалендаря+1,3,27),1),\"aaa\")","v":"Ср"},{"$f":"TEXT(WEEKDAY(DATE(ГодКалендаря+1,3,28),1),\"aaa\")","v":"Чт"},{"$f":"TEXT(WEEKDAY(DATE(ГодКалендаря+1,3,29),1),\"aaa\")","v":"Пт"},{"$f":"TEXT(WEEKDAY(DATE(ГодКалендаря+1,3,30),1),\"aaa\")","v":"Сб"},{"$f":"TEXT(WEEKDAY(DATE(ГодКалендаря+1,3,31),1),\"aaa\")","v":"Вс"},"Итого"]
[null,"Идентификатор студента","Имя студента","1","2","3","4","5","6","7","8","9","10","11","12","13","14","15","16","17","18","19","20","21","22","23","24","25","26","27","28","29","30","31","О","У","Н","П","Количество пропущенных дней"]
[null,null,{"$f":"IFERROR(VLOOKUP(ПосещаемостьЗаМарт[[#This Row],[Идентификатор студента]],СписокСтудентов[],18,FALSE),\"\")","v":""},{"$nulls":31},{"$f":"COUNTIF(ПосещаемостьЗаМарт[[#This Row],[1]:[31]],Код1)","v":0},{"$f":"COUNTIF(ПосещаемостьЗаМарт[[#This Row],[1]:[31]],Код2)","v":0},{"$f":"COUNTIF(ПосещаемостьЗаМарт[[#This Row],[1]:[31]],Код3)","v":0},{"$f":"COUNTIF(ПосещаемостьЗаМарт[[#This Row],[1]:[31]],Код4)","v":0},{"$f":"SUM(ПосещаемостьЗаМарт[[#This Row],[У]:[Н]])","v":0}]
[null,null,{"$f":"IFERROR(VLOOKUP(ПосещаемостьЗаМарт[[#This Row],[Идентификатор студента]],СписокСтудентов[],18,FALSE),\"\")","v":""},{"$nulls":31},{"$f":"COUNTIF(ПосещаемостьЗаМарт[[#This Row],[1]:[31]],Код1)","v":0},{"$f":"COUNTIF(ПосещаемостьЗаМарт[[#This Row],[1]:[31]],Код2)","v":0},{"$f":"COUNTIF(ПосещаемостьЗаМарт[[#This Row],[1]:[31]],Код3)","v":0},{"$f":"COUNTIF(ПосещаемостьЗаМарт[[#This Row],[1]:[31]],Код4)","v":0},{"$f":"SUM(ПосещаемостьЗаМарт[[#This Row],[У]:[Н]])","v":0}]
[null,null,{"$f":"IFERROR(VLOOKUP(ПосещаемостьЗаМарт[[#This Row],[Идентификатор студента]],СписокСтудентов[],18,FALSE),\"\")","v":""},{"$nulls":31},{"$f":"COUNTIF(ПосещаемостьЗаМарт[[#This Row],[1]:[31]],Код1)","v":0},{"$f":"COUNTIF(ПосещаемостьЗаМарт[[#This Row],[1]:[31]],Код2)","v":0},{"$f":"COUNTIF(ПосещаемостьЗаМарт[[#This Row],[1]:[31]],Код3)","v":0},{"$f":"COUNTIF(ПосещаемостьЗаМарт[[#This Row],[1]:[31]],Код4)","v":0},{"$f":"SUM(ПосещаемостьЗаМарт[[#This Row],[У]:[Н]])","v":0}]
[null,null,{"$f":"IFERROR(VLOOKUP(ПосещаемостьЗаМарт[[#This Row],[Идентификатор студента]],СписокСтудентов[],18,FALSE),\"\")","v":""},{"$nulls":31},{"$f":"COUNTIF(ПосещаемостьЗаМарт[[#This Row],[1]:[31]],Код1)","v":0},{"$f":"COUNTIF(ПосещаемостьЗаМарт[[#This Row],[1]:[31]],Код2)","v":0},{"$f":"COUNTIF(ПосещаемостьЗаМарт[[#This Row],[1]:[31]],Код3)","v":0},{"$f":"COUNTIF(ПосещаемостьЗаМарт[[#This Row],[1]:[31]],Код4)","v":0},{"$f":"SUM(ПосещаемостьЗаМарт[[#This Row],[У]:[Н]])","v":0}]
[null,null,{"$f":"IFERROR(VLOOKUP(ПосещаемостьЗаМарт[[#This Row],[Идентификатор студента]],СписокСтудентов[],18,FALSE),\"\")","v":""},{"$nulls":31},{"$f":"COUNTIF(ПосещаемостьЗаМарт[[#This Row],[1]:[31]],Код1)","v":0},{"$f":"COUNTIF(ПосещаемостьЗаМарт[[#This Row],[1]:[31]],Код2)","v":0},{"$f":"COUNTIF(ПосещаемостьЗаМарт[[#This Row],[1]:[31]],Код3)","v":0},{"$f":"COUNTIF(ПосещаемостьЗаМарт[[#This Row],[1]:[31]],Код4)","v":0},{"$f":"SUM(ПосещаемостьЗаМарт[[#This Row],[У]:[Н]])","v":0}]
[null,null,"Общее количество пропущенных дней",{"$f":"COUNTIF(ПосещаемостьЗаМарт[1],\"Н\")+COUNTIF(ПосещаемостьЗаМарт[1],\"У\")","v":0},{"$f":"COUNTIF(ПосещаемостьЗаМарт[2],\"Н\")+COUNTIF(ПосещаемостьЗаМарт[2],\"У\")","v":0},{"$f":"COUNTIF(ПосещаемостьЗаМарт[3],\"Н\")+COUNTIF(ПосещаемостьЗаМарт[3],\"У\")","v":0},{"$f":"COUNTIF(ПосещаемостьЗаМарт[4],\"Н\")+COUNTIF(ПосещаемостьЗаМарт[4],\"У\")","v":0},{"$f":"COUNTIF(ПосещаемостьЗаМарт[5],\"Н\")+COUNTIF(ПосещаемостьЗаМарт[5],\"У\")","v":0},{"$f":"COUNTIF(ПосещаемостьЗаМарт[6],\"Н\")+COUNTIF(ПосещаемостьЗаМарт[6],\"У\")","v":0},{"$f":"COUNTIF(ПосещаемостьЗаМарт[7],\"Н\")+COUNTIF(ПосещаемостьЗаМарт[7],\"У\")","v":0},{"$f":"COUNTIF(ПосещаемостьЗаМарт[8],\"Н\")+COUNTIF(ПосещаемостьЗаМарт[8],\"У\")","v":0},{"$f":"COUNTIF(ПосещаемостьЗаМарт[9],\"Н\")+COUNTIF(ПосещаемостьЗаМарт[9],\"У\")","v":0},{"$f":"COUNTIF(ПосещаемостьЗаМарт[10],\"Н\")+COUNTIF(ПосещаемостьЗаМарт[10],\"У\")","v":0},{"$f":"COUNTIF(ПосещаемостьЗаМарт[11],\"Н\")+COUNTIF(ПосещаемостьЗаМарт[11],\"У\")","v":0},{"$f":"COUNTIF(ПосещаемостьЗаМарт[12],\"Н\")+COUNTIF(ПосещаемостьЗаМарт[12],\"У\")","v":0},{"$f":"COUNTIF(ПосещаемостьЗаМарт[13],\"Н\")+COUNTIF(ПосещаемостьЗаМарт[13],\"У\")","v":0},{"$f":"COUNTIF(ПосещаемостьЗаМарт[14],\"Н\")+COUNTIF(ПосещаемостьЗаМарт[14],\"У\")","v":0},{"$f":"COUNTIF(ПосещаемостьЗаМарт[15],\"Н\")+COUNTIF(ПосещаемостьЗаМарт[15],\"У\")","v":0},{"$f":"COUNTIF(ПосещаемостьЗаМарт[16],\"Н\")+COUNTIF(ПосещаемостьЗаМарт[16],\"У\")","v":0},{"$f":"COUNTIF(ПосещаемостьЗаМарт[17],\"Н\")+COUNTIF(ПосещаемостьЗаМарт[17],\"У\")","v":0},{"$f":"COUNTIF(ПосещаемостьЗаМарт[18],\"Н\")+COUNTIF(ПосещаемостьЗаМарт[18],\"У\")","v":0},{"$f":"COUNTIF(ПосещаемостьЗаМарт[19],\"Н\")+COUNTIF(ПосещаемостьЗаМарт[19],\"У\")","v":0},{"$f":"COUNTIF(ПосещаемостьЗаМарт[20],\"Н\")+COUNTIF(ПосещаемостьЗаМарт[20],\"У\")","v":0},{"$f":"COUNTIF(ПосещаемостьЗаМарт[21],\"Н\")+COUNTIF(ПосещаемостьЗаМарт[21],\"У\")","v":0},{"$f":"COUNTIF(ПосещаемостьЗаМарт[22],\"Н\")+COUNTIF(ПосещаемостьЗаМарт[22],\"У\")","v":0},{"$f":"COUNTIF(ПосещаемостьЗаМарт[23],\"Н\")+COUNTIF(ПосещаемостьЗаМарт[23],\"У\")","v":0},{"$f":"COUNTIF(ПосещаемостьЗаМарт[24],\"Н\")+COUNTIF(ПосещаемостьЗаМарт[24],\"У\")","v":0},{"$f":"COUNTIF(ПосещаемостьЗаМарт[25],\"Н\")+COUNTIF(ПосещаемостьЗаМарт[25],\"У\")","v":0},{"$f":"COUNTIF(ПосещаемостьЗаМарт[26],\"Н\")+COUNTIF(ПосещаемостьЗаМарт[26],\"У\")","v":0},{"$f":"COUNTIF(ПосещаемостьЗаМарт[27],\"Н\")+COUNTIF(ПосещаемостьЗаМарт[27],\"У\")","v":0},{"$f":"COUNTIF(ПосещаемостьЗаМарт[28],\"Н\")+COUNTIF(ПосещаемостьЗаМарт[28],\"У\")","v":0},{"$f":"COUNTIF(ПосещаемостьЗаМарт[29],\"Н\")+COUNTIF(ПосещаемостьЗаМарт[29],\"У\")","v":0},null,null,{"$f":"SUBTOTAL(109,ПосещаемостьЗаМарт[О])","v":0},{"$f":"SUBTOTAL(109,ПосещаемостьЗаМарт[У])","v":0},{"$f":"SUBTOTAL(109,ПосещаемостьЗаМарт[Н])","v":0},{"$f":"SUBTOTAL(109,ПосещаемостьЗаМарт[П])","v":0},{"$f":"SUBTOTAL(109,ПосещаемостьЗаМарт[Количество пропущенных дней])","v":0}]

{"sheet":"Апрель","index":10,"n_rows":12,"n_cols":39,"rows_kept":12,"merged":[[4,34,4,38]]}
["ТАБЕЛЬ ПОСЕЩАЕМОСТИ ЗАНЯТИЙ СТУДЕНТОМ",{"$nulls":36},"Начало учебного года:",{"$f":"ГодКалендаря","v":2012}]
[]
[null,null,{"$f":"ЦветоваяКодировкаТекст","v":"ЦВЕТОВАЯ КОДИРОВКА "},{"$f":"Код1","v":"О"},{"$f":"Код1Текст","v":"Опоздал"},null,null,{"$f":"Код2","v":"У"},{"$f":"Код2Текст","v":"Отсутствовал по уважительной причине"},null,null,{"$f":"Код3","v":"Н"},{"$f":"Код3Текст","v":"Отсутствовал по неуважительной причине"},null,null,{"$f":"Код4","v":"П"},{"$f":"Код4Текст","v":"Присутствовал"},null,null,{"$f":"Код5","v":"С"},{"$f":"Код5Текст","v":"Свободный день"}]
[]
[null,{"$f":"DATE(ГодКалендаря+1,4,1)","v":"2013-04-01"},null,{"$f":"TEXT(WEEKDAY(DATE(ГодКалендаря+1,4,1),1),\"aaa\")","v":"Пн"},{"$f":"TEXT(WEEKDAY(DATE(ГодКалендаря+1,4,2),1),\"aaa\")","v":"Вт"},{"$f":"TEXT(WEEKDAY(DATE(ГодКалендаря+1,4,3),1),\"aaa\")","v":"Ср"},{"$f":"TEXT(WEEKDAY(DATE(ГодКалендаря+1,4,4),1),\"aaa\")","v":"Чт"},{"$f":"TEXT(WEEKDAY(DATE(ГодКалендаря+1,4,5),1),\"aaa\")","v":"Пт"},{"$f":"TEXT(WEEKDAY(DATE(ГодКалендаря+1,4,6),1),\"aaa\")","v":"Сб"},{"$f":"TEXT(WEEKDAY(DATE(ГодКалендаря+1,4,7),1),\"aaa\")","v":"Вс"},{"$f":"TEXT(WEEKDAY(DATE(ГодКалендаря+1,4,8),1),\"aaa\")","v":"Пн"},{"$f":"TEXT(WEEKDAY(DATE(ГодКалендаря+1,4,9),1),\"aaa\")","v":"Вт"},{"$f":"TEXT(WEEKDAY(DATE(ГодКалендаря+1,4,10),1),\"aaa\")","v":"Ср"},{"$f":"TEXT(WEEKDAY(DATE(ГодКалендаря+1,4,11),1),\"aaa\")","v":"Чт"},{"$f":"TEXT(WEEKDAY(DATE(ГодКалендаря+1,4,12),1),\"aaa\")","v":"Пт"},{"$f":"TEXT(WEEKDAY(DATE(ГодКалендаря+1,4,13),1),\"aaa\")","v":"Сб"},{"$f":"TEXT(WEEKDAY(DATE(ГодКалендаря+1,4,14),1),\"aaa\")","v":"Вс"},{"$f":"TEXT(WEEKDAY(DATE(ГодКалендаря+1,4,15),1),\"aaa\")","v":"Пн"},{"$f":"TEXT(WEEKDAY(DATE(ГодКалендаря+1,4,16),1),\"aaa\")","v":"Вт"},{"$f":"TEXT(WEEKDAY(DATE(ГодКалендаря+1,4,17),1),\"aaa\")","v":"Ср"},{"$f":"TEXT(WEEKDAY(DATE(ГодКалендаря+1,4,18),1),\"aaa\")","v":"Чт"},{"$f":"TEXT(WEEKDAY(DATE(ГодКалендаря+1,4,19),1),\"aaa\")","v":"Пт"},{"$f":"TEXT(WEEKDAY(DATE(ГодКалендаря+1,4,20),1),\"aaa\")","v":"Сб"},{"$f":"TEXT(WEEKDAY(DATE(ГодКалендаря+1,4,21),1),\"aaa\")","v":"Вс"},{"$f":"TEXT(WEEKDAY(DATE(ГодКалендаря+1,4,22),1),\"aaa\")","v":"Пн"},{"$f":"TEXT(WEEKDAY(DATE(ГодКалендаря+1,4,23),1),\"aaa\")","v":"Вт"},{"$f":"TEXT(WEEKDAY(DATE(ГодКалендаря+1,4,24),1),\"aaa\")","v":"Ср"},{"$f":"TEXT(WEEKDAY(DATE(ГодКалендаря+1,4,25),1),\"aaa\")","v":"Чт"},{"$f":"TEXT(WEEKDAY(DATE(ГодКалендаря+1,4,26),1),\"aaa\")","v":"Пт"},{"$f":"TEXT(WEEKDAY(DATE(ГодКалендаря+1,4,27),1),\"aaa\")","v":"Сб"},{"$f":"TEXT(WEEKDAY(DATE(ГодКалендаря+1,4,28),1),\"aaa\")","v":"Вс"},{"$f":"TEXT(WEEKDAY(DATE(ГодКалендаря+1,4,29),1),\"aaa\")","v":"Пн"},{"$f":"TEXT(WEEKDAY(DATE(ГодКалендаря+1,4,30),1),\"aaa\")","v":"Вт"},null,"Итого"]
[null,"Идентификатор студента","Имя студента","1","2","3","4","5","6","7","8","9","10","11","12","13","14","15","16","17","18","19","20","21","22","23","24","25","26","27","28","29","30"," ","О","У","Н","П","Количество пропущенных дней"]
[null,null,{"$f":"IFERROR(VLOOKUP(ПосещаемостьЗаАпрель[[#This Row],[Идентификатор студента]],СписокСтудентов[],18,FALSE),\"\")","v":""},{"$nulls":31},{"$f":"COUNTIF(ПосещаемостьЗаАпрель[[#This Row],[1]:[ ]],Код1)","v":0},{"$f":"COUNTIF(ПосещаемостьЗаАпрель[[#This Row],[1]:[ ]],Код2)","v":0},{"$f":"COUNTIF(ПосещаемостьЗаАпрель[[#This Row],[1]:[ ]],Код3)","v":0},{"$f":"COUNTIF(ПосещаемостьЗаАпрель[[#This Row],[1]:[ ]],Код4)","v":0},{"$f":"SUM(ПосещаемостьЗаАпрель[[#This Row],[У]:[Н]])","v":0}]
[null,null,{"$f":"IFERROR(VLOOKUP(ПосещаемостьЗаАпрель[[#This Row],[Идентификатор студента]],СписокСтудентов[],18,FALSE),\"\")","v":""},{"$nulls":31},{"$f":"COUNTIF(ПосещаемостьЗаАпрель[[#This Row],[1]:[ ]],Код1)","v":0},{"$f":"COUNTIF(ПосещаемостьЗаАпрель[[#This Row],[1]:[ ]],Код2)","v":0},{"$f":"COUNTIF(ПосещаемостьЗаАпрель[[#This Row],[1]:[ ]],Код3)","v":0},{"$f":"COUNTIF(ПосещаемостьЗаАпрель[[#This Row],[1]:[ ]],Код4)","v":0},{"$f":"SUM(ПосещаемостьЗаАпрель[[#This Row],[У]:[Н]])","v":0}]
[null,null,{"$f":"IFERROR(VLOOKUP(ПосещаемостьЗаАпрель[[#This Row],[Идентификатор студента]],СписокСтудентов[],18,FALSE),\"\")","v":""},{"$nulls":31},{"$f":"COUNTIF(ПосещаемостьЗаАпрель[[#This Row],[1]:[ ]],Код1)","v":0},{"$f":"COUNTIF(ПосещаемостьЗаАпрель[[#This Row],[1]:[ ]],Код2)","v":0},{"$f":"COUNTIF(ПосещаемостьЗаАпрель[[#This Row],[1]:[ ]],Код3)","v":0},{"$f":"COUNTIF(ПосещаемостьЗаАпрель[[#This Row],[1]:[ ]],Код4)","v":0},{"$f":"SUM(ПосещаемостьЗаАпрель[[#This Row],[У]:[Н]])","v":0}]
[null,null,{"$f":"IFERROR(VLOOKUP(ПосещаемостьЗаАпрель[[#This Row],[Идентификатор студента]],СписокСтудентов[],18,FALSE),\"\")","v":""},{"$nulls":31},{"$f":"COUNTIF(ПосещаемостьЗаАпрель[[#This Row],[1]:[ ]],Код1)","v":0},{"$f":"COUNTIF(ПосещаемостьЗаАпрель[[#This Row],[1]:[ ]],Код2)","v":0},{"$f":"COUNTIF(ПосещаемостьЗаАпрель[[#This Row],[1]:[ ]],Код3)","v":0},{"$f":"COUNTIF(ПосещаемостьЗаАпрель[[#This Row],[1]:[ ]],Код4)","v":0},{"$f":"SUM(ПосещаемостьЗаАпрель[[#This Row],[У]:[Н]])","v":0}]
[null,null,{"$f":"IFERROR(VLOOKUP(ПосещаемостьЗаАпрель[[#This Row],[Идентификатор студента]],СписокСтудентов[],18,FALSE),\"\")","v":""},{"$nulls":31},{"$f":"COUNTIF(ПосещаемостьЗаАпрель[[#This Row],[1]:[ ]],Код1)","v":0},{"$f":"COUNTIF(ПосещаемостьЗаАпрель[[#This Row],[1]:[ ]],Код2)","v":0},{"$f":"COUNTIF(ПосещаемостьЗаАпрель[[#This Row],[1]:[ ]],Код3)","v":0},{"$f":"COUNTIF(ПосещаемостьЗаАпрель[[#This Row],[1]:[ ]],Код4)","v":0},{"$f":"SUM(ПосещаемостьЗаАпрель[[#This Row],[У]:[Н]])","v":0}]
[null,null,"Общее количество пропущенных дней",{"$f":"COUNTIF(ПосещаемостьЗаАпрель[1],\"Н\")+COUNTIF(ПосещаемостьЗаАпрель[1],\"У\")","v":0},{"$f":"COUNTIF(ПосещаемостьЗаАпрель[2],\"Н\")+COUNTIF(ПосещаемостьЗаАпрель[2],\"У\")","v":0},{"$f":"COUNTIF(ПосещаемостьЗаАпрель[3],\"Н\")+COUNTIF(ПосещаемостьЗаАпрель[3],\"У\")","v":0},{"$f":"COUNTIF(ПосещаемостьЗаАпрель[4],\"Н\")+COUNTIF(ПосещаемостьЗаАпрель[4],\"У\")","v":0},{"$f":"COUNTIF(ПосещаемостьЗаАпрель[5],\"Н\")+COUNTIF(ПосещаемостьЗаАпрель[5],\"У\")","v":0},{"$f":"COUNTIF(ПосещаемостьЗаАпрель[6],\"Н\")+COUNTIF(ПосещаемостьЗаАпрель[6],\"У\")","v":0},{"$f":"COUNTIF(ПосещаемостьЗаАпрель[7],\"Н\")+COUNTIF(ПосещаемостьЗаАпрель[7],\"У\")","v":0},{"$f":"COUNTIF(ПосещаемостьЗаАпрель[8],\"Н\")+COUNTIF(ПосещаемостьЗаАпрель[8],\"У\")","v":0},{"$f":"COUNTIF(ПосещаемостьЗаАпрель[9],\"Н\")+COUNTIF(ПосещаемостьЗаАпрель[9],\"У\")","v":0},{"$f":"COUNTIF(ПосещаемостьЗаАпрель[10],\"Н\")+COUNTIF(ПосещаемостьЗаАпрель[10],\"У\")","v":0},{"$f":"COUNTIF(ПосещаемостьЗаАпрель[11],\"Н\")+COUNTIF(ПосещаемостьЗаАпрель[11],\"У\")","v":0},{"$f":"COUNTIF(ПосещаемостьЗаАпрель[12],\"Н\")+COUNTIF(ПосещаемостьЗаАпрель[12],\"У\")","v":0},{"$f":"COUNTIF(ПосещаемостьЗаАпрель[13],\"Н\")+COUNTIF(ПосещаемостьЗаАпрель[13],\"У\")","v":0},{"$f":"COUNTIF(ПосещаемостьЗаАпрель[14],\"Н\")+COUNTIF(ПосещаемостьЗаАпрель[14],\"У\")","v":0},{"$f":"COUNTIF(ПосещаемостьЗаАпрель[15],\"Н\")+COUNTIF(ПосещаемостьЗаАпрель[15],\"У\")","v":0},{"$f":"COUNTIF(ПосещаемостьЗаАпрель[16],\"Н\")+COUNTIF(ПосещаемостьЗаАпрель[16],\"У\")","v":0},{"$f":"COUNTIF(ПосещаемостьЗаАпрель[17],\"Н\")+COUNTIF(ПосещаемостьЗаАпрель[17],\"У\")","v":0},{"$f":"COUNTIF(ПосещаемостьЗаАпрель[18],\"Н\")+COUNTIF(ПосещаемостьЗаАпрель[18],\"У\")","v":0},{"$f":"COUNTIF(ПосещаемостьЗаАпрель[19],\"Н\")+COUNTIF(ПосещаемостьЗаАпрель[19],\"У\")","v":0},{"$f":"COUNTIF(ПосещаемостьЗаАпрель[20],\"Н\")+COUNTIF(ПосещаемостьЗаАпрель[20],\"У\")","v":0},{"$f":"COUNTIF(ПосещаемостьЗаАпрель[21],\"Н\")+COUNTIF(ПосещаемостьЗаАпрель[21],\"У\")","v":0},{"$f":"COUNTIF(ПосещаемостьЗаАпрель[22],\"Н\")+COUNTIF(ПосещаемостьЗаАпрель[22],\"У\")","v":0},{"$f":"COUNTIF(ПосещаемостьЗаАпрель[23],\"Н\")+COUNTIF(ПосещаемостьЗаАпрель[23],\"У\")","v":0},{"$f":"COUNTIF(ПосещаемостьЗаАпрель[24],\"Н\")+COUNTIF(ПосещаемостьЗаАпрель[24],\"У\")","v":0},{"$f":"COUNTIF(ПосещаемостьЗаАпрель[25],\"Н\")+COUNTIF(ПосещаемостьЗаАпрель[25],\"У\")","v":0},{"$f":"COUNTIF(ПосещаемостьЗаАпрель[26],\"Н\")+COUNTIF(ПосещаемостьЗаАпрель[26],\"У\")","v":0},{"$f":"COUNTIF(ПосещаемостьЗаАпрель[27],\"Н\")+COUNTIF(ПосещаемостьЗаАпрель[27],\"У\")","v":0},{"$f":"COUNTIF(ПосещаемостьЗаАпрель[28],\"Н\")+COUNTIF(ПосещаемостьЗаАпрель[28],\"У\")","v":0},{"$f":"COUNTIF(ПосещаемостьЗаАпрель[29],\"Н\")+COUNTIF(ПосещаемостьЗаАпрель[29],\"У\")","v":0},null,null,{"$f":"SUBTOTAL(109,ПосещаемостьЗаАпрель[О])","v":0},{"$f":"SUBTOTAL(109,ПосещаемостьЗаАпрель[У])","v":0},{"$f":"SUBTOTAL(109,ПосещаемостьЗаАпрель[Н])","v":0},{"$f":"SUBTOTAL(109,ПосещаемостьЗаАпрель[П])","v":0},{"$f":"SUBTOTAL(109,ПосещаемостьЗаАпрель[Количество пропущенных дней])","v":0}]

{"sheet":"Май","index":11,"n_rows":12,"n_cols":39,"rows_kept":12,"merged":[[4,34,4,38]]}
["ТАБЕЛЬ ПОСЕЩАЕМОСТИ ЗАНЯТИЙ СТУДЕНТОМ",{"$nulls":36},"Начало учебного года:",{"$f":"ГодКалендаря","v":2012}]
[]
[null,null,{"$f":"ЦветоваяКодировкаТекст","v":"ЦВЕТОВАЯ КОДИРОВКА "},{"$f":"Код1","v":"О"},{"$f":"Код1Текст","v":"Опоздал"},null,null,{"$f":"Код2","v":"У"},{"$f":"Код2Текст","v":"Отсутствовал по уважительной причине"},null,null,{"$f":"Код3","v":"Н"},{"$f":"Код3Текст","v":"Отсутствовал по неуважительной причине"},null,null,{"$f":"Код4","v":"П"},{"$f":"Код4Текст","v":"Присутствовал"},null,null,{"$f":"Код5","v":"С"},{"$f":"Код5Текст","v":"Свободный день"}]
[]
[null,{"$f":"DATE(ГодКалендаря+1,5,1)","v":"2013-05-01"},null,{"$f":"TEXT(WEEKDAY(DATE(ГодКалендаря+1,5,1),1),\"aaa\")","v":"Ср"},{"$f":"TEXT(WEEKDAY(DATE(ГодКалендаря+1,5,2),1),\"aaa\")","v":"Чт"},{"$f":"TEXT(WEEKDAY(DATE(ГодКалендаря+1,5,3),1),\"aaa\")","v":"Пт"},{"$f":"TEXT(WEEKDAY(DATE(ГодКалендаря+1,5,4),1),\"aaa\")","v":"Сб"},{"$f":"TEXT(WEEKDAY(DATE(ГодКалендаря+1,5,5),1),\"aaa\")","v":"Вс"},{"$f":"TEXT(WEEKDAY(DATE(ГодКалендаря+1,5,6),1),\"aaa\")","v":"Пн"},{"$f":"TEXT(WEEKDAY(DATE(ГодКалендаря+1,5,7),1),\"aaa\")","v":"Вт"},{"$f":"TEXT(WEEKDAY(DATE(ГодКалендаря+1,5,8),1),\"aaa\")","v":"Ср"},{"$f":"TEXT(WEEKDAY(DATE(ГодКалендаря+1,5,9),1),\"aaa\")","v":"Чт"},{"$f":"TEXT(WEEKDAY(DATE(ГодКалендаря+1,5,10),1),\"aaa\")","v":"Пт"},{"$f":"TEXT(WEEKDAY(DATE(ГодКалендаря+1,5,11),1),\"aaa\")","v":"Сб"},{"$f":"TEXT(WEEKDAY(DATE(ГодКалендаря+1,5,12),1),\"aaa\")","v":"Вс"},{"$f":"TEXT(WEEKDAY(DATE(ГодКалендаря+1,5,13),1),\"aaa\")","v":"Пн"},{"$f":"TEXT(WEEKDAY(DATE(ГодКалендаря+1,5,14),1),\"aaa\")","v":"Вт"},{"$f":"TEXT(WEEKDAY(DATE(ГодКалендаря+1,5,15),1),\"aaa\")","v":"Ср"},{"$f":"TEXT(WEEKDAY(DATE(ГодКалендаря+1,5,16),1),\"aaa\")","v":"Чт"},{"$f":"TEXT(WEEKDAY(DATE(ГодКалендаря+1,5,17),1),\"aaa\")","v":"Пт"},{"$f":"TEXT(WEEKDAY(DATE(ГодКалендаря+1,5,18),1),\"aaa\")","v":"Сб"},{"$f":"TEXT(WEEKDAY(DATE(ГодКалендаря+1,5,19),1),\"aaa\")","v":"Вс"},{"$f":"TEXT(WEEKDAY(DATE(ГодКалендаря+1,5,20),1),\"aaa\")","v":"Пн"},{"$f":"TEXT(WEEKDAY(DATE(ГодКалендаря+1,5,21),1),\"aaa\")","v":"Вт"},{"$f":"TEXT(WEEKDAY(DATE(ГодКалендаря+1,5,22),1),\"aaa\")","v":"Ср"},{"$f":"TEXT(WEEKDAY(DATE(ГодКалендаря+1,5,23),1),\"aaa\")","v":"Чт"},{"$f":"TEXT(WEEKDAY(DATE(ГодКалендаря+1,5,24),1),\"aaa\")","v":"Пт"},{"$f":"TEXT(WEEKDAY(DATE(ГодКалендаря+1,5,25),1),\"aaa\")","v":"Сб"},{"$f":"TEXT(WEEKDAY(DATE(ГодКалендаря+1,5,26),1),\"aaa\")","v":"Вс"},{"$f":"TEXT(WEEKDAY(DATE(ГодКалендаря+1,5,27),1),\"aaa\")","v":"Пн"},{"$f":"TEXT(WEEKDAY(DATE(ГодКалендаря+1,5,28),1),\"aaa\")","v":"Вт"},{"$f":"TEXT(WEEKDAY(DATE(ГодКалендаря+1,5,29),1),\"aaa\")","v":"Ср"},{"$f":"TEXT(WEEKDAY(DATE(ГодКалендаря+1,5,30),1),\"aaa\")","v":"Чт"},{"$f":"TEXT(WEEKDAY(DATE(ГодКалендаря+1,5,31),1),\"aaa\")","v":"Пт"},"Итого"]
[null,"Идентификатор студента","Имя студента","1","2","3","4","5","6","7","8","9","10","11","12","13","14","15","16","17","18","19","20","21","22","23","24","25","26","27","28","29","30","31","О","У","Н","П","Количество пропущенных дней"]
[null,null,{"$f":"IFERROR(VLOOKUP(ПосещаемостьЗаМай[[#This Row],[Идентификатор студента]],СписокСтудентов[],18,FALSE),\"\")","v":""},{"$nulls":31},{"$f":"COUNTIF(ПосещаемостьЗаМай[[#This Row],[1]:[31]],Код1)","v":0},{"$f":"COUNTIF(ПосещаемостьЗаМай[[#This Row],[1]:[31]],Код2)","v":0},{"$f":"COUNTIF(ПосещаемостьЗаМай[[#This Row],[1]:[31]],Код3)","v":0},{"$f":"COUNTIF(ПосещаемостьЗаМай[[#This Row],[1]:[31]],Код4)","v":0},{"$f":"SUM(ПосещаемостьЗаМай[[#This Row],[У]:[Н]])","v":0}]
[null,null,{"$f":"IFERROR(VLOOKUP(ПосещаемостьЗаМай[[#This Row],[Идентификатор студента]],СписокСтудентов[],18,FALSE),\"\")","v":""},{"$nulls":31},{"$f":"COUNTIF(ПосещаемостьЗаМай[[#This Row],[1]:[31]],Код1)","v":0},{"$f":"COUNTIF(ПосещаемостьЗаМай[[#This Row],[1]:[31]],Код2)","v":0},{"$f":"COUNTIF(ПосещаемостьЗаМай[[#This Row],[1]:[31]],Код3)","v":0},{"$f":"COUNTIF(ПосещаемостьЗаМай[[#This Row],[1]:[31]],Код4)","v":0},{"$f":"SUM(ПосещаемостьЗаМай[[#This Row],[У]:[Н]])","v":0}]
[null,null,{"$f":"IFERROR(VLOOKUP(ПосещаемостьЗаМай[[#This Row],[Идентификатор студента]],СписокСтудентов[],18,FALSE),\"\")","v":""},{"$nulls":31},{"$f":"COUNTIF(ПосещаемостьЗаМай[[#This Row],[1]:[31]],Код1)","v":0},{"$f":"COUNTIF(ПосещаемостьЗаМай[[#This Row],[1]:[31]],Код2)","v":0},{"$f":"COUNTIF(ПосещаемостьЗаМай[[#This Row],[1]:[31]],Код3)","v":0},{"$f":"COUNTIF(ПосещаемостьЗаМай[[#This Row],[1]:[31]],Код4)","v":0},{"$f":"SUM(ПосещаемостьЗаМай[[#This Row],[У]:[Н]])","v":0}]
[null,null,{"$f":"IFERROR(VLOOKUP(ПосещаемостьЗаМай[[#This Row],[Идентификатор студента]],СписокСтудентов[],18,FALSE),\"\")","v":""},{"$nulls":31},{"$f":"COUNTIF(ПосещаемостьЗаМай[[#This Row],[1]:[31]],Код1)","v":0},{"$f":"COUNTIF(ПосещаемостьЗаМай[[#This Row],[1]:[31]],Код2)","v":0},{"$f":"COUNTIF(ПосещаемостьЗаМай[[#This Row],[1]:[31]],Код3)","v":0},{"$f":"COUNTIF(ПосещаемостьЗаМай[[#This Row],[1]:[31]],Код4)","v":0},{"$f":"SUM(ПосещаемостьЗаМай[[#This Row],[У]:[Н]])","v":0}]
[null,null,{"$f":"IFERROR(VLOOKUP(ПосещаемостьЗаМай[[#This Row],[Идентификатор студента]],СписокСтудентов[],18,FALSE),\"\")","v":""},{"$nulls":31},{"$f":"COUNTIF(ПосещаемостьЗаМай[[#This Row],[1]:[31]],Код1)","v":0},{"$f":"COUNTIF(ПосещаемостьЗаМай[[#This Row],[1]:[31]],Код2)","v":0},{"$f":"COUNTIF(ПосещаемостьЗаМай[[#This Row],[1]:[31]],Код3)","v":0},{"$f":"COUNTIF(ПосещаемостьЗаМай[[#This Row],[1]:[31]],Код4)","v":0},{"$f":"SUM(ПосещаемостьЗаМай[[#This Row],[У]:[Н]])","v":0}]
[null,null,"Общее количество пропущенных дней",{"$f":"COUNTIF(ПосещаемостьЗаМай[1],\"Н\")+COUNTIF(ПосещаемостьЗаМай[1],\"У\")","v":0},{"$f":"COUNTIF(ПосещаемостьЗаМай[2],\"Н\")+COUNTIF(ПосещаемостьЗаМай[2],\"У\")","v":0},{"$f":"COUNTIF(ПосещаемостьЗаМай[3],\"Н\")+COUNTIF(ПосещаемостьЗаМай[3],\"У\")","v":0},{"$f":"COUNTIF(ПосещаемостьЗаМай[4],\"Н\")+COUNTIF(ПосещаемостьЗаМай[4],\"У\")","v":0},{"$f":"COUNTIF(ПосещаемостьЗаМай[5],\"Н\")+COUNTIF(ПосещаемостьЗаМай[5],\"У\")","v":0},{"$f":"COUNTIF(ПосещаемостьЗаМай[6],\"Н\")+COUNTIF(ПосещаемостьЗаМай[6],\"У\")","v":0},{"$f":"COUNTIF(ПосещаемостьЗаМай[7],\"Н\")+COUNTIF(ПосещаемостьЗаМай[7],\"У\")","v":0},{"$f":"COUNTIF(ПосещаемостьЗаМай[8],\"Н\")+COUNTIF(ПосещаемостьЗаМай[8],\"У\")","v":0},{"$f":"COUNTIF(ПосещаемостьЗаМай[9],\"Н\")+COUNTIF(ПосещаемостьЗаМай[9],\"У\")","v":0},{"$f":"COUNTIF(ПосещаемостьЗаМай[10],\"Н\")+COUNTIF(ПосещаемостьЗаМай[10],\"У\")","v":0},{"$f":"COUNTIF(ПосещаемостьЗаМай[11],\"Н\")+COUNTIF(ПосещаемостьЗаМай[11],\"У\")","v":0},{"$f":"COUNTIF(ПосещаемостьЗаМай[12],\"Н\")+COUNTIF(ПосещаемостьЗаМай[12],\"У\")","v":0},{"$f":"COUNTIF(ПосещаемостьЗаМай[13],\"Н\")+COUNTIF(ПосещаемостьЗаМай[13],\"У\")","v":0},{"$f":"COUNTIF(ПосещаемостьЗаМай[14],\"Н\")+COUNTIF(ПосещаемостьЗаМай[14],\"У\")","v":0},{"$f":"COUNTIF(ПосещаемостьЗаМай[15],\"Н\")+COUNTIF(ПосещаемостьЗаМай[15],\"У\")","v":0},{"$f":"COUNTIF(ПосещаемостьЗаМай[16],\"Н\")+COUNTIF(ПосещаемостьЗаМай[16],\"У\")","v":0},{"$f":"COUNTIF(ПосещаемостьЗаМай[17],\"Н\")+COUNTIF(ПосещаемостьЗаМай[17],\"У\")","v":0},{"$f":"COUNTIF(ПосещаемостьЗаМай[18],\"Н\")+COUNTIF(ПосещаемостьЗаМай[18],\"У\")","v":0},{"$f":"COUNTIF(ПосещаемостьЗаМай[19],\"Н\")+COUNTIF(ПосещаемостьЗаМай[19],\"У\")","v":0},{"$f":"COUNTIF(ПосещаемостьЗаМай[20],\"Н\")+COUNTIF(ПосещаемостьЗаМай[20],\"У\")","v":0},{"$f":"COUNTIF(ПосещаемостьЗаМай[21],\"Н\")+COUNTIF(ПосещаемостьЗаМай[21],\"У\")","v":0},{"$f":"COUNTIF(ПосещаемостьЗаМай[22],\"Н\")+COUNTIF(ПосещаемостьЗаМай[22],\"У\")","v":0},{"$f":"COUNTIF(ПосещаемостьЗаМай[23],\"Н\")+COUNTIF(ПосещаемостьЗаМай[23],\"У\")","v":0},{"$f":"COUNTIF(ПосещаемостьЗаМай[24],\"Н\")+COUNTIF(ПосещаемостьЗаМай[24],\"У\")","v":0},{"$f":"COUNTIF(ПосещаемостьЗаМай[25],\"Н\")+COUNTIF(ПосещаемостьЗаМай[25],\"У\")","v":0},{"$f":"COUNTIF(ПосещаемостьЗаМай[26],\"Н\")+COUNTIF(ПосещаемостьЗаМай[26],\"У\")","v":0},{"$f":"COUNTIF(ПосещаемостьЗаМай[27],\"Н\")+COUNTIF(ПосещаемостьЗаМай[27],\"У\")","v":0},{"$f":"COUNTIF(ПосещаемостьЗаМай[28],\"Н\")+COUNTIF(ПосещаемостьЗаМай[28],\"У\")","v":0},{"$f":"COUNTIF(ПосещаемостьЗаМай[29],\"Н\")+COUNTIF(ПосещаемостьЗаМай[29],\"У\")","v":0},null,null,{"$f":"SUBTOTAL(109,ПосещаемостьЗаМай[О])","v":0},{"$f":"SUBTOTAL(109,ПосещаемостьЗаМай[У])","v":0},{"$f":"SUBTOTAL(109,ПосещаемостьЗаМай[Н])","v":0},{"$f":"SUBTOTAL(109,ПосещаемостьЗаМай[П])","v":0},{"$f":"SUBTOTAL(109,ПосещаемостьЗаМай[Количество пропущенных дней])","v":0}]

{"sheet":"Июнь","index":12,"n_rows":12,"n_cols":39,"rows_kept":12,"merged":[[4,34,4,38]]}
["ТАБЕЛЬ ПОСЕЩАЕМОСТИ ЗАНЯТИЙ СТУДЕНТОМ",{"$nulls":36},"Начало учебного года:",{"$f":"ГодКалендаря","v":2012}]
[]
[null,null,{"$f":"ЦветоваяКодировкаТекст","v":"ЦВЕТОВАЯ КОДИРОВКА "},{"$f":"Код1","v":"О"},{"$f":"Код1Текст","v":"Опоздал"},null,null,{"$f":"Код2","v":"У"},{"$f":"Код2Текст","v":"Отсутствовал по уважительной причине"},null,null,{"$f":"Код3","v":"Н"},{"$f":"Код3Текст","v":"Отсутствовал по неуважительной причине"},null,null,{"$f":"Код4","v":"П"},{"$f":"Код4Текст","v":"Присутствовал"},null,null,{"$f":"Код5","v":"С"},{"$f":"Код5Текст","v":"Свободный день"}]
[]
[null,{"$f":"DATE(ГодКалендаря+1,6,1)","v":"2013-06-01"},null,{"$f":"TEXT(WEEKDAY(DATE(ГодКалендаря+1,6,1),1),\"aaa\")","v":"Сб"},{"$f":"TEXT(WEEKDAY(DATE(ГодКалендаря+1,6,2),1),\"aaa\")","v":"Вс"},{"$f":"TEXT(WEEKDAY(DATE(ГодКалендаря+1,6,3),1),\"aaa\")","v":"Пн"},{"$f":"TEXT(WEEKDAY(DATE(ГодКалендаря+1,6,4),1),\"aaa\")","v":"Вт"},{"$f":"TEXT(WEEKDAY(DATE(ГодКалендаря+1,6,5),1),\"aaa\")","v":"Ср"},{"$f":"TEXT(WEEKDAY(DATE(ГодКалендаря+1,6,6),1),\"aaa\")","v":"Чт"},{"$f":"TEXT(WEEKDAY(DATE(ГодКалендаря+1,6,7),1),\"aaa\")","v":"Пт"},{"$f":"TEXT(WEEKDAY(DATE(ГодКалендаря+1,6,8),1),\"aaa\")","v":"Сб"},{"$f":"TEXT(WEEKDAY(DATE(ГодКалендаря+1,6,9),1),\"aaa\")","v":"Вс"},{"$f":"TEXT(WEEKDAY(DATE(ГодКалендаря+1,6,10),1),\"aaa\")","v":"Пн"},{"$f":"TEXT(WEEKDAY(DATE(ГодКалендаря+1,6,11),1),\"aaa\")","v":"Вт"},{"$f":"TEXT(WEEKDAY(DATE(ГодКалендаря+1,6,12),1),\"aaa\")","v":"Ср"},{"$f":"TEXT(WEEKDAY(DATE(ГодКалендаря+1,6,13),1),\"aaa\")","v":"Чт"},{"$f":"TEXT(WEEKDAY(DATE(ГодКалендаря+1,6,14),1),\"aaa\")","v":"Пт"},{"$f":"TEXT(WEEKDAY(DATE(ГодКалендаря+1,6,15),1),\"aaa\")","v":"Сб"},{"$f":"TEXT(WEEKDAY(DATE(ГодКалендаря+1,6,16),1),\"aaa\")","v":"Вс"},{"$f":"TEXT(WEEKDAY(DATE(ГодКалендаря+1,6,17),1),\"aaa\")","v":"Пн"},{"$f":"TEXT(WEEKDAY(DATE(ГодКалендаря+1,6,18),1),\"aaa\")","v":"Вт"},{"$f":"TEXT(WEEKDAY(DATE(ГодКалендаря+1,6,19),1),\"aaa\")","v":"Ср"},{"$f":"TEXT(WEEKDAY(DATE(ГодКалендаря+1,6,20),1),\"aaa\")","v":"Чт"},{"$f":"TEXT(WEEKDAY(DATE(ГодКалендаря+1,6,21),1),\"aaa\")","v":"Пт"},{"$f":"TEXT(WEEKDAY(DATE(ГодКалендаря+1,6,22),1),\"aaa\")","v":"Сб"},{"$f":"TEXT(WEEKDAY(DATE(ГодКалендаря+1,6,23),1),\"aaa\")","v":"Вс"},{"$f":"TEXT(WEEKDAY(DATE(ГодКалендаря+1,6,24),1),\"aaa\")","v":"Пн"},{"$f":"TEXT(WEEKDAY(DATE(ГодКалендаря+1,6,25),1),\"aaa\")","v":"Вт"},{"$f":"TEXT(WEEKDAY(DATE(ГодКалендаря+1,6,26),1),\"aaa\")","v":"Ср"},{"$f":"TEXT(WEEKDAY(DATE(ГодКалендаря+1,6,27),1),\"aaa\")","v":"Чт"},{"$f":"TEXT(WEEKDAY(DATE(ГодКалендаря+1,6,28),1),\"aaa\")","v":"Пт"},{"$f":"TEXT(WEEKDAY(DATE(ГодКалендаря+1,6,29),1),\"aaa\")","v":"Сб"},{"$f":"TEXT(WEEKDAY(DATE(ГодКалендаря+1,6,30),1),\"aaa\")","v":"Вс"},null,"Итого"]
[null,"Идентификатор студента","Имя студента","1","2","3","4","5","6","7","8","9","10","11","12","13","14","15","16","17","18","19","20","21","22","23","24","25","26","27","28","29","30"," ","О","У","Н","П","Количество пропущенных дней"]
[null,null,{"$f":"IFERROR(VLOOKUP(ПосещаемостьЗаИюнь[[#This Row],[Идентификатор студента]],СписокСтудентов[],18,FALSE),\"\")","v":""},{"$nulls":31},{"$f":"COUNTIF(ПосещаемостьЗаИюнь[[#This Row],[1]:[ ]],Код1)","v":0},{"$f":"COUNTIF(ПосещаемостьЗаИюнь[[#This Row],[1]:[ ]],Код2)","v":0},{"$f":"COUNTIF(ПосещаемостьЗаИюнь[[#This Row],[1]:[ ]],Код3)","v":0},{"$f":"COUNTIF(ПосещаемостьЗаИюнь[[#This Row],[1]:[ ]],Код4)","v":0},{"$f":"SUM(ПосещаемостьЗаИюнь[[#This Row],[У]:[Н]])","v":0}]
[null,null,{"$f":"IFERROR(VLOOKUP(ПосещаемостьЗаИюнь[[#This Row],[Идентификатор студента]],СписокСтудентов[],18,FALSE),\"\")","v":""},{"$nulls":31},{"$f":"COUNTIF(ПосещаемостьЗаИюнь[[#This Row],[1]:[ ]],Код1)","v":0},{"$f":"COUNTIF(ПосещаемостьЗаИюнь[[#This Row],[1]:[ ]],Код2)","v":0},{"$f":"COUNTIF(ПосещаемостьЗаИюнь[[#This Row],[1]:[ ]],Код3)","v":0},{"$f":"COUNTIF(ПосещаемостьЗаИюнь[[#This Row],[1]:[ ]],Код4)","v":0},{"$f":"SUM(ПосещаемостьЗаИюнь[[#This Row],[У]:[Н]])","v":0}]
[null,null,{"$f":"IFERROR(VLOOKUP(ПосещаемостьЗаИюнь[[#This Row],[Идентификатор студента]],СписокСтудентов[],18,FALSE),\"\")","v":""},{"$nulls":31},{"$f":"COUNTIF(ПосещаемостьЗаИюнь[[#This Row],[1]:[ ]],Код1)","v":0},{"$f":"COUNTIF(ПосещаемостьЗаИюнь[[#This Row],[1]:[ ]],Код2)","v":0},{"$f":"COUNTIF(ПосещаемостьЗаИюнь[[#This Row],[1]:[ ]],Код3)","v":0},{"$f":"COUNTIF(ПосещаемостьЗаИюнь[[#This Row],[1]:[ ]],Код4)","v":0},{"$f":"SUM(ПосещаемостьЗаИюнь[[#This Row],[У]:[Н]])","v":0}]
[null,null,{"$f":"IFERROR(VLOOKUP(ПосещаемостьЗаИюнь[[#This Row],[Идентификатор студента]],СписокСтудентов[],18,FALSE),\"\")","v":""},{"$nulls":31},{"$f":"COUNTIF(ПосещаемостьЗаИюнь[[#This Row],[1]:[ ]],Код1)","v":0},{"$f":"COUNTIF(ПосещаемостьЗаИюнь[[#This Row],[1]:[ ]],Код2)","v":0},{"$f":"COUNTIF(ПосещаемостьЗаИюнь[[#This Row],[1]:[ ]],Код3)","v":0},{"$f":"COUNTIF(ПосещаемостьЗаИюнь[[#This Row],[1]:[ ]],Код4)","v":0},{"$f":"SUM(ПосещаемостьЗаИюнь[[#This Row],[У]:[Н]])","v":0}]
[null,null,{"$f":"IFERROR(VLOOKUP(ПосещаемостьЗаИюнь[[#This Row],[Идентификатор студента]],СписокСтудентов[],18,FALSE),\"\")","v":""},{"$nulls":31},{"$f":"COUNTIF(ПосещаемостьЗаИюнь[[#This Row],[1]:[ ]],Код1)","v":0},{"$f":"COUNTIF(ПосещаемостьЗаИюнь[[#This Row],[1]:[ ]],Код2)","v":0},{"$f":"COUNTIF(ПосещаемостьЗаИюнь[[#This Row],[1]:[ ]],Код3)","v":0},{"$f":"COUNTIF(ПосещаемостьЗаИюнь[[#This Row],[1]:[ ]],Код4)","v":0},{"$f":"SUM(ПосещаемостьЗаИюнь[[#This Row],[У]:[Н]])","v":0}]
[null,null,"Общее количество пропущенных дней",{"$f":"COUNTIF(ПосещаемостьЗаИюнь[1],\"Н\")+COUNTIF(ПосещаемостьЗаИюнь[1],\"У\")","v":0},{"$f":"COUNTIF(ПосещаемостьЗаИюнь[2],\"Н\")+COUNTIF(ПосещаемостьЗаИюнь[2],\"У\")","v":0},{"$f":"COUNTIF(ПосещаемостьЗаИюнь[3],\"Н\")+COUNTIF(ПосещаемостьЗаИюнь[3],\"У\")","v":0},{"$f":"COUNTIF(ПосещаемостьЗаИюнь[4],\"Н\")+COUNTIF(ПосещаемостьЗаИюнь[4],\"У\")","v":0},{"$f":"COUNTIF(ПосещаемостьЗаИюнь[5],\"Н\")+COUNTIF(ПосещаемостьЗаИюнь[5],\"У\")","v":0},{"$f":"COUNTIF(ПосещаемостьЗаИюнь[6],\"Н\")+COUNTIF(ПосещаемостьЗаИюнь[6],\"У\")","v":0},{"$f":"COUNTIF(ПосещаемостьЗаИюнь[7],\"Н\")+COUNTIF(ПосещаемостьЗаИюнь[7],\"У\")","v":0},{"$f":"COUNTIF(ПосещаемостьЗаИюнь[8],\"Н\")+COUNTIF(ПосещаемостьЗаИюнь[8],\"У\")","v":0},{"$f":"COUNTIF(ПосещаемостьЗаИюнь[9],\"Н\")+COUNTIF(ПосещаемостьЗаИюнь[9],\"У\")","v":0},{"$f":"COUNTIF(ПосещаемостьЗаИюнь[10],\"Н\")+COUNTIF(ПосещаемостьЗаИюнь[10],\"У\")","v":0},{"$f":"COUNTIF(ПосещаемостьЗаИюнь[11],\"Н\")+COUNTIF(ПосещаемостьЗаИюнь[11],\"У\")","v":0},{"$f":"COUNTIF(ПосещаемостьЗаИюнь[12],\"Н\")+COUNTIF(ПосещаемостьЗаИюнь[12],\"У\")","v":0},{"$f":"COUNTIF(ПосещаемостьЗаИюнь[13],\"Н\")+COUNTIF(ПосещаемостьЗаИюнь[13],\"У\")","v":0},{"$f":"COUNTIF(ПосещаемостьЗаИюнь[14],\"Н\")+COUNTIF(ПосещаемостьЗаИюнь[14],\"У\")","v":0},{"$f":"COUNTIF(ПосещаемостьЗаИюнь[15],\"Н\")+COUNTIF(ПосещаемостьЗаИюнь[15],\"У\")","v":0},{"$f":"COUNTIF(ПосещаемостьЗаИюнь[16],\"Н\")+COUNTIF(ПосещаемостьЗаИюнь[16],\"У\")","v":0},{"$f":"COUNTIF(ПосещаемостьЗаИюнь[17],\"Н\")+COUNTIF(ПосещаемостьЗаИюнь[17],\"У\")","v":0},{"$f":"COUNTIF(ПосещаемостьЗаИюнь[18],\"Н\")+COUNTIF(ПосещаемостьЗаИюнь[18],\"У\")","v":0},{"$f":"COUNTIF(ПосещаемостьЗаИюнь[19],\"Н\")+COUNTIF(ПосещаемостьЗаИюнь[19],\"У\")","v":0},{"$f":"COUNTIF(ПосещаемостьЗаИюнь[20],\"Н\")+COUNTIF(ПосещаемостьЗаИюнь[20],\"У\")","v":0},{"$f":"COUNTIF(ПосещаемостьЗаИюнь[21],\"Н\")+COUNTIF(ПосещаемостьЗаИюнь[21],\"У\")","v":0},{"$f":"COUNTIF(ПосещаемостьЗаИюнь[22],\"Н\")+COUNTIF(ПосещаемостьЗаИюнь[22],\"У\")","v":0},{"$f":"COUNTIF(ПосещаемостьЗаИюнь[23],\"Н\")+COUNTIF(ПосещаемостьЗаИюнь[23],\"У\")","v":0},{"$f":"COUNTIF(ПосещаемостьЗаИюнь[24],\"Н\")+COUNTIF(ПосещаемостьЗаИюнь[24],\"У\")","v":0},{"$f":"COUNTIF(ПосещаемостьЗаИюнь[25],\"Н\")+COUNTIF(ПосещаемостьЗаИюнь[25],\"У\")","v":0},{"$f":"COUNTIF(ПосещаемостьЗаИюнь[26],\"Н\")+COUNTIF(ПосещаемостьЗаИюнь[26],\"У\")","v":0},{"$f":"COUNTIF(ПосещаемостьЗаИюнь[27],\"Н\")+COUNTIF(ПосещаемостьЗаИюнь[27],\"У\")","v":0},{"$f":"COUNTIF(ПосещаемостьЗаИюнь[28],\"Н\")+COUNTIF(ПосещаемостьЗаИюнь[28],\"У\")","v":0},{"$f":"COUNTIF(ПосещаемостьЗаИюнь[29],\"Н\")+COUNTIF(ПосещаемостьЗаИюнь[29],\"У\")","v":0},null,null,{"$f":"SUBTOTAL(109,ПосещаемостьЗаИюнь[О])","v":0},{"$f":"SUBTOTAL(109,ПосещаемостьЗаИюнь[У])","v":0},{"$f":"SUBTOTAL(109,ПосещаемостьЗаИюнь[Н])","v":0},{"$f":"SUBTOTAL(109,ПосещаемостьЗаИюнь[П])","v":0},{"$f":"SUBTOTAL(109,ПосещаемостьЗаИюнь[Количество пропущенных дней])","v":0}]

{"sheet":"Июль","index":13,"n_rows":12,"n_cols":39,"rows_kept":12,"merged":[[4,34,4,38]]}
["ТАБЕЛЬ ПОСЕЩАЕМОСТИ ЗАНЯТИЙ СТУДЕНТОМ",{"$nulls":36},"Начало учебного года:",{"$f":"ГодКалендаря","v":2012}]
[]
[null,null,{"$f":"ЦветоваяКодировкаТекст","v":"ЦВЕТОВАЯ КОДИРОВКА "},{"$f":"Код1","v":"О"},{"$f":"Код1Текст","v":"Опоздал"},null,null,{"$f":"Код2","v":"У"},{"$f":"Код2Текст","v":"Отсутствовал по уважительной причине"},null,null,{"$f":"Код3","v":"Н"},{"$f":"Код3Текст","v":"Отсутствовал по неуважительной причине"},null,null,{"$f":"Код4","v":"П"},{"$f":"Код4Текст","v":"Присутствовал"},null,null,{"$f":"Код5","v":"С"},{"$f":"Код5Текст","v":"Свободный день"}]
[]
[null,{"$f":"DATE(ГодКалендаря+1,7,1)","v":"2013-07-01"},null,{"$f":"TEXT(WEEKDAY(DATE(ГодКалендаря+1,7,1),1),\"aaa\")","v":"Пн"},{"$f":"TEXT(WEEKDAY(DATE(ГодКалендаря+1,7,2),1),\"aaa\")","v":"Вт"},{"$f":"TEXT(WEEKDAY(DATE(ГодКалендаря+1,7,3),1),\"aaa\")","v":"Ср"},{"$f":"TEXT(WEEKDAY(DATE(ГодКалендаря+1,7,4),1),\"aaa\")","v":"Чт"},{"$f":"TEXT(WEEKDAY(DATE(ГодКалендаря+1,7,5),1),\"aaa\")","v":"Пт"},{"$f":"TEXT(WEEKDAY(DATE(ГодКалендаря+1,7,6),1),\"aaa\")","v":"Сб"},{"$f":"TEXT(WEEKDAY(DATE(ГодКалендаря+1,7,7),1),\"aaa\")","v":"Вс"},{"$f":"TEXT(WEEKDAY(DATE(ГодКалендаря+1,7,8),1),\"aaa\")","v":"Пн"},{"$f":"TEXT(WEEKDAY(DATE(ГодКалендаря+1,7,9),1),\"aaa\")","v":"Вт"},{"$f":"TEXT(WEEKDAY(DATE(ГодКалендаря+1,7,10),1),\"aaa\")","v":"Ср"},{"$f":"TEXT(WEEKDAY(DATE(ГодКалендаря+1,7,11),1),\"aaa\")","v":"Чт"},{"$f":"TEXT(WEEKDAY(DATE(ГодКалендаря+1,7,12),1),\"aaa\")","v":"Пт"},{"$f":"TEXT(WEEKDAY(DATE(ГодКалендаря+1,7,13),1),\"aaa\")","v":"Сб"},{"$f":"TEXT(WEEKDAY(DATE(ГодКалендаря+1,7,14),1),\"aaa\")","v":"Вс"},{"$f":"TEXT(WEEKDAY(DATE(ГодКалендаря+1,7,15),1),\"aaa\")","v":"Пн"},{"$f":"TEXT(WEEKDAY(DATE(ГодКалендаря+1,7,16),1),\"aaa\")","v":"Вт"},{"$f":"TEXT(WEEKDAY(DATE(ГодКалендаря+1,7,17),1),\"aaa\")","v":"Ср"},{"$f":"TEXT(WEEKDAY(DATE(ГодКалендаря+1,7,18),1),\"aaa\")","v":"Чт"},{"$f":"TEXT(WEEKDAY(DATE(ГодКалендаря+1,7,19),1),\"aaa\")","v":"Пт"},{"$f":"TEXT(WEEKDAY(DATE(ГодКалендаря+1,7,20),1),\"aaa\")","v":"Сб"},{"$f":"TEXT(WEEKDAY(DATE(ГодКалендаря+1,7,21),1),\"aaa\")","v":"Вс"},{"$f":"TEXT(WEEKDAY(DATE(ГодКалендаря+1,7,22),1),\"aaa\")","v":"Пн"},{"$f":"TEXT(WEEKDAY(DATE(ГодКалендаря+1,7,23),1),\"aaa\")","v":"Вт"},{"$f":"TEXT(WEEKDAY(DATE(ГодКалендаря+1,7,24),1),\"aaa\")","v":"Ср"},{"$f":"TEXT(WEEKDAY(DATE(ГодКалендаря+1,7,25),1),\"aaa\")","v":"Чт"},{"$f":"TEXT(WEEKDAY(DATE(ГодКалендаря+1,7,26),1),\"aaa\")","v":"Пт"},{"$f":"TEXT(WEEKDAY(DATE(ГодКалендаря+1,7,27),1),\"aaa\")","v":"Сб"},{"$f":"TEXT(WEEKDAY(DATE(ГодКалендаря+1,7,28),1),\"aaa\")","v":"Вс"},{"$f":"TEXT(WEEKDAY(DATE(ГодКалендаря+1,7,29),1),\"aaa\")","v":"Пн"},{"$f":"TEXT(WEEKDAY(DATE(ГодКалендаря+1,7,30),1),\"aaa\")","v":"Вт"},{"$f":"TEXT(WEEKDAY(DATE(ГодКалендаря+1,7,31),1),\"aaa\")","v":"Ср"},"Итого"]
[null,"Идентификатор студента","Имя студента","1","2","3","4","5","6","7","8","9","10","11","12","13","14","15","16","17","18","19","20","21","22","23","24","25","26","27","28","29","30","31","О","У","Н","П","Количество пропущенных дней"]
[null,null,{"$f":"IFERROR(VLOOKUP(ПосещаемостьЗаИюль[[#This Row],[Идентификатор студента]],СписокСтудентов[],18,FALSE),\"\")","v":""},{"$nulls":31},{"$f":"COUNTIF(ПосещаемостьЗаИюль[[#This Row],[1]:[31]],Код1)","v":0},{"$f":"COUNTIF(ПосещаемостьЗаИюль[[#This Row],[1]:[31]],Код2)","v":0},{"$f":"COUNTIF(ПосещаемостьЗаИюль[[#This Row],[1]:[31]],Код3)","v":0},{"$f":"COUNTIF(ПосещаемостьЗаИюль[[#This Row],[1]:[31]],Код4)","v":0},{"$f":"SUM(ПосещаемостьЗаИюль[[#This Row],[У]:[Н]])","v":0}]
[null,null,{"$f":"IFERROR(VLOOKUP(ПосещаемостьЗаИюль[[#This Row],[Идентификатор студента]],СписокСтудентов[],18,FALSE),\"\")","v":""},{"$nulls":31},{"$f":"COUNTIF(ПосещаемостьЗаИюль[[#This Row],[1]:[31]],Код1)","v":0},{"$f":"COUNTIF(ПосещаемостьЗаИюль[[#This Row],[1]:[31]],Код2)","v":0},{"$f":"COUNTIF(ПосещаемостьЗаИюль[[#This Row],[1]:[31]],Код3)","v":0},{"$f":"COUNTIF(ПосещаемостьЗаИюль[[#This Row],[1]:[31]],Код4)","v":0},{"$f":"SUM(ПосещаемостьЗаИюль[[#This Row],[У]:[Н]])","v":0}]
[null,null,{"$f":"IFERROR(VLOOKUP(ПосещаемостьЗаИюль[[#This Row],[Идентификатор студента]],СписокСтудентов[],18,FALSE),\"\")","v":""},{"$nulls":31},{"$f":"COUNTIF(ПосещаемостьЗаИюль[[#This Row],[1]:[31]],Код1)","v":0},{"$f":"COUNTIF(ПосещаемостьЗаИюль[[#This Row],[1]:[31]],Код2)","v":0},{"$f":"COUNTIF(ПосещаемостьЗаИюль[[#This Row],[1]:[31]],Код3)","v":0},{"$f":"COUNTIF(ПосещаемостьЗаИюль[[#This Row],[1]:[31]],Код4)","v":0},{"$f":"SUM(ПосещаемостьЗаИюль[[#This Row],[У]:[Н]])","v":0}]
[null,null,{"$f":"IFERROR(VLOOKUP(ПосещаемостьЗаИюль[[#This Row],[Идентификатор студента]],СписокСтудентов[],18,FALSE),\"\")","v":""},{"$nulls":31},{"$f":"COUNTIF(ПосещаемостьЗаИюль[[#This Row],[1]:[31]],Код1)","v":0},{"$f":"COUNTIF(ПосещаемостьЗаИюль[[#This Row],[1]:[31]],Код2)","v":0},{"$f":"COUNTIF(ПосещаемостьЗаИюль[[#This Row],[1]:[31]],Код3)","v":0},{"$f":"COUNTIF(ПосещаемостьЗаИюль[[#This Row],[1]:[31]],Код4)","v":0},{"$f":"SUM(ПосещаемостьЗаИюль[[#This Row],[У]:[Н]])","v":0}]
[null,null,{"$f":"IFERROR(VLOOKUP(ПосещаемостьЗаИюль[[#This Row],[Идентификатор студента]],СписокСтудентов[],18,FALSE),\"\")","v":""},{"$nulls":31},{"$f":"COUNTIF(ПосещаемостьЗаИюль[[#This Row],[1]:[31]],Код1)","v":0},{"$f":"COUNTIF(ПосещаемостьЗаИюль[[#This Row],[1]:[31]],Код2)","v":0},{"$f":"COUNTIF(ПосещаемостьЗаИюль[[#This Row],[1]:[31]],Код3)","v":0},{"$f":"COUNTIF(ПосещаемостьЗаИюль[[#This Row],[1]:[31]],Код4)","v":0},{"$f":"SUM(ПосещаемостьЗаИюль[[#This Row],[У]:[Н]])","v":0}]
[null,null,"Общее количество пропущенных дней",{"$f":"COUNTIF(ПосещаемостьЗаИюль[1],\"Н\")+COUNTIF(ПосещаемостьЗаИюль[1],\"У\")","v":0},{"$f":"COUNTIF(ПосещаемостьЗаИюль[2],\"Н\")+COUNTIF(ПосещаемостьЗаИюль[2],\"У\")","v":0},{"$f":"COUNTIF(ПосещаемостьЗаИюль[3],\"Н\")+COUNTIF(ПосещаемостьЗаИюль[3],\"У\")","v":0},{"$f":"COUNTIF(ПосещаемостьЗаИюль[4],\"Н\")+COUNTIF(ПосещаемостьЗаИюль[4],\"У\")","v":0},{"$f":"COUNTIF(ПосещаемостьЗаИюль[5],\"Н\")+COUNTIF(ПосещаемостьЗаИюль[5],\"У\")","v":0},{"$f":"COUNTIF(ПосещаемостьЗаИюль[6],\"Н\")+COUNTIF(ПосещаемостьЗаИюль[6],\"У\")","v":0},{"$f":"COUNTIF(ПосещаемостьЗаИюль[7],\"Н\")+COUNTIF(ПосещаемостьЗаИюль[7],\"У\")","v":0},{"$f":"COUNTIF(ПосещаемостьЗаИюль[8],\"Н\")+COUNTIF(ПосещаемостьЗаИюль[8],\"У\")","v":0},{"$f":"COUNTIF(ПосещаемостьЗаИюль[9],\"Н\")+COUNTIF(ПосещаемостьЗаИюль[9],\"У\")","v":0},{"$f":"COUNTIF(ПосещаемостьЗаИюль[10],\"Н\")+COUNTIF(ПосещаемостьЗаИюль[10],\"У\")","v":0},{"$f":"COUNTIF(ПосещаемостьЗаИюль[11],\"Н\")+COUNTIF(ПосещаемостьЗаИюль[11],\"У\")","v":0},{"$f":"COUNTIF(ПосещаемостьЗаИюль[12],\"Н\")+COUNTIF(ПосещаемостьЗаИюль[12],\"У\")","v":0},{"$f":"COUNTIF(ПосещаемостьЗаИюль[13],\"Н\")+COUNTIF(ПосещаемостьЗаИюль[13],\"У\")","v":0},{"$f":"COUNTIF(ПосещаемостьЗаИюль[14],\"Н\")+COUNTIF(ПосещаемостьЗаИюль[14],\"У\")","v":0},{"$f":"COUNTIF(ПосещаемостьЗаИюль[15],\"Н\")+COUNTIF(ПосещаемостьЗаИюль[15],\"У\")","v":0},{"$f":"COUNTIF(ПосещаемостьЗаИюль[16],\"Н\")+COUNTIF(ПосещаемостьЗаИюль[16],\"У\")","v":0},{"$f":"COUNTIF(ПосещаемостьЗаИюль[17],\"Н\")+COUNTIF(ПосещаемостьЗаИюль[17],\"У\")","v":0},{"$f":"COUNTIF(ПосещаемостьЗаИюль[18],\"Н\")+COUNTIF(ПосещаемостьЗаИюль[18],\"У\")","v":0},{"$f":"COUNTIF(ПосещаемостьЗаИюль[19],\"Н\")+COUNTIF(ПосещаемостьЗаИюль[19],\"У\")","v":0},{"$f":"COUNTIF(ПосещаемостьЗаИюль[20],\"Н\")+COUNTIF(ПосещаемостьЗаИюль[20],\"У\")","v":0},{"$f":"COUNTIF(ПосещаемостьЗаИюль[21],\"Н\")+COUNTIF(ПосещаемостьЗаИюль[21],\"У\")","v":0},{"$f":"COUNTIF(ПосещаемостьЗаИюль[22],\"Н\")+COUNTIF(ПосещаемостьЗаИюль[22],\"У\")","v":0},{"$f":"COUNTIF(ПосещаемостьЗаИюль[23],\"Н\")+COUNTIF(ПосещаемостьЗаИюль[23],\"У\")","v":0},{"$f":"COUNTIF(ПосещаемостьЗаИюль[24],\"Н\")+COUNTIF(ПосещаемостьЗаИюль[24],\"У\")","v":0},{"$f":"COUNTIF(ПосещаемостьЗаИюль[25],\"Н\")+COUNTIF(ПосещаемостьЗаИюль[25],\"У\")","v":0},{"$f":"COUNTIF(ПосещаемостьЗаИюль[26],\"Н\")+COUNTIF(ПосещаемостьЗаИюль[26],\"У\")","v":0},{"$f":"COUNTIF(ПосещаемостьЗаИюль[27],\"Н\")+COUNTIF(ПосещаемостьЗаИюль[27],\"У\")","v":0},{"$f":"COUNTIF(ПосещаемостьЗаИюль[28],\"Н\")+COUNTIF(ПосещаемостьЗаИюль[28],\"У\")","v":0},{"$f":"COUNTIF(ПосещаемостьЗаИюль[29],\"Н\")+COUNTIF(ПосещаемостьЗаИюль[29],\"У\")","v":0},null,null,{"$f":"SUBTOTAL(109,ПосещаемостьЗаИюль[О])","v":0},{"$f":"SUBTOTAL(109,ПосещаемостьЗаИюль[У])","v":0},{"$f":"SUBTOTAL(109,ПосещаемостьЗаИюль[Н])","v":0},{"$f":"SUBTOTAL(109,ПосещаемостьЗаИюль[П])","v":0},{"$f":"SUBTOTAL(109,ПосещаемостьЗаИюль[Количество пропущенных дней])","v":0}]

{"sheet":"Отчет о посещаемости","index":14,"n_rows":40,"n_cols":37,"rows_kept":40,"merged":[[2,3,2,14],[2,15,2,17],[2,18,2,21],[2,22,2,29],[2,30,2,31],[2,32,2,35],[3,1,3,2],[3,3,3,14],[3,15,3,17],[3,18,3,21],[3,22,3,29],[3,30,3,31],[3,32,3,35],[4,1,4,9],[4,10,4,21],[4,22,4,29],[4,30,4,36],[5,1,5,9],[5,10,5,21],[5,22,5,29],[5,30,5,36],[6,1,6,9],[6,10,6,21],[6,22,6,29],[6,30,6,36],[7,1,7,9],[7,10,7,21],[7,22,7,29],[7,30,7,36],[8,1,8,9],[8,10,8,21],[8,22,8,29],[8,30,8,36],[9,1,9,9],[9,10,9,21],[9,22,9,29],[9,30,9,36],[13,1,14,32],[13,33,13,36],[15,1,16,1],[15,33,16,33],[15,34,16,34],[15,35,16,35],[15,36,16,36],[17,1,18,1],[17,33,18,33],[17,34,18,34],[17,35,18,35],[17,36,18,36],[19,1,20,1],[19,33,20,33],[19,34,20,34],[19,35,20,35],[19,36,20,36],[21,1,22,1],[21,33,22,33],[21,34,22,34],[21,35,22,35],[21,36,22,36],[23,1,24,1],[23,33,24,33],[23,34,24,34],[23,35,24,35],[23,36,24,36],[25,1,26,1],[25,33,26,33],[25,34,26,34],[25,35,26,35],[25,36,26,36],[27,1,28,1],[27,33,28,33],[27,34,28,34],[27,35,28,35],[27,36,28,36],[29,1,30,1],[29,33,30,33],[29,34,30,34],[29,35,30,35],[29,36,30,36],[31,1,32,1],[31,33,32,33],[31,34,32,34],[31,35,32,35],[31,36,32,36],[33,1,34,1],[33,33,34,33],[33,34,34,34],[33,35,34,35],[33,36,34,36],[35,1,36,1],[35,33,36,33],[35,34,36,34],[35,35,36,35],[35,36,36,36],[37,1,38,1],[37,33,38,33],[37,34,38,34],[37,35,38,35],[37,36,38,36],[39,30,39,32]]}
[{"$f":"\"Табель посещаемости занятий студентом\"","v":"Табель посещаемости занятий студентом"},{"$nulls":7},{"$f":"D4","v":"Андрей Егоров"}]
[]
[null,"Идентификатор студента",null,"Имя студента",{"$nulls":11},"Пол",null,null,"Дата рождения",{"$nulls":3},"Учебное заведение",{"$nulls":7},"Класс",null,"Преподаватель",{"$nulls":3},"Аудитория"]
[null,"S001",null,{"$f":"IFERROR(VLOOKUP(ПодстановкаСтудентов,СписокСтудентов[],18,FALSE),\"\")","v":"Андрей Егоров"},{"$nulls":11},{"$f":"IFERROR(VLOOKUP(ПодстановкаСтудентов,СписокСтудентов[],4,FALSE),\"\")","v":"M"},null,null,{"$f":"IFERROR(VLOOKUP(ПодстановкаСтудентов,СписокСтудентов[],5,FALSE),\"\")","v":"1997-03-28"},{"$nulls":3},"Школа искусств",{"$nulls":7},7,null,"Станислав Песоцкий",{"$nulls":3},123]
[null,"Фамилия родителя или опекуна 1",{"$nulls":8},"Отношение",{"$nulls":11},"Рабочий номер",{"$nulls":7},"Домашний номер"]
[null,{"$f":"IFERROR(VLOOKUP(ПодстановкаСтудентов,СписокСтудентов[],6,FALSE),\"\")","v":"Юрий"},{"$nulls":8},{"$f":"IFERROR(VLOOKUP(ПодстановкаСтудентов,СписокСтудентов[],7,FALSE),\"\")","v":"Егоров"},{"$nulls":11},{"$f":"IFERROR(VLOOKUP(ПодстановкаСтудентов,СписокСтудентов[],8,FALSE),\"\")","v":1235550134},{"$nulls":7},{"$f":"IFERROR(VLOOKUP(ПодстановкаСтудентов,СписокСтудентов[],9,FALSE),\"\")","v":2345550134}]
[null,"Фамилия родителя или опекуна 2",{"$nulls":8},"Отношение",{"$nulls":11},"Рабочий номер",{"$nulls":7},"Домашний номер"]
[null,{"$f":"IFERROR(VLOOKUP(ПодстановкаСтудентов,СписокСтудентов[],10,FALSE),\"\")","v":"Михаил Егоров"},{"$nulls":8},{"$f":"IFERROR(VLOOKUP(ПодстановкаСтудентов,СписокСтудентов[],11,FALSE),\"\")","v":"Отец"},{"$nulls":11},{"$f":"IFERROR(VLOOKUP(ПодстановкаСтудентов,СписокСтудентов[],12,FALSE),\"\")","v":1235550134},{"$nulls":7},{"$f":"IFERROR(VLOOKUP(ПодстановкаСтудентов,СписокСтудентов[],13,FALSE),\"\")","v":2345550134}]
[null,"Контакт на случай непредвиденной ситуации",{"$nulls":8},"Отношение",{"$nulls":11},"Рабочий номер",{"$nulls":7},"Домашний номер"]
[null,{"$f":"IFERROR(VLOOKUP(ПодстановкаСтудентов,СписокСтудентов[],14,FALSE),\"\")","v":"Валерий Ушаков"},{"$nulls":8},{"$f":"IFERROR(VLOOKUP(ПодстановкаСтудентов,СписокСтудентов[],15,FALSE),\"\")","v":"Дед"},{"$nulls":11},{"$f":"IFERROR(VLOOKUP(ПодстановкаСтудентов,СписокСтудентов[],16,FALSE),\"\")","v":7895550189},{"$nulls":7},{"$f":"IFERROR(VLOOKUP(ПодстановкаСтудентов,СписокСтудентов[],17,FALSE),\"\")","v":7895550134}]
[]
[null,{"$f":"Август!C3","v":"ЦВЕТОВАЯ КОДИРОВКА "},{"$f":"Август!D3","v":"О"},{"$f":"Август!E3","v":"Опоздал"},null,null,{"$f":"Август!H3","v":"У"},{"$f":"Август!I3","v":"Отсутствовал по уважительной причине"},null,null,{"$f":"Август!L3","v":"Н"},{"$f":"Август!M3","v":"Отсутствовал по неуважительной причине"},{"$nulls":3},{"$f":"Август!P3","v":"П"},{"$f":"Август!Q3","v":"Присутствовал"},null,null,{"$f":"Август!T3","v":"С"},{"$f":"Август!U3","v":"Свободный день"}]
[]
[null,"Присутствие",{"$nulls":31},"Общее количество посещений"]
[{"$nulls":33},"О","У","Н","П"]
[null,"Август",1,2,3,4,5,6,7,8,9,10,11,12,13,14,15,16,17,18,19,20,21,22,23,24,25,26,27,28,29,30,31,{"$f":"COUNTIF($D17:$AH17,Код1)","v":2},{"$f":"COUNTIF($D17:$AH17,Код2)","v":1},{"$f":"COUNTIF($D17:$AH17,Код3)","v":0},{"$f":"COUNTIF($D17:$AH17,Код4)","v":19}]
[null,null,{"$f":"IFERROR(VLOOKUP(ПодстановкаСтудентов,ПосещаемостьЗаАвгуст[],3,FALSE),\"\")","v":"П"},{"$f":"IFERROR(VLOOKUP(ПодстановкаСтудентов,ПосещаемостьЗаАвгуст[],4,FALSE),\"\")","v":"П"},{"$f":"IFERROR(VLOOKUP(ПодстановкаСтудентов,ПосещаемостьЗаАвгуст[],5,FALSE),\"\")","v":"О"},{"$f":"IFERROR(VLOOKUP(ПодстановкаСтудентов,ПосещаемостьЗаАвгуст[],6,FALSE),\"\")","v":"О"},{"$f":"IFERROR(VLOOKUP(ПодстановкаСтудентов,ПосещаемостьЗаАвгуст[],7,FALSE),\"\")","v":"П"},{"$f":"IFERROR(VLOOKUP(ПодстановкаСтудентов,ПосещаемостьЗаАвгуст[],8,FALSE),\"\")","v":"С"},{"$f":"IFERROR(VLOOKUP(ПодстановкаСтудентов,ПосещаемостьЗаАвгуст[],9,FALSE),\"\")","v":"С"},{"$f":"IFERROR(VLOOKUP(ПодстановкаСтудентов,ПосещаемостьЗаАвгуст[],10,FALSE),\"\")","v":"П"},{"$f":"IFERROR(VLOOKUP(ПодстановкаСтудентов,ПосещаемостьЗаАвгуст[],11,FALSE),\"\")","v":"П"},{"$f":"IFERROR(VLOOKUP(ПодстановкаСтудентов,ПосещаемостьЗаАвгуст[],12,FALSE),\"\")","v":"У"},{"$f":"IFERROR(VLOOKUP(ПодстановкаСтудентов,ПосещаемостьЗаАвгуст[],13,FALSE),\"\")","v":"П"},{"$f":"IFERROR(VLOOKUP(ПодстановкаСтудентов,ПосещаемостьЗаАвгуст[],14,FALSE),\"\")","v":"П"},{"$f":"IFERROR(VLOOKUP(ПодстановкаСтудентов,ПосещаемостьЗаАвгуст[],15,FALSE),\"\")","v":"С"},{"$f":"IFERROR(VLOOKUP(ПодстановкаСтудентов,ПосещаемостьЗаАвгуст[],16,FALSE),\"\")","v":"С"},{"$f":"IFERROR(VLOOKUP(ПодстановкаСтудентов,ПосещаемостьЗаАвгуст[],17,FALSE),\"\")","v":"П"},{"$f":"IFERROR(VLOOKUP(ПодстановкаСтудентов,ПосещаемостьЗаАвгуст[],18,FALSE),\"\")","v":"П"},{"$f":"IFERROR(VLOOKUP(ПодстановкаСтудентов,ПосещаемостьЗаАвгуст[],19,FALSE),\"\")","v":"П"},{"$f":"IFERROR(VLOOKUP(ПодстановкаСтудентов,ПосещаемостьЗаАвгуст[],20,FALSE),\"\")","v":"П"},{"$f":"IFERROR(VLOOKUP(ПодстановкаСтудентов,ПосещаемостьЗаАвгуст[],21,FALSE),\"\")","v":"П"},{"$f":"IFERROR(VLOOKUP(ПодстановкаСтудентов,ПосещаемостьЗаАвгуст[],22,FALSE),\"\")","v":"С"},{"$f":"IFERROR(VLOOKUP(ПодстановкаСтудентов,ПосещаемостьЗаАвгуст[],23,FALSE),\"\")","v":"С"},{"$f":"IFERROR(VLOOKUP(ПодстановкаСтудентов,ПосещаемостьЗаАвгуст[],24,FALSE),\"\")","v":"П"},{"$f":"IFERROR(VLOOKUP(ПодстановкаСтудентов,ПосещаемостьЗаАвгуст[],25,FALSE),\"\")","v":"П"},{"$f":"IFERROR(VLOOKUP(ПодстановкаСтудентов,ПосещаемостьЗаАвгуст[],26,FALSE),\"\")","v":"П"},{"$f":"IFERROR(VLOOKUP(ПодстановкаСтудентов,ПосещаемостьЗаАвгуст[],27,FALSE),\"\")","v":"П"},{"$f":"IFERROR(VLOOKUP(ПодстановкаСтудентов,ПосещаемостьЗаАвгуст[],28,FALSE),\"\")","v":"П"},{"$f":"IFERROR(VLOOKUP(ПодстановкаСтудентов,ПосещаемостьЗаАвгуст[],29,FALSE),\"\")","v":"С"},{"$f":"IFERROR(VLOOKUP(ПодстановкаСтудентов,ПосещаемостьЗаАвгуст[],30,FALSE),\"\")","v":"С"},{"$f":"IFERROR(VLOOKUP(ПодстановкаСтудентов,ПосещаемостьЗаАвгуст[],31,FALSE),\"\")","v":"П"},{"$f":"IFERROR(VLOOKUP(ПодстановкаСтудентов,ПосещаемостьЗаАвгуст[],32,FALSE),\"\")","v":"П"},{"$f":"IFERROR(VLOOKUP(ПодстановкаСтудентов,ПосещаемостьЗаАвгуст[],33,FALSE),\"\")","v":"П"}]
[null,"Сентябрь",1,2,3,4,5,6,7,8,9,10,11,12,13,14,15,16,17,18,19,20,21,22,23,24,25,26,27,28,29,30,null,{"$f":"COUNTIF($D19:$AH19,Код1)","v":0},{"$f":"COUNTIF($D19:$AH19,Код2)","v":0},{"$f":"COUNTIF($D19:$AH19,Код3)","v":0},{"$f":"COUNTIF($D19:$AH19,Код4)","v":0}]
[null,null,{"$f":"IFERROR(VLOOKUP(ПодстановкаСтудентов,ПосещаемостьЗаСентябрь[],3,FALSE),\"\")","v":""},{"$f":"IFERROR(VLOOKUP(ПодстановкаСтудентов,ПосещаемостьЗаСентябрь[],4,FALSE),\"\")","v":""},{"$f":"IFERROR(VLOOKUP(ПодстановкаСтудентов,ПосещаемостьЗаСентябрь[],5,FALSE),\"\")","v":""},{"$f":"IFERROR(VLOOKUP(ПодстановкаСтудентов,ПосещаемостьЗаСентябрь[],6,FALSE),\"\")","v":""},{"$f":"IFERROR(VLOOKUP(ПодстановкаСтудентов,ПосещаемостьЗаСентябрь[],7,FALSE),\"\")","v":""},{"$f":"IFERROR(VLOOKUP(ПодстановкаСтудентов,ПосещаемостьЗаСентябрь[],8,FALSE),\"\")","v":""},{"$f":"IFERROR(VLOOKUP(ПодстановкаСтудентов,ПосещаемостьЗаСентябрь[],9,FALSE),\"\")","v":""},{"$f":"IFERROR(VLOOKUP(ПодстановкаСтудентов,ПосещаемостьЗаСентябрь[],10,FALSE),\"\")","v":""},{"$f":"IFERROR(VLOOKUP(ПодстановкаСтудентов,ПосещаемостьЗаСентябрь[],11,FALSE),\"\")","v":""},{"$f":"IFERROR(VLOOKUP(ПодстановкаСтудентов,ПосещаемостьЗаСентябрь[],12,FALSE),\"\")","v":""},{"$f":"IFERROR(VLOOKUP(ПодстановкаСтудентов,ПосещаемостьЗаСентябрь[],13,FALSE),\"\")","v":""},{"$f":"IFERROR(VLOOKUP(ПодстановкаСтудентов,ПосещаемостьЗаСентябрь[],14,FALSE),\"\")","v":""},{"$f":"IFERROR(VLOOKUP(ПодстановкаСтудентов,ПосещаемостьЗаСентябрь[],15,FALSE),\"\")","v":""},{"$f":"IFERROR(VLOOKUP(ПодстановкаСтудентов,ПосещаемостьЗаСентябрь[],16,FALSE),\"\")","v":""},{"$f":"IFERROR(VLOOKUP(ПодстановкаСтудентов,ПосещаемостьЗаСентябрь[],17,FALSE),\"\")","v":""},{"$f":"IFERROR(VLOOKUP(ПодстановкаСтудентов,ПосещаемостьЗаСентябрь[],18,FALSE),\"\")","v":""},{"$f":"IFERROR(VLOOKUP(ПодстановкаСтудентов,ПосещаемостьЗаСентябрь[],19,FALSE),\"\")","v":""},{"$f":"IFERROR(VLOOKUP(ПодстановкаСтудентов,ПосещаемостьЗаСентябрь[],20,FALSE),\"\")","v":""},{"$f":"IFERROR(VLOOKUP(ПодстановкаСтудентов,ПосещаемостьЗаСентябрь[],21,FALSE),\"\")","v":""},{"$f":"IFERROR(VLOOKUP(ПодстановкаСтудентов,ПосещаемостьЗаСентябрь[],22,FALSE),\"\")","v":""},{"$f":"IFERROR(VLOOKUP(ПодстановкаСтудентов,ПосещаемостьЗаСентябрь[],23,FALSE),\"\")","v":""},{"$f":"IFERROR(VLOOKUP(ПодстановкаСтудентов,ПосещаемостьЗаСентябрь[],24,FALSE),\"\")","v":""},{"$f":"IFERROR(VLOOKUP(ПодстановкаСтудентов,ПосещаемостьЗаСентябрь[],25,FALSE),\"\")","v":""},{"$f":"IFERROR(VLOOKUP(ПодстановкаСтудентов,ПосещаемостьЗаСентябрь[],26,FALSE),\"\")","v":""},{"$f":"IFERROR(VLOOKUP(ПодстановкаСтудентов,ПосещаемостьЗаСентябрь[],27,FALSE),\"\")","v":""},{"$f":"IFERROR(VLOOKUP(ПодстановкаСтудентов,ПосещаемостьЗаСентябрь[],28,FALSE),\"\")","v":""},{"$f":"IFERROR(VLOOKUP(ПодстановкаСтудентов,ПосещаемостьЗаСентябрь[],29,FALSE),\"\")","v":""},{"$f":"IFERROR(VLOOKUP(ПодстановкаСтудентов,ПосещаемостьЗаСентябрь[],30,FALSE),\"\")","v":""},{"$f":"IFERROR(VLOOKUP(ПодстановкаСтудентов,ПосещаемостьЗаСентябрь[],31,FALSE),\"\")","v":""},{"$f":"IFERROR(VLOOKUP(ПодстановкаСтудентов,ПосещаемостьЗаСентябрь[],32,FALSE),\"\")","v":""}]
[null,"Октябрь",1,2,3,4,5,6,7,8,9,10,11,12,13,14,15,16,17,18,19,20,21,22,23,24,25,26,27,28,29,30,31,{"$f":"COUNTIF($D21:$AH21,Код1)","v":0},{"$f":"COUNTIF($D21:$AH21,Код2)","v":0},{"$f":"COUNTIF($D21:$AH21,Код3)","v":0},{"$f":"COUNTIF($D21:$AH21,Код4)","v":0}]
[null,null,{"$f":"IFERROR(VLOOKUP(ПодстановкаСтудентов,ПосещаемостьЗаОктябрь[],3,FALSE),\"\")","v":""},{"$f":"IFERROR(VLOOKUP(ПодстановкаСтудентов,ПосещаемостьЗаОктябрь[],4,FALSE),\"\")","v":""},{"$f":"IFERROR(VLOOKUP(ПодстановкаСтудентов,ПосещаемостьЗаОктябрь[],5,FALSE),\"\")","v":""},{"$f":"IFERROR(VLOOKUP(ПодстановкаСтудентов,ПосещаемостьЗаОктябрь[],6,FALSE),\"\")","v":""},{"$f":"IFERROR(VLOOKUP(ПодстановкаСтудентов,ПосещаемостьЗаОктябрь[],7,FALSE),\"\")","v":""},{"$f":"IFERROR(VLOOKUP(ПодстановкаСтудентов,ПосещаемостьЗаОктябрь[],8,FALSE),\"\")","v":""},{"$f":"IFERROR(VLOOKUP(ПодстановкаСтудентов,ПосещаемостьЗаОктябрь[],9,FALSE),\"\")","v":""},{"$f":"IFERROR(VLOOKUP(ПодстановкаСтудентов,ПосещаемостьЗаОктябрь[],10,FALSE),\"\")","v":""},{"$f":"IFERROR(VLOOKUP(ПодстановкаСтудентов,ПосещаемостьЗаОктябрь[],11,FALSE),\"\")","v":""},{"$f":"IFERROR(VLOOKUP(ПодстановкаСтудентов,ПосещаемостьЗаОктябрь[],12,FALSE),\"\")","v":""},{"$f":"IFERROR(VLOOKUP(ПодстановкаСтудентов,ПосещаемостьЗаОктябрь[],13,FALSE),\"\")","v":""},{"$f":"IFERROR(VLOOKUP(ПодстановкаСтудентов,ПосещаемостьЗаОктябрь[],14,FALSE),\"\")","v":""},{"$f":"IFERROR(VLOOKUP(ПодстановкаСтудентов,ПосещаемостьЗаОктябрь[],15,FALSE),\"\")","v":""},{"$f":"IFERROR(VLOOKUP(ПодстановкаСтудентов,ПосещаемостьЗаОктябрь[],16,FALSE),\"\")","v":""},{"$f":"IFERROR(VLOOKUP(ПодстановкаСтудентов,ПосещаемостьЗаОктябрь[],17,FALSE),\"\")","v":""},{"$f":"IFERROR(VLOOKUP(ПодстановкаСтудентов,ПосещаемостьЗаОктябрь[],18,FALSE),\"\")","v":""},{"$f":"IFERROR(VLOOKUP(ПодстановкаСтудентов,ПосещаемостьЗаОктябрь[],19,FALSE),\"\")","v":""},{"$f":"IFERROR(VLOOKUP(ПодстановкаСтудентов,ПосещаемостьЗаОктябрь[],20,FALSE),\"\")","v":""},{"$f":"IFERROR(VLOOKUP(ПодстановкаСтудентов,ПосещаемостьЗаОктябрь[],21,FALSE),\"\")","v":""},{"$f":"IFERROR(VLOOKUP(ПодстановкаСтудентов,ПосещаемостьЗаОктябрь[],22,FALSE),\"\")","v":""},{"$f":"IFERROR(VLOOKUP(ПодстановкаСтудентов,ПосещаемостьЗаОктябрь[],23,FALSE),\"\")","v":""},{"$f":"IFERROR(VLOOKUP(ПодстановкаСтудентов,ПосещаемостьЗаОктябрь[],24,FALSE),\"\")","v":""},{"$f":"IFERROR(VLOOKUP(ПодстановкаСтудентов,ПосещаемостьЗаОктябрь[],25,FALSE),\"\")","v":""},{"$f":"IFERROR(VLOOKUP(ПодстановкаСтудентов,ПосещаемостьЗаОктябрь[],26,FALSE),\"\")","v":""},{"$f":"IFERROR(VLOOKUP(ПодстановкаСтудентов,ПосещаемостьЗаОктябрь[],27,FALSE),\"\")","v":""},{"$f":"IFERROR(VLOOKUP(ПодстановкаСтудентов,ПосещаемостьЗаОктябрь[],28,FALSE),\"\")","v":""},{"$f":"IFERROR(VLOOKUP(ПодстановкаСтудентов,ПосещаемостьЗаОктябрь[],29,FALSE),\"\")","v":""},{"$f":"IFERROR(VLOOKUP(ПодстановкаСтудентов,ПосещаемостьЗаОктябрь[],30,FALSE),\"\")","v":""},{"$f":"IFERROR(VLOOKUP(ПодстановкаСтудентов,ПосещаемостьЗаОктябрь[],31,FALSE),\"\")","v":""},{"$f":"IFERROR(VLOOKUP(ПодстановкаСтудентов,ПосещаемостьЗаОктябрь[],32,FALSE),\"\")","v":""},{"$f":"IFERROR(VLOOKUP(ПодстановкаСтудентов,ПосещаемостьЗаОктябрь[],33,FALSE),\"\")","v":""}]
[null,"Ноябрь",1,2,3,4,5,6,7,8,9,10,11,12,13,14,15,16,17,18,19,20,21,22,23,24,25,26,27,28,29,30,null,{"$f":"COUNTIF($D23:$AH23,Код1)","v":0},{"$f":"COUNTIF($D23:$AH23,Код2)","v":0},{"$f":"COUNTIF($D23:$AH23,Код3)","v":0},{"$f":"COUNTIF($D23:$AH23,Код4)","v":0}]
[null,null,{"$f":"IFERROR(VLOOKUP(ПодстановкаСтудентов,ПосещаемостьЗаНоябрь[],3,FALSE),\"\")","v":""},{"$f":"IFERROR(VLOOKUP(ПодстановкаСтудентов,ПосещаемостьЗаНоябрь[],4,FALSE),\"\")","v":""},{"$f":"IFERROR(VLOOKUP(ПодстановкаСтудентов,ПосещаемостьЗаНоябрь[],5,FALSE),\"\")","v":""},{"$f":"IFERROR(VLOOKUP(ПодстановкаСтудентов,ПосещаемостьЗаНоябрь[],6,FALSE),\"\")","v":""},{"$f":"IFERROR(VLOOKUP(ПодстановкаСтудентов,ПосещаемостьЗаНоябрь[],7,FALSE),\"\")","v":""},{"$f":"IFERROR(VLOOKUP(ПодстановкаСтудентов,ПосещаемостьЗаНоябрь[],8,FALSE),\"\")","v":""},{"$f":"IFERROR(VLOOKUP(ПодстановкаСтудентов,ПосещаемостьЗаНоябрь[],9,FALSE),\"\")","v":""},{"$f":"IFERROR(VLOOKUP(ПодстановкаСтудентов,ПосещаемостьЗаНоябрь[],10,FALSE),\"\")","v":""},{"$f":"IFERROR(VLOOKUP(ПодстановкаСтудентов,ПосещаемостьЗаНоябрь[],11,FALSE),\"\")","v":""},{"$f":"IFERROR(VLOOKUP(ПодстановкаСтудентов,ПосещаемостьЗаНоябрь[],12,FALSE),\"\")","v":""},{"$f":"IFERROR(VLOOKUP(ПодстановкаСтудентов,ПосещаемостьЗаНоябрь[],13,FALSE),\"\")","v":""},{"$f":"IFERROR(VLOOKUP(ПодстановкаСтудентов,ПосещаемостьЗаНоябрь[],14,FALSE),\"\")","v":""},{"$f":"IFERROR(VLOOKUP(ПодстановкаСтудентов,ПосещаемостьЗаНоябрь[],15,FALSE),\"\")","v":""},{"$f":"IFERROR(VLOOKUP(ПодстановкаСтудентов,ПосещаемостьЗаНоябрь[],16,FALSE),\"\")","v":""},{"$f":"IFERROR(VLOOKUP(ПодстановкаСтудентов,ПосещаемостьЗаНоябрь[],17,FALSE),\"\")","v":""},{"$f":"IFERROR(VLOOKUP(ПодстановкаСтудентов,ПосещаемостьЗаНоябрь[],18,FALSE),\"\")","v":""},{"$f":"IFERROR(VLOOKUP(ПодстановкаСтудентов,ПосещаемостьЗаНоябрь[],19,FALSE),\"\")","v":""},{"$f":"IFERROR(VLOOKUP(ПодстановкаСтудентов,ПосещаемостьЗаНоябрь[],20,FALSE),\"\")","v":""},{"$f":"IFERROR(VLOOKUP(ПодстановкаСтудентов,ПосещаемостьЗаНоябрь[],21,FALSE),\"\")","v":""},{"$f":"IFERROR(VLOOKUP(ПодстановкаСтудентов,ПосещаемостьЗаНоябрь[],22,FALSE),\"\")","v":""},{"$f":"IFERROR(VLOOKUP(ПодстановкаСтудентов,ПосещаемостьЗаНоябрь[],23,FALSE),\"\")","v":""},{"$f":"IFERROR(VLOOKUP(ПодстановкаСтудентов,ПосещаемостьЗаНоябрь[],24,FALSE),\"\")","v":""},{"$f":"IFERROR(VLOOKUP(ПодстановкаСтудентов,ПосещаемостьЗаНоябрь[],25,FALSE),\"\")","v":""},{"$f":"IFERROR(VLOOKUP(ПодстановкаСтудентов,ПосещаемостьЗаНоябрь[],26,FALSE),\"\")","v":""},{"$f":"IFERROR(VLOOKUP(ПодстановкаСтудентов,ПосещаемостьЗаНоябрь[],27,FALSE),\"\")","v":""},{"$f":"IFERROR(VLOOKUP(ПодстановкаСтудентов,ПосещаемостьЗаНоябрь[],28,FALSE),\"\")","v":""},{"$f":"IFERROR(VLOOKUP(ПодстановкаСтудентов,ПосещаемостьЗаНоябрь[],29,FALSE),\"\")","v":""},{"$f":"IFERROR(VLOOKUP(ПодстановкаСтудентов,ПосещаемостьЗаНоябрь[],30,FALSE),\"\")","v":""},{"$f":"IFERROR(VLOOKUP(ПодстановкаСтудентов,ПосещаемостьЗаНоябрь[],31,FALSE),\"\")","v":""},{"$f":"IFERROR(VLOOKUP(ПодстановкаСтудентов,ПосещаемостьЗаНоябрь[],32,FALSE),\"\")","v":""}]
[null,"Декабрь",1,2,3,4,5,6,7,8,9,10,11,12,13,14,15,16,17,18,19,20,21,22,23,24,25,26,27,28,29,30,31,{"$f":"COUNTIF($D25:$AH25,Код1)","v":0},{"$f":"COUNTIF($D25:$AH25,Код2)","v":0},{"$f":"COUNTIF($D25:$AH25,Код3)","v":0},{"$f":"COUNTIF($D25:$AH25,Код4)","v":0}]
[null,null,{"$f":"IFERROR(VLOOKUP(ПодстановкаСтудентов,ПосещаемостьЗаДекабрь[],3,FALSE),\"\")","v":""},{"$f":"IFERROR(VLOOKUP(ПодстановкаСтудентов,ПосещаемостьЗаДекабрь[],4,FALSE),\"\")","v":""},{"$f":"IFERROR(VLOOKUP(ПодстановкаСтудентов,ПосещаемостьЗаДекабрь[],5,FALSE),\"\")","v":""},{"$f":"IFERROR(VLOOKUP(ПодстановкаСтудентов,ПосещаемостьЗаДекабрь[],6,FALSE),\"\")","v":""},{"$f":"IFERROR(VLOOKUP(ПодстановкаСтудентов,ПосещаемостьЗаДекабрь[],7,FALSE),\"\")","v":""},{"$f":"IFERROR(VLOOKUP(ПодстановкаСтудентов,ПосещаемостьЗаДекабрь[],8,FALSE),\"\")","v":""},{"$f":"IFERROR(VLOOKUP(ПодстановкаСтудентов,ПосещаемостьЗаДекабрь[],9,FALSE),\"\")","v":""},{"$f":"IFERROR(VLOOKUP(ПодстановкаСтудентов,ПосещаемостьЗаДекабрь[],10,FALSE),\"\")","v":""},{"$f":"IFERROR(VLOOKUP(ПодстановкаСтудентов,ПосещаемостьЗаДекабрь[],11,FALSE),\"\")","v":""},{"$f":"IFERROR(VLOOKUP(ПодстановкаСтудентов,ПосещаемостьЗаДекабрь[],12,FALSE),\"\")","v":""},{"$f":"IFERROR(VLOOKUP(ПодстановкаСтудентов,ПосещаемостьЗаДекабрь[],13,FALSE),\"\")","v":""},{"$f":"IFERROR(VLOOKUP(ПодстановкаСтудентов,ПосещаемостьЗаДекабрь[],14,FALSE),\"\")","v":""},{"$f":"IFERROR(VLOOKUP(ПодстановкаСтудентов,ПосещаемостьЗаДекабрь[],15,FALSE),\"\")","v":""},{"$f":"IFERROR(VLOOKUP(ПодстановкаСтудентов,ПосещаемостьЗаДекабрь[],16,FALSE),\"\")","v":""},{"$f":"IFERROR(VLOOKUP(ПодстановкаСтудентов,ПосещаемостьЗаДекабрь[],17,FALSE),\"\")","v":""},{"$f":"IFERROR(VLOOKUP(ПодстановкаСтудентов,ПосещаемостьЗаДекабрь[],18,FALSE),\"\")","v":""},{"$f":"IFERROR(VLOOKUP(ПодстановкаСтудентов,ПосещаемостьЗаДекабрь[],19,FALSE),\"\")","v":""},{"$f":"IFERROR(VLOOKUP(ПодстановкаСтудентов,ПосещаемостьЗаДекабрь[],20,FALSE),\"\")","v":""},{"$f":"IFERROR(VLOOKUP(ПодстановкаСтудентов,ПосещаемостьЗаДекабрь[],21,FALSE),\"\")","v":""},{"$f":"IFERROR(VLOOKUP(ПодстановкаСтудентов,ПосещаемостьЗаДекабрь[],22,FALSE),\"\")","v":""},{"$f":"IFERROR(VLOOKUP(ПодстановкаСтудентов,ПосещаемостьЗаДекабрь[],23,FALSE),\"\")","v":""},{"$f":"IFERROR(VLOOKUP(ПодстановкаСтудентов,ПосещаемостьЗаДекабрь[],24,FALSE),\"\")","v":""},{"$f":"IFERROR(VLOOKUP(ПодстановкаСтудентов,ПосещаемостьЗаДекабрь[],25,FALSE),\"\")","v":""},{"$f":"IFERROR(VLOOKUP(ПодстановкаСтудентов,ПосещаемостьЗаДекабрь[],26,FALSE),\"\")","v":""},{"$f":"IFERROR(VLOOKUP(ПодстановкаСтудентов,ПосещаемостьЗаДекабрь[],27,FALSE),\"\")","v":""},{"$f":"IFERROR(VLOOKUP(ПодстановкаСтудентов,ПосещаемостьЗаДекабрь[],28,FALSE),\"\")","v":""},{"$f":"IFERROR(VLOOKUP(ПодстановкаСтудентов,ПосещаемостьЗаДекабрь[],29,FALSE),\"\")","v":""},{"$f":"IFERROR(VLOOKUP(ПодстановкаСтудентов,ПосещаемостьЗаДекабрь[],30,FALSE),\"\")","v":""},{"$f":"IFERROR(VLOOKUP(ПодстановкаСтудентов,ПосещаемостьЗаДекабрь[],31,FALSE),\"\")","v":""},{"$f":"IFERROR(VLOOKUP(ПодстановкаСтудентов,ПосещаемостьЗаДекабрь[],32,FALSE),\"\")","v":""},{"$f":"IFERROR(VLOOKUP(ПодстановкаСтудентов,ПосещаемостьЗаДекабрь[],33,FALSE),\"\")","v":""}]
[null,"Январь",1,2,3,4,5,6,7,8,9,10,11,12,13,14,15,16,17,18,19,20,21,22,23,24,25,26,27,28,29,30,31,{"$f":"COUNTIF($D27:$AH27,Код1)","v":0},{"$f":"COUNTIF($D27:$AH27,Код2)","v":0},{"$f":"COUNTIF($D27:$AH27,Код3)","v":0},{"$f":"COUNTIF($D27:$AH27,Код4)","v":0}]
[null,null,{"$f":"IFERROR(VLOOKUP(ПодстановкаСтудентов,ПосещаемостьЗаЯнварь[],3,FALSE),\"\")","v":""},{"$f":"IFERROR(VLOOKUP(ПодстановкаСтудентов,ПосещаемостьЗаЯнварь[],4,FALSE),\"\")","v":""},{"$f":"IFERROR(VLOOKUP(ПодстановкаСтудентов,ПосещаемостьЗаЯнварь[],5,FALSE),\"\")","v":""},{"$f":"IFERROR(VLOOKUP(ПодстановкаСтудентов,ПосещаемостьЗаЯнварь[],6,FALSE),\"\")","v":""},{"$f":"IFERROR(VLOOKUP(ПодстановкаСтудентов,ПосещаемостьЗаЯнварь[],7,FALSE),\"\")","v":""},{"$f":"IFERROR(VLOOKUP(ПодстановкаСтудентов,ПосещаемостьЗаЯнварь[],8,FALSE),\"\")","v":""},{"$f":"IFERROR(VLOOKUP(ПодстановкаСтудентов,ПосещаемостьЗаЯнварь[],9,FALSE),\"\")","v":""},{"$f":"IFERROR(VLOOKUP(ПодстановкаСтудентов,ПосещаемостьЗаЯнварь[],10,FALSE),\"\")","v":""},{"$f":"IFERROR(VLOOKUP(ПодстановкаСтудентов,ПосещаемостьЗаЯнварь[],11,FALSE),\"\")","v":""},{"$f":"IFERROR(VLOOKUP(ПодстановкаСтудентов,ПосещаемостьЗаЯнварь[],12,FALSE),\"\")","v":""},{"$f":"IFERROR(VLOOKUP(ПодстановкаСтудентов,ПосещаемостьЗаЯнварь[],13,FALSE),\"\")","v":""},{"$f":"IFERROR(VLOOKUP(ПодстановкаСтудентов,ПосещаемостьЗаЯнварь[],14,FALSE),\"\")","v":""},{"$f":"IFERROR(VLOOKUP(ПодстановкаСтудентов,ПосещаемостьЗаЯнварь[],15,FALSE),\"\")","v":""},{"$f":"IFERROR(VLOOKUP(ПодстановкаСтудентов,ПосещаемостьЗаЯнварь[],16,FALSE),\"\")","v":""},{"$f":"IFERROR(VLOOKUP(ПодстановкаСтудентов,ПосещаемостьЗаЯнварь[],17,FALSE),\"\")","v":""},{"$f":"IFERROR(VLOOKUP(ПодстановкаСтудентов,ПосещаемостьЗаЯнварь[],18,FALSE),\"\")","v":""},{"$f":"IFERROR(VLOOKUP(ПодстановкаСтудентов,ПосещаемостьЗаЯнварь[],19,FALSE),\"\")","v":""},{"$f":"IFERROR(VLOOKUP(ПодстановкаСтудентов,ПосещаемостьЗаЯнварь[],20,FALSE),\"\")","v":""},{"$f":"IFERROR(VLOOKUP(ПодстановкаСтудентов,ПосещаемостьЗаЯнварь[],21,FALSE),\"\")","v":""},{"$f":"IFERROR(VLOOKUP(ПодстановкаСтудентов,ПосещаемостьЗаЯнварь[],22,FALSE),\"\")","v":""},{"$f":"IFERROR(VLOOKUP(ПодстановкаСтудентов,ПосещаемостьЗаЯнварь[],23,FALSE),\"\")","v":""},{"$f":"IFERROR(VLOOKUP(ПодстановкаСтудентов,ПосещаемостьЗаЯнварь[],24,FALSE),\"\")","v":""},{"$f":"IFERROR(VLOOKUP(ПодстановкаСтудентов,ПосещаемостьЗаЯнварь[],25,FALSE),\"\")","v":""},{"$f":"IFERROR(VLOOKUP(ПодстановкаСтудентов,ПосещаемостьЗаЯнварь[],26,FALSE),\"\")","v":""},{"$f":"IFERROR(VLOOKUP(ПодстановкаСтудентов,ПосещаемостьЗаЯнварь[],27,FALSE),\"\")","v":""},{"$f":"IFERROR(VLOOKUP(ПодстановкаСтудентов,ПосещаемостьЗаЯнварь[],28,FALSE),\"\")","v":""},{"$f":"IFERROR(VLOOKUP(ПодстановкаСтудентов,ПосещаемостьЗаЯнварь[],29,FALSE),\"\")","v":""},{"$f":"IFERROR(VLOOKUP(ПодстановкаСтудентов,ПосещаемостьЗаЯнварь[],30,FALSE),\"\")","v":""},{"$f":"IFERROR(VLOOKUP(ПодстановкаСтудентов,ПосещаемостьЗаЯнварь[],31,FALSE),\"\")","v":""},{"$f":"IFERROR(VLOOKUP(ПодстановкаСтудентов,ПосещаемостьЗаЯнварь[],32,FALSE),\"\")","v":""},{"$f":"IFERROR(VLOOKUP(ПодстановкаСтудентов,ПосещаемостьЗаЯнварь[],33,FALSE),\"\")","v":""}]
[null,"Февраль",1,2,3,4,5,6,7,8,9,10,11,12,13,14,15,16,17,18,19,20,21,22,23,24,25,26,27,28,29,null,null,{"$f":"COUNTIF($D29:$AH29,Код1)","v":0},{"$f":"COUNTIF($D29:$AH29,Код2)","v":0},{"$f":"COUNTIF($D29:$AH29,Код3)","v":0},{"$f":"COUNTIF($D29:$AH29,Код4)","v":0}]
[null,null,{"$f":"IFERROR(VLOOKUP(ПодстановкаСтудентов,ПосещаемостьЗаФевраль[],3,FALSE),\"\")","v":""},{"$f":"IFERROR(VLOOKUP(ПодстановкаСтудентов,ПосещаемостьЗаФевраль[],4,FALSE),\"\")","v":""},{"$f":"IFERROR(VLOOKUP(ПодстановкаСтудентов,ПосещаемостьЗаФевраль[],5,FALSE),\"\")","v":""},{"$f":"IFERROR(VLOOKUP(ПодстановкаСтудентов,ПосещаемостьЗаФевраль[],6,FALSE),\"\")","v":""},{"$f":"IFERROR(VLOOKUP(ПодстановкаСтудентов,ПосещаемостьЗаФевраль[],7,FALSE),\"\")","v":""},{"$f":"IFERROR(VLOOKUP(ПодстановкаСтудентов,ПосещаемостьЗаФевраль[],8,FALSE),\"\")","v":""},{"$f":"IFERROR(VLOOKUP(ПодстановкаСтудентов,ПосещаемостьЗаФевраль[],9,FALSE),\"\")","v":""},{"$f":"IFERROR(VLOOKUP(ПодстановкаСтудентов,ПосещаемостьЗаФевраль[],10,FALSE),\"\")","v":""},{"$f":"IFERROR(VLOOKUP(ПодстановкаСтудентов,ПосещаемостьЗаФевраль[],11,FALSE),\"\")","v":""},{"$f":"IFERROR(VLOOKUP(ПодстановкаСтудентов,ПосещаемостьЗаФевраль[],12,FALSE),\"\")","v":""},{"$f":"IFERROR(VLOOKUP(ПодстановкаСтудентов,ПосещаемостьЗаФевраль[],13,FALSE),\"\")","v":""},{"$f":"IFERROR(VLOOKUP(ПодстановкаСтудентов,ПосещаемостьЗаФевраль[],14,FALSE),\"\")","v":""},{"$f":"IFERROR(VLOOKUP(ПодстановкаСтудентов,ПосещаемостьЗаФевраль[],15,FALSE),\"\")","v":""},{"$f":"IFERROR(VLOOKUP(ПодстановкаСтудентов,ПосещаемостьЗаФевраль[],16,FALSE),\"\")","v":""},{"$f":"IFERROR(VLOOKUP(ПодстановкаСтудентов,ПосещаемостьЗаФевраль[],17,FALSE),\"\")","v":""},{"$f":"IFERROR(VLOOKUP(ПодстановкаСтудентов,ПосещаемостьЗаФевраль[],18,FALSE),\"\")","v":""},{"$f":"IFERROR(VLOOKUP(ПодстановкаСтудентов,ПосещаемостьЗаФевраль[],19,FALSE),\"\")","v":""},{"$f":"IFERROR(VLOOKUP(ПодстановкаСтудентов,ПосещаемостьЗаФевраль[],20,FALSE),\"\")","v":""},{"$f":"IFERROR(VLOOKUP(ПодстановкаСтудентов,ПосещаемостьЗаФевраль[],21,FALSE),\"\")","v":""},{"$f":"IFERROR(VLOOKUP(ПодстановкаСтудентов,ПосещаемостьЗаФевраль[],22,FALSE),\"\")","v":""},{"$f":"IFERROR(VLOOKUP(ПодстановкаСтудентов,ПосещаемостьЗаФевраль[],23,FALSE),\"\")","v":""},{"$f":"IFERROR(VLOOKUP(ПодстановкаСтудентов,ПосещаемостьЗаФевраль[],24,FALSE),\"\")","v":""},{"$f":"IFERROR(VLOOKUP(ПодстановкаСтудентов,ПосещаемостьЗаФевраль[],25,FALSE),\"\")","v":""},{"$f":"IFERROR(VLOOKUP(ПодстановкаСтудентов,ПосещаемостьЗаФевраль[],26,FALSE),\"\")","v":""},{"$f":"IFERROR(VLOOKUP(ПодстановкаСтудентов,ПосещаемостьЗаФевраль[],27,FALSE),\"\")","v":""},{"$f":"IFERROR(VLOOKUP(ПодстановкаСтудентов,ПосещаемостьЗаФевраль[],28,FALSE),\"\")","v":""},{"$f":"IFERROR(VLOOKUP(ПодстановкаСтудентов,ПосещаемостьЗаФевраль[],29,FALSE),\"\")","v":""},{"$f":"IFERROR(VLOOKUP(ПодстановкаСтудентов,ПосещаемостьЗаФевраль[],30,FALSE),\"\")","v":""},{"$f":"IFERROR(VLOOKUP(ПодстановкаСтудентов,ПосещаемостьЗаФевраль[],31,FALSE),\"\")","v":""}]
[null,"Март",1,2,3,4,5,6,7,8,9,10,11,12,13,14,15,16,17,18,19,20,21,22,23,24,25,26,27,28,29,30,31,{"$f":"COUNTIF($D31:$AH31,Код1)","v":0},{"$f":"COUNTIF($D31:$AH31,Код2)","v":0},{"$f":"COUNTIF($D31:$AH31,Код3)","v":0},{"$f":"COUNTIF($D31:$AH31,Код4)","v":0}]
[null,null,{"$f":"IFERROR(VLOOKUP(ПодстановкаСтудентов,ПосещаемостьЗаМарт[],3,FALSE),\"\")","v":""},{"$f":"IFERROR(VLOOKUP(ПодстановкаСтудентов,ПосещаемостьЗаМарт[],4,FALSE),\"\")","v":""},{"$f":"IFERROR(VLOOKUP(ПодстановкаСтудентов,ПосещаемостьЗаМарт[],5,FALSE),\"\")","v":""},{"$f":"IFERROR(VLOOKUP(ПодстановкаСтудентов,ПосещаемостьЗаМарт[],6,FALSE),\"\")","v":""},{"$f":"IFERROR(VLOOKUP(ПодстановкаСтудентов,ПосещаемостьЗаМарт[],7,FALSE),\"\")","v":""},{"$f":"IFERROR(VLOOKUP(ПодстановкаСтудентов,ПосещаемостьЗаМарт[],8,FALSE),\"\")","v":""},{"$f":"IFERROR(VLOOKUP(ПодстановкаСтудентов,ПосещаемостьЗаМарт[],9,FALSE),\"\")","v":""},{"$f":"IFERROR(VLOOKUP(ПодстановкаСтудентов,ПосещаемостьЗаМарт[],10,FALSE),\"\")","v":""},{"$f":"IFERROR(VLOOKUP(ПодстановкаСтудентов,ПосещаемостьЗаМарт[],11,FALSE),\"\")","v":""},{"$f":"IFERROR(VLOOKUP(ПодстановкаСтудентов,ПосещаемостьЗаМарт[],12,FALSE),\"\")","v":""},{"$f":"IFERROR(VLOOKUP(ПодстановкаСтудентов,ПосещаемостьЗаМарт[],13,FALSE),\"\")","v":""},{"$f":"IFERROR(VLOOKUP(ПодстановкаСтудентов,ПосещаемостьЗаМарт[],14,FALSE),\"\")","v":""},{"$f":"IFERROR(VLOOKUP(ПодстановкаСтудентов,ПосещаемостьЗаМарт[],15,FALSE),\"\")","v":""},{"$f":"IFERROR(VLOOKUP(ПодстановкаСтудентов,ПосещаемостьЗаМарт[],16,FALSE),\"\")","v":""},{"$f":"IFERROR(VLOOKUP(ПодстановкаСтудентов,ПосещаемостьЗаМарт[],17,FALSE),\"\")","v":""},{"$f":"IFERROR(VLOOKUP(ПодстановкаСтудентов,ПосещаемостьЗаМарт[],18,FALSE),\"\")","v":""},{"$f":"IFERROR(VLOOKUP(ПодстановкаСтудентов,ПосещаемостьЗаМарт[],19,FALSE),\"\")","v":""},{"$f":"IFERROR(VLOOKUP(ПодстановкаСтудентов,ПосещаемостьЗаМарт[],20,FALSE),\"\")","v":""},{"$f":"IFERROR(VLOOKUP(ПодстановкаСтудентов,ПосещаемостьЗаМарт[],21,FALSE),\"\")","v":""},{"$f":"IFERROR(VLOOKUP(ПодстановкаСтудентов,ПосещаемостьЗаМарт[],22,FALSE),\"\")","v":""},{"$f":"IFERROR(VLOOKUP(ПодстановкаСтудентов,ПосещаемостьЗаМарт[],23,FALSE),\"\")","v":""},{"$f":"IFERROR(VLOOKUP(ПодстановкаСтудентов,ПосещаемостьЗаМарт[],24,FALSE),\"\")","v":""},{"$f":"IFERROR(VLOOKUP(ПодстановкаСтудентов,ПосещаемостьЗаМарт[],25,FALSE),\"\")","v":""},{"$f":"IFERROR(VLOOKUP(ПодстановкаСтудентов,ПосещаемостьЗаМарт[],26,FALSE),\"\")","v":""},{"$f":"IFERROR(VLOOKUP(ПодстановкаСтудентов,ПосещаемостьЗаМарт[],27,FALSE),\"\")","v":""},{"$f":"IFERROR(VLOOKUP(ПодстановкаСтудентов,ПосещаемостьЗаМарт[],28,FALSE),\"\")","v":""},{"$f":"IFERROR(VLOOKUP(ПодстановкаСтудентов,ПосещаемостьЗаМарт[],29,FALSE),\"\")","v":""},{"$f":"IFERROR(VLOOKUP(ПодстановкаСтудентов,ПосещаемостьЗаМарт[],30,FALSE),\"\")","v":""},{"$f":"IFERROR(VLOOKUP(ПодстановкаСтудентов,ПосещаемостьЗаМарт[],31,FALSE),\"\")","v":""},{"$f":"IFERROR(VLOOKUP(ПодстановкаСтудентов,ПосещаемостьЗаМарт[],32,FALSE),\"\")","v":""},{"$f":"IFERROR(VLOOKUP(ПодстановкаСтудентов,ПосещаемостьЗаМарт[],33,FALSE),\"\")","v":""}]
[null,"Апрель",1,2,3,4,5,6,7,8,9,10,11,12,13,14,15,16,17,18,19,20,21,22,23,24,25,26,27,28,29,30,null,{"$f":"COUNTIF($D33:$AH33,Код1)","v":0},{"$f":"COUNTIF($D33:$AH33,Код2)","v":0},{"$f":"COUNTIF($D33:$AH33,Код3)","v":0},{"$f":"COUNTIF($D33:$AH33,Код4)","v":0}]
[null,null,{"$f":"IFERROR(VLOOKUP(ПодстановкаСтудентов,ПосещаемостьЗаАпрель[],3,FALSE),\"\")","v":""},{"$f":"IFERROR(VLOOKUP(ПодстановкаСтудентов,ПосещаемостьЗаАпрель[],4,FALSE),\"\")","v":""},{"$f":"IFERROR(VLOOKUP(ПодстановкаСтудентов,ПосещаемостьЗаАпрель[],5,FALSE),\"\")","v":""},{"$f":"IFERROR(VLOOKUP(ПодстановкаСтудентов,ПосещаемостьЗаАпрель[],6,FALSE),\"\")","v":""},{"$f":"IFERROR(VLOOKUP(ПодстановкаСтудентов,ПосещаемостьЗаАпрель[],7,FALSE),\"\")","v":""},{"$f":"IFERROR(VLOOKUP(ПодстановкаСтудентов,ПосещаемостьЗаАпрель[],8,FALSE),\"\")","v":""},{"$f":"IFERROR(VLOOKUP(ПодстановкаСтудентов,ПосещаемостьЗаАпрель[],9,FALSE),\"\")","v":""},{"$f":"IFERROR(VLOOKUP(ПодстановкаСтудентов,ПосещаемостьЗаАпрель[],10,FALSE),\"\")","v":""},{"$f":"IFERROR(VLOOKUP(ПодстановкаСтудентов,ПосещаемостьЗаАпрель[],11,FALSE),\"\")","v":""},{"$f":"IFERROR(VLOOKUP(ПодстановкаСтудентов,ПосещаемостьЗаАпрель[],12,FALSE),\"\")","v":""},{"$f":"IFERROR(VLOOKUP(ПодстановкаСтудентов,ПосещаемостьЗаАпрель[],13,FALSE),\"\")","v":""},{"$f":"IFERROR(VLOOKUP(ПодстановкаСтудентов,ПосещаемостьЗаАпрель[],14,FALSE),\"\")","v":""},{"$f":"IFERROR(VLOOKUP(ПодстановкаСтудентов,ПосещаемостьЗаАпрель[],15,FALSE),\"\")","v":""},{"$f":"IFERROR(VLOOKUP(ПодстановкаСтудентов,ПосещаемостьЗаАпрель[],16,FALSE),\"\")","v":""},{"$f":"IFERROR(VLOOKUP(ПодстановкаСтудентов,ПосещаемостьЗаАпрель[],17,FALSE),\"\")","v":""},{"$f":"IFERROR(VLOOKUP(ПодстановкаСтудентов,ПосещаемостьЗаАпрель[],18,FALSE),\"\")","v":""},{"$f":"IFERROR(VLOOKUP(ПодстановкаСтудентов,ПосещаемостьЗаАпрель[],19,FALSE),\"\")","v":""},{"$f":"IFERROR(VLOOKUP(ПодстановкаСтудентов,ПосещаемостьЗаАпрель[],20,FALSE),\"\")","v":""},{"$f":"IFERROR(VLOOKUP(ПодстановкаСтудентов,ПосещаемостьЗаАпрель[],21,FALSE),\"\")","v":""},{"$f":"IFERROR(VLOOKUP(ПодстановкаСтудентов,ПосещаемостьЗаАпрель[],22,FALSE),\"\")","v":""},{"$f":"IFERROR(VLOOKUP(ПодстановкаСтудентов,ПосещаемостьЗаАпрель[],23,FALSE),\"\")","v":""},{"$f":"IFERROR(VLOOKUP(ПодстановкаСтудентов,ПосещаемостьЗаАпрель[],24,FALSE),\"\")","v":""},{"$f":"IFERROR(VLOOKUP(ПодстановкаСтудентов,ПосещаемостьЗаАпрель[],25,FALSE),\"\")","v":""},{"$f":"IFERROR(VLOOKUP(ПодстановкаСтудентов,ПосещаемостьЗаАпрель[],26,FALSE),\"\")","v":""},{"$f":"IFERROR(VLOOKUP(ПодстановкаСтудентов,ПосещаемостьЗаАпрель[],27,FALSE),\"\")","v":""},{"$f":"IFERROR(VLOOKUP(ПодстановкаСтудентов,ПосещаемостьЗаАпрель[],28,FALSE),\"\")","v":""},{"$f":"IFERROR(VLOOKUP(ПодстановкаСтудентов,ПосещаемостьЗаАпрель[],29,FALSE),\"\")","v":""},{"$f":"IFERROR(VLOOKUP(ПодстановкаСтудентов,ПосещаемостьЗаАпрель[],30,FALSE),\"\")","v":""},{"$f":"IFERROR(VLOOKUP(ПодстановкаСтудентов,ПосещаемостьЗаАпрель[],31,FALSE),\"\")","v":""},{"$f":"IFERROR(VLOOKUP(ПодстановкаСтудентов,ПосещаемостьЗаАпрель[],32,FALSE),\"\")","v":""}]
[null,"Май",1,2,3,4,5,6,7,8,9,10,11,12,13,14,15,16,17,18,19,20,21,22,23,24,25,26,27,28,29,30,31,{"$f":"COUNTIF($D35:$AH35,Код1)","v":0},{"$f":"COUNTIF($D35:$AH35,Код2)","v":0},{"$f":"COUNTIF($D35:$AH35,Код3)","v":0},{"$f":"COUNTIF($D35:$AH35,Код4)","v":0}]
[null,null,{"$f":"IFERROR(VLOOKUP(ПодстановкаСтудентов,ПосещаемостьЗаМай[],3,FALSE),\"\")","v":""},{"$f":"IFERROR(VLOOKUP(ПодстановкаСтудентов,ПосещаемостьЗаМай[],4,FALSE),\"\")","v":""},{"$f":"IFERROR(VLOOKUP(ПодстановкаСтудентов,ПосещаемостьЗаМай[],5,FALSE),\"\")","v":""},{"$f":"IFERROR(VLOOKUP(ПодстановкаСтудентов,ПосещаемостьЗаМай[],6,FALSE),\"\")","v":""},{"$f":"IFERROR(VLOOKUP(ПодстановкаСтудентов,ПосещаемостьЗаМай[],7,FALSE),\"\")","v":""},{"$f":"IFERROR(VLOOKUP(ПодстановкаСтудентов,ПосещаемостьЗаМай[],8,FALSE),\"\")","v":""},{"$f":"IFERROR(VLOOKUP(ПодстановкаСтудентов,ПосещаемостьЗаМай[],9,FALSE),\"\")","v":""},{"$f":"IFERROR(VLOOKUP(ПодстановкаСтудентов,ПосещаемостьЗаМай[],10,FALSE),\"\")","v":""},{"$f":"IFERROR(VLOOKUP(ПодстановкаСтудентов,ПосещаемостьЗаМай[],11,FALSE),\"\")","v":""},{"$f":"IFERROR(VLOOKUP(ПодстановкаСтудентов,ПосещаемостьЗаМай[],12,FALSE),\"\")","v":""},{"$f":"IFERROR(VLOOKUP(ПодстановкаСтудентов,ПосещаемостьЗаМай[],13,FALSE),\"\")","v":""},{"$f":"IFERROR(VLOOKUP(ПодстановкаСтудентов,ПосещаемостьЗаМай[],14,FALSE),\"\")","v":""},{"$f":"IFERROR(VLOOKUP(ПодстановкаСтудентов,ПосещаемостьЗаМай[],15,FALSE),\"\")","v":""},{"$f":"IFERROR(VLOOKUP(ПодстановкаСтудентов,ПосещаемостьЗаМай[],16,FALSE),\"\")","v":""},{"$f":"IFERROR(VLOOKUP(ПодстановкаСтудентов,ПосещаемостьЗаМай[],17,FALSE),\"\")","v":""},{"$f":"IFERROR(VLOOKUP(ПодстановкаСтудентов,ПосещаемостьЗаМай[],18,FALSE),\"\")","v":""},{"$f":"IFERROR(VLOOKUP(ПодстановкаСтудентов,ПосещаемостьЗаМай[],19,FALSE),\"\")","v":""},{"$f":"IFERROR(VLOOKUP(ПодстановкаСтудентов,ПосещаемостьЗаМай[],20,FALSE),\"\")","v":""},{"$f":"IFERROR(VLOOKUP(ПодстановкаСтудентов,ПосещаемостьЗаМай[],21,FALSE),\"\")","v":""},{"$f":"IFERROR(VLOOKUP(ПодстановкаСтудентов,ПосещаемостьЗаМай[],22,FALSE),\"\")","v":""},{"$f":"IFERROR(VLOOKUP(ПодстановкаСтудентов,ПосещаемостьЗаМай[],23,FALSE),\"\")","v":""},{"$f":"IFERROR(VLOOKUP(ПодстановкаСтудентов,ПосещаемостьЗаМай[],24,FALSE),\"\")","v":""},{"$f":"IFERROR(VLOOKUP(ПодстановкаСтудентов,ПосещаемостьЗаМай[],25,FALSE),\"\")","v":""},{"$f":"IFERROR(VLOOKUP(ПодстановкаСтудентов,ПосещаемостьЗаМай[],26,FALSE),\"\")","v":""},{"$f":"IFERROR(VLOOKUP(ПодстановкаСтудентов,ПосещаемостьЗаМай[],27,FALSE),\"\")","v":""},{"$f":"IFERROR(VLOOKUP(ПодстановкаСтудентов,ПосещаемостьЗаМай[],28,FALSE),\"\")","v":""},{"$f":"IFERROR(VLOOKUP(ПодстановкаСтудентов,ПосещаемостьЗаМай[],29,FALSE),\"\")","v":""},{"$f":"IFERROR(VLOOKUP(ПодстановкаСтудентов,ПосещаемостьЗаМай[],30,FALSE),\"\")","v":""},{"$f":"IFERROR(VLOOKUP(ПодстановкаСтудентов,ПосещаемостьЗаМай[],31,FALSE),\"\")","v":""},{"$f":"IFERROR(VLOOKUP(ПодстановкаСтудентов,ПосещаемостьЗаМай[],32,FALSE),\"\")","v":""},{"$f":"IFERROR(VLOOKUP(ПодстановкаСтудентов,ПосещаемостьЗаМай[],33,FALSE),\"\")","v":""}]
[null,"Июнь",1,2,3,4,5,6,7,8,9,10,11,12,13,14,15,16,17,18,19,20,21,22,23,24,25,26,27,28,29,30,null,{"$f":"COUNTIF($D37:$AH37,Код1)","v":0},{"$f":"COUNTIF($D37:$AH37,Код2)","v":0},{"$f":"COUNTIF($D37:$AH37,Код3)","v":0},{"$f":"COUNTIF($D37:$AH37,Код4)","v":0}]
[null,null,{"$f":"IFERROR(VLOOKUP(ПодстановкаСтудентов,ПосещаемостьЗаИюнь[],3,FALSE),\"\")","v":""},{"$f":"IFERROR(VLOOKUP(ПодстановкаСтудентов,ПосещаемостьЗаИюнь[],4,FALSE),\"\")","v":""},{"$f":"IFERROR(VLOOKUP(ПодстановкаСтудентов,ПосещаемостьЗаИюнь[],5,FALSE),\"\")","v":""},{"$f":"IFERROR(VLOOKUP(ПодстановкаСтудентов,ПосещаемостьЗаИюнь[],6,FALSE),\"\")","v":""},{"$f":"IFERROR(VLOOKUP(ПодстановкаСтудентов,ПосещаемостьЗаИюнь[],7,FALSE),\"\")","v":""},{"$f":"IFERROR(VLOOKUP(ПодстановкаСтудентов,ПосещаемостьЗаИюнь[],8,FALSE),\"\")","v":""},{"$f":"IFERROR(VLOOKUP(ПодстановкаСтудентов,ПосещаемостьЗаИюнь[],9,FALSE),\"\")","v":""},{"$f":"IFERROR(VLOOKUP(ПодстановкаСтудентов,ПосещаемостьЗаИюнь[],10,FALSE),\"\")","v":""},{"$f":"IFERROR(VLOOKUP(ПодстановкаСтудентов,ПосещаемостьЗаИюнь[],11,FALSE),\"\")","v":""},{"$f":"IFERROR(VLOOKUP(ПодстановкаСтудентов,ПосещаемостьЗаИюнь[],12,FALSE),\"\")","v":""},{"$f":"IFERROR(VLOOKUP(ПодстановкаСтудентов,ПосещаемостьЗаИюнь[],13,FALSE),\"\")","v":""},{"$f":"IFERROR(VLOOKUP(ПодстановкаСтудентов,ПосещаемостьЗаИюнь[],14,FALSE),\"\")","v":""},{"$f":"IFERROR(VLOOKUP(ПодстановкаСтудентов,ПосещаемостьЗаИюнь[],15,FALSE),\"\")","v":""},{"$f":"IFERROR(VLOOKUP(ПодстановкаСтудентов,ПосещаемостьЗаИюнь[],16,FALSE),\"\")","v":""},{"$f":"IFERROR(VLOOKUP(ПодстановкаСтудентов,ПосещаемостьЗаИюнь[],17,FALSE),\"\")","v":""},{"$f":"IFERROR(VLOOKUP(ПодстановкаСтудентов,ПосещаемостьЗаИюнь[],18,FALSE),\"\")","v":""},{"$f":"IFERROR(VLOOKUP(ПодстановкаСтудентов,ПосещаемостьЗаИюнь[],19,FALSE),\"\")","v":""},{"$f":"IFERROR(VLOOKUP(ПодстановкаСтудентов,ПосещаемостьЗаИюнь[],20,FALSE),\"\")","v":""},{"$f":"IFERROR(VLOOKUP(ПодстановкаСтудентов,ПосещаемостьЗаИюнь[],21,FALSE),\"\")","v":""},{"$f":"IFERROR(VLOOKUP(ПодстановкаСтудентов,ПосещаемостьЗаИюнь[],22,FALSE),\"\")","v":""},{"$f":"IFERROR(VLOOKUP(ПодстановкаСтудентов,ПосещаемостьЗаИюнь[],23,FALSE),\"\")","v":""},{"$f":"IFERROR(VLOOKUP(ПодстановкаСтудентов,ПосещаемостьЗаИюнь[],24,FALSE),\"\")","v":""},{"$f":"IFERROR(VLOOKUP(ПодстановкаСтудентов,ПосещаемостьЗаИюнь[],25,FALSE),\"\")","v":""},{"$f":"IFERROR(VLOOKUP(ПодстановкаСтудентов,ПосещаемостьЗаИюнь[],26,FALSE),\"\")","v":""},{"$f":"IFERROR(VLOOKUP(ПодстановкаСтудентов,ПосещаемостьЗаИюнь[],27,FALSE),\"\")","v":""},{"$f":"IFERROR(VLOOKUP(ПодстановкаСтудентов,ПосещаемостьЗаИюнь[],28,FALSE),\"\")","v":""},{"$f":"IFERROR(VLOOKUP(ПодстановкаСтудентов,ПосещаемостьЗаИюнь[],29,FALSE),\"\")","v":""},{"$f":"IFERROR(VLOOKUP(ПодстановкаСтудентов,ПосещаемостьЗаИюнь[],30,FALSE),\"\")","v":""},{"$f":"IFERROR(VLOOKUP(ПодстановкаСтудентов,ПосещаемостьЗаИюнь[],31,FALSE),\"\")","v":""},{"$f":"IFERROR(VLOOKUP(ПодстановкаСтудентов,ПосещаемостьЗаИюнь[],32,FALSE),\"\")","v":""}]
[null,"Июль",1,2,3,4,5,6,7,8,9,10,11,12,13,14,15,16,17,18,19,20,21,22,23,24,25,26,27,28,29,30,31,{"$f":"COUNTIF($D39:$AH39,Код1)","v":0},{"$f":"COUNTIF($D39:$AH39,Код2)","v":0},{"$f":"COUNTIF($D39:$AH39,Код3)","v":0},{"$f":"COUNTIF($D39:$AH39,Код4)","v":0}]
[null,null,{"$f":"IFERROR(VLOOKUP(ПодстановкаСтудентов,ПосещаемостьЗаИюль[],3,FALSE),\"\")","v":""},{"$f":"IFERROR(VLOOKUP(ПодстановкаСтудентов,ПосещаемостьЗаИюль[],4,FALSE),\"\")","v":""},{"$f":"IFERROR(VLOOKUP(ПодстановкаСтудентов,ПосещаемостьЗаИюль[],5,FALSE),\"\")","v":""},{"$f":"IFERROR(VLOOKUP(ПодстановкаСтудентов,ПосещаемостьЗаИюль[],6,FALSE),\"\")","v":""},{"$f":"IFERROR(VLOOKUP(ПодстановкаСтудентов,ПосещаемостьЗаИюль[],7,FALSE),\"\")","v":""},{"$f":"IFERROR(VLOOKUP(ПодстановкаСтудентов,ПосещаемостьЗаИюль[],8,FALSE),\"\")","v":""},{"$f":"IFERROR(VLOOKUP(ПодстановкаСтудентов,ПосещаемостьЗаИюль[],9,FALSE),\"\")","v":""},{"$f":"IFERROR(VLOOKUP(ПодстановкаСтудентов,ПосещаемостьЗаИюль[],10,FALSE),\"\")","v":""},{"$f":"IFERROR(VLOOKUP(ПодстановкаСтудентов,ПосещаемостьЗаИюль[],11,FALSE),\"\")","v":""},{"$f":"IFERROR(VLOOKUP(ПодстановкаСтудентов,ПосещаемостьЗаИюль[],12,FALSE),\"\")","v":""},{"$f":"IFERROR(VLOOKUP(ПодстановкаСтудентов,ПосещаемостьЗаИюль[],13,FALSE),\"\")","v":""},{"$f":"IFERROR(VLOOKUP(ПодстановкаСтудентов,ПосещаемостьЗаИюль[],14,FALSE),\"\")","v":""},{"$f":"IFERROR(VLOOKUP(ПодстановкаСтудентов,ПосещаемостьЗаИюль[],15,FALSE),\"\")","v":""},{"$f":"IFERROR(VLOOKUP(ПодстановкаСтудентов,ПосещаемостьЗаИюль[],16,FALSE),\"\")","v":""},{"$f":"IFERROR(VLOOKUP(ПодстановкаСтудентов,ПосещаемостьЗаИюль[],17,FALSE),\"\")","v":""},{"$f":"IFERROR(VLOOKUP(ПодстановкаСтудентов,ПосещаемостьЗаИюль[],18,FALSE),\"\")","v":""},{"$f":"IFERROR(VLOOKUP(ПодстановкаСтудентов,ПосещаемостьЗаИюль[],19,FALSE),\"\")","v":""},{"$f":"IFERROR(VLOOKUP(ПодстановкаСтудентов,ПосещаемостьЗаИюль[],20,FALSE),\"\")","v":""},{"$f":"IFERROR(VLOOKUP(ПодстановкаСтудентов,ПосещаемостьЗаИюль[],21,FALSE),\"\")","v":""},{"$f":"IFERROR(VLOOKUP(ПодстановкаСтудентов,ПосещаемостьЗаИюль[],22,FALSE),\"\")","v":""},{"$f":"IFERROR(VLOOKUP(ПодстановкаСтудентов,ПосещаемостьЗаИюль[],23,FALSE),\"\")","v":""},{"$f":"IFERROR(VLOOKUP(ПодстановкаСтудентов,ПосещаемостьЗаИюль[],24,FALSE),\"\")","v":""},{"$f":"IFERROR(VLOOKUP(ПодстановкаСтудентов,ПосещаемостьЗаИюль[],25,FALSE),\"\")","v":""},{"$f":"IFERROR(VLOOKUP(ПодстановкаСтудентов,ПосещаемостьЗаИюль[],26,FALSE),\"\")","v":""},{"$f":"IFERROR(VLOOKUP(ПодстановкаСтудентов,ПосещаемостьЗаИюль[],27,FALSE),\"\")","v":""},{"$f":"IFERROR(VLOOKUP(ПодстановкаСтудентов,ПосещаемостьЗаИюль[],28,FALSE),\"\")","v":""},{"$f":"IFERROR(VLOOKUP(ПодстановкаСтудентов,ПосещаемостьЗаИюль[],29,FALSE),\"\")","v":""},{"$f":"IFERROR(VLOOKUP(ПодстановкаСтудентов,ПосещаемостьЗаИюль[],30,FALSE),\"\")","v":""},{"$f":"IFERROR(VLOOKUP(ПодстановкаСтудентов,ПосещаемостьЗаИюль[],31,FALSE),\"\")","v":""},{"$f":"IFERROR(VLOOKUP(ПодстановкаСтудентов,ПосещаемостьЗаИюль[],32,FALSE),\"\")","v":""},{"$f":"IFERROR(VLOOKUP(ПодстановкаСтудентов,ПосещаемостьЗаИюль[],33,FALSE),\"\")","v":""}]
[{"$nulls":30},"Итого",null,null,{"$f":"SUM(AH16:AH39)","v":2},{"$f":"SUM(AI16:AI39)","v":1},{"$f":"SUM(AJ16:AJ39)","v":0},{"$f":"SUM(AK16:AK39)","v":19}]